Organisation Name,Organisation Code,Date Paid,Transaction Number,Amount,Supplier Name,Supplier ID,Supplier post code (first 4 digits),Directorate,Service Area,General Ledger code Description,BVACOP class,Revenue/ Capital Spend
Wiltshire,http://opendatacommunities.org/id/unitary-authority/wiltshire,07/04/2016,1901695751,4000.00,1st Bradford-on-avon Scout Group ,113093,BA14,Community Services,Area Board BOA,Area Board Youth Grants,Supplies and Services,REVENUE
Wiltshire,http://opendatacommunities.org/id/unitary-authority/wiltshire,07/04/2016,1901695997,1492.07,1st Choice Cabs ,101285,SP4 ,Community Services,CTPLD Place CIC U65,Transport Contracts,Third Party Payments,REVENUE
Wiltshire,http://opendatacommunities.org/id/unitary-authority/wiltshire,07/04/2016,1901696007,1782.00,1st Choice Cabs ,101285,SP4 ,Neighbourhood & Planning,SEN Secondary,Transport Contracts,Third Party Payments,REVENUE
Wiltshire,http://opendatacommunities.org/id/unitary-authority/wiltshire,07/04/2016,1901696008,1773.00,1st Choice Cabs ,101285,SP4 ,Neighbourhood & Planning,SEN Secondary,Transport Contracts,Third Party Payments,REVENUE
Wiltshire,http://opendatacommunities.org/id/unitary-authority/wiltshire,07/04/2016,1901696009,2250.00,1st Choice Cabs ,101285,SP4 ,Neighbourhood & Planning,SEN Secondary,Transport Contracts,Third Party Payments,REVENUE
Wiltshire,http://opendatacommunities.org/id/unitary-authority/wiltshire,22/04/2016,1901708526,1105.00,1st Choice Stairlifts ,113095,SN11,Wiltshire Council,Wiltshire Council,Payments to Contractors - Other,Third Party Payments,CAPITAL
Wiltshire,http://opendatacommunities.org/id/unitary-authority/wiltshire,26/04/2016,1901708958,3469.28,1st Choice Stairlifts ,113095,SN11,Wiltshire Council,Wiltshire Council,Payments to Contractors - Other,Third Party Payments,CAPITAL
Wiltshire,http://opendatacommunities.org/id/unitary-authority/wiltshire,06/04/2016,5106856121,1416.00,2 Care UK Ltd ,110002,BH7 ,Community Services,MH AOWA South Locali,Adult Residential Placements - Spot Purchase,Third Party Payments,REVENUE
Wiltshire,http://opendatacommunities.org/id/unitary-authority/wiltshire,06/04/2016,5106856122,944.00,2 Care UK Ltd ,110002,BH7 ,Community Services,Section 117-PCT Clnt,Adult Residential Placements - Spot Purchase,Third Party Payments,REVENUE
Wiltshire,http://opendatacommunities.org/id/unitary-authority/wiltshire,06/04/2016,5106857614,2360.00,2 Care UK Ltd ,110002,BH7 ,Community Services,MH AOWA South Locali,Adult Residential Placements - Spot Purchase,Third Party Payments,REVENUE
Wiltshire,http://opendatacommunities.org/id/unitary-authority/wiltshire,06/04/2016,5106858822,2328.68,2 Care UK Ltd ,110002,BH7 ,Community Services,MH AOWA South Locali,Adult Residential Placements - Spot Purchase,Third Party Payments,REVENUE
Wiltshire,http://opendatacommunities.org/id/unitary-authority/wiltshire,15/04/2016,5106864725,505.74,2 Care UK Ltd ,110002,BH7 ,Community Services,MH AOWA South Locali,Adult Residential Placements - Spot Purchase,Third Party Payments,REVENUE
Wiltshire,http://opendatacommunities.org/id/unitary-authority/wiltshire,15/04/2016,5106864726,1348.64,2 Care UK Ltd ,110002,BH7 ,Community Services,MH AOWA South Locali,Adult Residential Placements - Spot Purchase,Third Party Payments,REVENUE
Wiltshire,http://opendatacommunities.org/id/unitary-authority/wiltshire,14/04/2016,1901704832,1275.00,20 Degrees Consulting Limited ,141496,CF82,Neighbourhood & Planning,City Deals,Consultants� Fees,Supplies and Services,REVENUE
Wiltshire,http://opendatacommunities.org/id/unitary-authority/wiltshire,01/04/2016,5106855698,4491.52,22 Wingfield ,129621,BA14,Community Services,Ad/Brad Rd,Adult Residential Placements - Spot Purchase,Third Party Payments,REVENUE
Wiltshire,http://opendatacommunities.org/id/unitary-authority/wiltshire,06/04/2016,5106859817,2615.80,22 Wingfield ,129621,BA14,Community Services,CTPLD Place CIC U65,Adult Residential Placements - Spot Purchase,Third Party Payments,REVENUE
Wiltshire,http://opendatacommunities.org/id/unitary-authority/wiltshire,06/04/2016,5106859886,1982.90,22 Wingfield ,129621,BA14,Community Services,MH AOWA North Locali,Adult Residential Placements - Spot Purchase,Third Party Payments,REVENUE
Wiltshire,http://opendatacommunities.org/id/unitary-authority/wiltshire,06/04/2016,5106861109,2056.80,22 Wingfield ,129621,BA14,Community Services,CTPLD Place CIC U65,Adult Residential Placements - Spot Purchase,Third Party Payments,REVENUE
Wiltshire,http://opendatacommunities.org/id/unitary-authority/wiltshire,06/04/2016,5106846653,507.35,24-7 Staffing ,140662,SN15,Community Services,Bradbury Manor Resp,Agency Staff,Employee Related,REVENUE
Wiltshire,http://opendatacommunities.org/id/unitary-authority/wiltshire,27/04/2016,5106864862,273.05,24-7 Staffing ,140662,SN15,Community Services,Chippenham Respite,Agency Staff,Employee Related,REVENUE
Wiltshire,http://opendatacommunities.org/id/unitary-authority/wiltshire,27/04/2016,5106866578,873.53,24-7 Staffing ,140662,SN15,Community Services,Bradbury Manor Resp,Agency Staff,Employee Related,REVENUE
Wiltshire,http://opendatacommunities.org/id/unitary-authority/wiltshire,18/04/2016,1901705553,1140.00,2get2 Taxi Services Ltd ,101102,SP1 ,Neighbourhood & Planning,SEN Primary,Transport Contracts,Third Party Payments,REVENUE
Wiltshire,http://opendatacommunities.org/id/unitary-authority/wiltshire,18/04/2016,1901705553,1140.00,2get2 Taxi Services Ltd ,101102,SP1 ,Neighbourhood & Planning,SEN Secondary,Transport Contracts,Third Party Payments,REVENUE
Wiltshire,http://opendatacommunities.org/id/unitary-authority/wiltshire,06/04/2016,5106856300,515238.25,4 Children ,113122,E14 ,Children & Education,EYChildCentreTm,Grants Paid to individuals for Tangible Benefits,Supplies and Services,REVENUE
Wiltshire,http://opendatacommunities.org/id/unitary-authority/wiltshire,07/04/2016,1901695971,1111.97,A  and  S Private Hire ,101115,SN15,Neighbourhood & Planning,SEN Primary,Transport Contracts,Third Party Payments,REVENUE
Wiltshire,http://opendatacommunities.org/id/unitary-authority/wiltshire,13/04/2016,1901704389,630.00,A & P Taxis ,143342,SN12,Neighbourhood & Planning,SEN Secondary,Transport Contracts,Third Party Payments,REVENUE
Wiltshire,http://opendatacommunities.org/id/unitary-authority/wiltshire,05/04/2016,1901689324,454.37,A C E Supplies ,126284,BA15,Resources,County Hall Complex,Preventative Property Maintenance,Premises Related,REVENUE
Wiltshire,http://opendatacommunities.org/id/unitary-authority/wiltshire,13/04/2016,1901691390,275.66,A C E Supplies ,126284,BA15,Resources,County Hall Complex,Preventative Property Maintenance,Premises Related,REVENUE
Wiltshire,http://opendatacommunities.org/id/unitary-authority/wiltshire,28/04/2016,1901696013,321.40,A C E Supplies ,126284,BA15,Resources,County Hall Complex,Preventative Property Maintenance,Premises Related,REVENUE
Wiltshire,http://opendatacommunities.org/id/unitary-authority/wiltshire,28/04/2016,1901704356,499.23,A C E Supplies ,126284,BA15,Resources,County Hall Complex,Preventative Property Maintenance,Premises Related,REVENUE
Wiltshire,http://opendatacommunities.org/id/unitary-authority/wiltshire,04/04/2016,1901694358,811.52,A G Minibuses ,100878,BA12,Community Services,CTPLD Place CIC U65,Transport Contracts,Third Party Payments,REVENUE
Wiltshire,http://opendatacommunities.org/id/unitary-authority/wiltshire,04/04/2016,1901694358,2065.68,A G Minibuses ,100878,BA12,Community Services,OVA East Locality,Transport Contracts,Third Party Payments,REVENUE
Wiltshire,http://opendatacommunities.org/id/unitary-authority/wiltshire,04/04/2016,1901694365,1648.49,A G Minibuses ,100878,BA12,Community Services,CTPLD Place CIC U65,Transport Contracts,Third Party Payments,REVENUE
Wiltshire,http://opendatacommunities.org/id/unitary-authority/wiltshire,11/04/2016,1901696719,8011.40,A G Minibuses ,100878,BA12,Neighbourhood & Planning,Connect 2 Wiltshire,Transport Contracts,Third Party Payments,REVENUE
Wiltshire,http://opendatacommunities.org/id/unitary-authority/wiltshire,11/04/2016,1901696722,895.64,A G Minibuses ,100878,BA12,Neighbourhood & Planning,Connect 2 Wiltshire,Transport Contracts,Third Party Payments,REVENUE
Wiltshire,http://opendatacommunities.org/id/unitary-authority/wiltshire,11/04/2016,1901696722,997.50,A G Minibuses ,100878,BA12,Neighbourhood & Planning,Mainstream Primary,Transport Contracts,Third Party Payments,REVENUE
Wiltshire,http://opendatacommunities.org/id/unitary-authority/wiltshire,11/04/2016,1901696722,1588.52,A G Minibuses ,100878,BA12,Neighbourhood & Planning,Public Transport,Transport Contracts,Third Party Payments,REVENUE
Wiltshire,http://opendatacommunities.org/id/unitary-authority/wiltshire,11/04/2016,1901696723,1583.33,A G Minibuses ,100878,BA12,Neighbourhood & Planning,Mainstream Secondary,Transport Contracts,Third Party Payments,REVENUE
Wiltshire,http://opendatacommunities.org/id/unitary-authority/wiltshire,11/04/2016,1901696723,4073.67,A G Minibuses ,100878,BA12,Neighbourhood & Planning,Connect 2 Wiltshire,Transport Contracts,Third Party Payments,REVENUE
Wiltshire,http://opendatacommunities.org/id/unitary-authority/wiltshire,12/04/2016,1901696873,1054.49,A G Minibuses ,100878,BA12,Neighbourhood & Planning,SEN Primary,Transport Contracts,Third Party Payments,REVENUE
Wiltshire,http://opendatacommunities.org/id/unitary-authority/wiltshire,12/04/2016,1901696873,1054.50,A G Minibuses ,100878,BA12,Neighbourhood & Planning,SEN Secondary,Transport Contracts,Third Party Payments,REVENUE
Wiltshire,http://opendatacommunities.org/id/unitary-authority/wiltshire,12/04/2016,1901696876,1612.20,A G Minibuses ,100878,BA12,Neighbourhood & Planning,SEN Secondary,Transport Contracts,Third Party Payments,REVENUE
Wiltshire,http://opendatacommunities.org/id/unitary-authority/wiltshire,12/04/2016,1901696877,1494.00,A G Minibuses ,100878,BA12,Neighbourhood & Planning,SEN Secondary,Transport Contracts,Third Party Payments,REVENUE
Wiltshire,http://opendatacommunities.org/id/unitary-authority/wiltshire,12/04/2016,1901696879,1530.00,A G Minibuses ,100878,BA12,Neighbourhood & Planning,SEN Primary,Transport Contracts,Third Party Payments,REVENUE
Wiltshire,http://opendatacommunities.org/id/unitary-authority/wiltshire,12/04/2016,1901696882,496.80,A G Minibuses ,100878,BA12,Neighbourhood & Planning,SEN Secondary,Transport Contracts,Third Party Payments,REVENUE
Wiltshire,http://opendatacommunities.org/id/unitary-authority/wiltshire,12/04/2016,1901696882,496.80,A G Minibuses ,100878,BA12,Neighbourhood & Planning,SEN 16+ Secondary,Transport Contracts,Third Party Payments,REVENUE
Wiltshire,http://opendatacommunities.org/id/unitary-authority/wiltshire,12/04/2016,1901696882,993.60,A G Minibuses ,100878,BA12,Neighbourhood & Planning,SEN Primary,Transport Contracts,Third Party Payments,REVENUE
Wiltshire,http://opendatacommunities.org/id/unitary-authority/wiltshire,12/04/2016,1901696886,441.60,A G Minibuses ,100878,BA12,Neighbourhood & Planning,SEN Secondary,Transport Contracts,Third Party Payments,REVENUE
Wiltshire,http://opendatacommunities.org/id/unitary-authority/wiltshire,12/04/2016,1901696886,464.00,A G Minibuses ,100878,BA12,Community Services,CTPLD Place CIC U65,Transport Contracts,Third Party Payments,REVENUE
Wiltshire,http://opendatacommunities.org/id/unitary-authority/wiltshire,12/04/2016,1901696887,442.58,A G Minibuses ,100878,BA12,Neighbourhood & Planning,SEN Primary,Transport Contracts,Third Party Payments,REVENUE
Wiltshire,http://opendatacommunities.org/id/unitary-authority/wiltshire,12/04/2016,1901696887,1770.34,A G Minibuses ,100878,BA12,Neighbourhood & Planning,SEN Secondary,Transport Contracts,Third Party Payments,REVENUE
Wiltshire,http://opendatacommunities.org/id/unitary-authority/wiltshire,12/04/2016,1901696888,1729.37,A G Minibuses ,100878,BA12,Neighbourhood & Planning,Mainstream Primary,Transport Contracts,Third Party Payments,REVENUE
Wiltshire,http://opendatacommunities.org/id/unitary-authority/wiltshire,12/04/2016,1901696889,1898.39,A G Minibuses ,100878,BA12,Neighbourhood & Planning,Mainstream Primary,Transport Contracts,Third Party Payments,REVENUE
Wiltshire,http://opendatacommunities.org/id/unitary-authority/wiltshire,12/04/2016,1901696891,1084.23,A G Minibuses ,100878,BA12,Neighbourhood & Planning,Mainstream Secondary,Transport Contracts,Third Party Payments,REVENUE
Wiltshire,http://opendatacommunities.org/id/unitary-authority/wiltshire,12/04/2016,1901696892,4200.88,A G Minibuses ,100878,BA12,Neighbourhood & Planning,SEN Primary,Transport Contracts,Third Party Payments,REVENUE
Wiltshire,http://opendatacommunities.org/id/unitary-authority/wiltshire,12/04/2016,1901696893,968.82,A G Minibuses ,100878,BA12,Community Services,East Locality OP,Transport Contracts,Third Party Payments,REVENUE
Wiltshire,http://opendatacommunities.org/id/unitary-authority/wiltshire,12/04/2016,1901696893,1144.97,A G Minibuses ,100878,BA12,Community Services,MH OP South Locality,Transport Contracts,Third Party Payments,REVENUE
Wiltshire,http://opendatacommunities.org/id/unitary-authority/wiltshire,12/04/2016,1901696894,731.94,A G Minibuses ,100878,BA12,Neighbourhood & Planning,SEN Primary,Transport Contracts,Third Party Payments,REVENUE
Wiltshire,http://opendatacommunities.org/id/unitary-authority/wiltshire,12/04/2016,1901696894,975.92,A G Minibuses ,100878,BA12,Children & Education,CDT S&W,Transport Contracts,Third Party Payments,REVENUE
Wiltshire,http://opendatacommunities.org/id/unitary-authority/wiltshire,12/04/2016,1901696894,2195.80,A G Minibuses ,100878,BA12,Neighbourhood & Planning,SEN Secondary,Transport Contracts,Third Party Payments,REVENUE
Wiltshire,http://opendatacommunities.org/id/unitary-authority/wiltshire,12/04/2016,1901696895,1238.16,A G Minibuses ,100878,BA12,Community Services,CTPLD Place CIC U65,Transport Contracts,Third Party Payments,REVENUE
Wiltshire,http://opendatacommunities.org/id/unitary-authority/wiltshire,12/04/2016,1901696896,420.17,A G Minibuses ,100878,BA12,Neighbourhood & Planning,SEN 16+ Secondary,Transport Contracts,Third Party Payments,REVENUE
Wiltshire,http://opendatacommunities.org/id/unitary-authority/wiltshire,12/04/2016,1901696896,1260.51,A G Minibuses ,100878,BA12,Neighbourhood & Planning,SEN Secondary,Transport Contracts,Third Party Payments,REVENUE
Wiltshire,http://opendatacommunities.org/id/unitary-authority/wiltshire,12/04/2016,1901696896,1260.52,A G Minibuses ,100878,BA12,Neighbourhood & Planning,SEN Primary,Transport Contracts,Third Party Payments,REVENUE
Wiltshire,http://opendatacommunities.org/id/unitary-authority/wiltshire,12/04/2016,1901696897,642.36,A G Minibuses ,100878,BA12,Neighbourhood & Planning,SEN Secondary,Transport Contracts,Third Party Payments,REVENUE
Wiltshire,http://opendatacommunities.org/id/unitary-authority/wiltshire,12/04/2016,1901696897,1409.64,A G Minibuses ,100878,BA12,Neighbourhood & Planning,SEN Primary,Transport Contracts,Third Party Payments,REVENUE
Wiltshire,http://opendatacommunities.org/id/unitary-authority/wiltshire,12/04/2016,1901696898,670.50,A G Minibuses ,100878,BA12,Neighbourhood & Planning,SEN Primary,Transport Contracts,Third Party Payments,REVENUE
Wiltshire,http://opendatacommunities.org/id/unitary-authority/wiltshire,12/04/2016,1901696898,670.50,A G Minibuses ,100878,BA12,Neighbourhood & Planning,SEN Secondary,Transport Contracts,Third Party Payments,REVENUE
Wiltshire,http://opendatacommunities.org/id/unitary-authority/wiltshire,12/04/2016,1901696899,1683.00,A G Minibuses ,100878,BA12,Neighbourhood & Planning,Mainstream Primary,Transport Contracts,Third Party Payments,REVENUE
Wiltshire,http://opendatacommunities.org/id/unitary-authority/wiltshire,12/04/2016,1901696900,1206.00,A G Minibuses ,100878,BA12,Neighbourhood & Planning,Mainstream 16+ FE,Transport Contracts,Third Party Payments,REVENUE
Wiltshire,http://opendatacommunities.org/id/unitary-authority/wiltshire,19/04/2016,1901706526,837.81,A G Minibuses ,100878,BA12,Community Services,CTPLD Place CIC U65,Transport Contracts,Third Party Payments,REVENUE
Wiltshire,http://opendatacommunities.org/id/unitary-authority/wiltshire,19/04/2016,1901706526,2001.39,A G Minibuses ,100878,BA12,Community Services,OVA East Locality,Transport Contracts,Third Party Payments,REVENUE
Wiltshire,http://opendatacommunities.org/id/unitary-authority/wiltshire,25/04/2016,1901708913,1671.08,A G Minibuses ,100878,BA12,Community Services,CTPLD Place CIC U65,Transport Contracts,Third Party Payments,REVENUE
Wiltshire,http://opendatacommunities.org/id/unitary-authority/wiltshire,27/04/2016,1901709906,358.91,A G Minibuses ,100878,BA12,Neighbourhood & Planning,RES 16+ Secondary,Transport Contracts,Third Party Payments,REVENUE
Wiltshire,http://opendatacommunities.org/id/unitary-authority/wiltshire,28/04/2016,1901710321,288.00,A G Minibuses ,100878,BA12,Community Services,CTPLD Place CIC U65,Transport Contracts,Third Party Payments,REVENUE
Wiltshire,http://opendatacommunities.org/id/unitary-authority/wiltshire,28/04/2016,1901710321,306.96,A G Minibuses ,100878,BA12,Community Services,OVA East Locality,Transport Contracts,Third Party Payments,REVENUE
Wiltshire,http://opendatacommunities.org/id/unitary-authority/wiltshire,28/04/2016,1901710326,1207.00,A G Minibuses ,100878,BA12,Neighbourhood & Planning,SEN Primary,Transport Contracts,Third Party Payments,REVENUE
Wiltshire,http://opendatacommunities.org/id/unitary-authority/wiltshire,04/04/2016,5106850249,1337.64,A S A Awards Scheme ,110020,LE11,Neighbourhood & Planning,Five Rivers,Traded Goods Expenses,Supplies and Services,REVENUE
Wiltshire,http://opendatacommunities.org/id/unitary-authority/wiltshire,07/04/2016,1901696001,780.00,A1 Cab Company ,101233,SP4 ,Neighbourhood & Planning,SEN Secondary,Transport Contracts,Third Party Payments,REVENUE
Wiltshire,http://opendatacommunities.org/id/unitary-authority/wiltshire,07/04/2016,1901696001,1560.00,A1 Cab Company ,101233,SP4 ,Neighbourhood & Planning,SEN Primary,Transport Contracts,Third Party Payments,REVENUE
Wiltshire,http://opendatacommunities.org/id/unitary-authority/wiltshire,07/04/2016,1901696002,1192.68,A1 Cab Company ,101233,SP4 ,Neighbourhood & Planning,SEN Primary,Transport Contracts,Third Party Payments,REVENUE
Wiltshire,http://opendatacommunities.org/id/unitary-authority/wiltshire,07/04/2016,1901696003,637.50,A1 Cab Company ,101233,SP4 ,Neighbourhood & Planning,Mainstream Secondary,Transport Contracts,Third Party Payments,REVENUE
Wiltshire,http://opendatacommunities.org/id/unitary-authority/wiltshire,07/04/2016,1901696003,637.50,A1 Cab Company ,101233,SP4 ,Neighbourhood & Planning,SEN Secondary,Transport Contracts,Third Party Payments,REVENUE
Wiltshire,http://opendatacommunities.org/id/unitary-authority/wiltshire,25/04/2016,1901708926,782.00,A1 Cab Company ,101233,SP4 ,Community Services,CTPLD Place CIC U65,Transport Contracts,Third Party Payments,REVENUE
Wiltshire,http://opendatacommunities.org/id/unitary-authority/wiltshire,19/04/2016,1901705692,5458.08,A2 Winchester Ltd ,101167,SO23,Neighbourhood & Planning,Strategy & Enabling,Payments to Contractors - Other,Third Party Payments,REVENUE
Wiltshire,http://opendatacommunities.org/id/unitary-authority/wiltshire,21/04/2016,1901707530,10916.16,A2 Winchester Ltd ,101167,SO23,Neighbourhood & Planning,Strategy & Enabling,Payments to Contractors - Other,Third Party Payments,REVENUE
Wiltshire,http://opendatacommunities.org/id/unitary-authority/wiltshire,08/04/2016,5106862980,495.00,A-2-B Rubbish Clearance ,139914,BH21,Neighbourhood & Planning,Gypsy Liaison,Payments to Contractors - Waste - Other,Third Party Payments,REVENUE
Wiltshire,http://opendatacommunities.org/id/unitary-authority/wiltshire,08/04/2016,5106862981,495.00,A-2-B Rubbish Clearance ,139914,BH21,Neighbourhood & Planning,Gypsy Liaison,Payments to Contractors - Waste - Other,Third Party Payments,REVENUE
Wiltshire,http://opendatacommunities.org/id/unitary-authority/wiltshire,08/04/2016,1901696235,850.00,Abbey Taxis (Swindon) Ltd ,100920,SN2 ,Neighbourhood & Planning,Mainstream Secondary,Transport Contracts,Third Party Payments,REVENUE
Wiltshire,http://opendatacommunities.org/id/unitary-authority/wiltshire,08/04/2016,1901696236,343.08,Abbey Taxis (Swindon) Ltd ,100920,SN2 ,Children & Education,LAC & 16+ North,Transport Contracts,Third Party Payments,REVENUE
Wiltshire,http://opendatacommunities.org/id/unitary-authority/wiltshire,08/04/2016,1901696237,540.00,Abbey Taxis (Swindon) Ltd ,100920,SN2 ,Neighbourhood & Planning,Mainstream Primary,Transport Contracts,Third Party Payments,REVENUE
Wiltshire,http://opendatacommunities.org/id/unitary-authority/wiltshire,08/04/2016,1901696237,2160.00,Abbey Taxis (Swindon) Ltd ,100920,SN2 ,Neighbourhood & Planning,SEN Primary,Transport Contracts,Third Party Payments,REVENUE
Wiltshire,http://opendatacommunities.org/id/unitary-authority/wiltshire,08/04/2016,1901696238,1440.00,Abbey Taxis (Swindon) Ltd ,100920,SN2 ,Neighbourhood & Planning,SEN Primary,Transport Contracts,Third Party Payments,REVENUE
Wiltshire,http://opendatacommunities.org/id/unitary-authority/wiltshire,08/04/2016,1901696239,765.00,Abbey Taxis (Swindon) Ltd ,100920,SN2 ,Neighbourhood & Planning,SEN Secondary,Transport Contracts,Third Party Payments,REVENUE
Wiltshire,http://opendatacommunities.org/id/unitary-authority/wiltshire,08/04/2016,1901696239,765.00,Abbey Taxis (Swindon) Ltd ,100920,SN2 ,Neighbourhood & Planning,SEN 16+ Secondary,Transport Contracts,Third Party Payments,REVENUE
Wiltshire,http://opendatacommunities.org/id/unitary-authority/wiltshire,08/04/2016,1901696240,643.66,Abbey Taxis (Swindon) Ltd ,100920,SN2 ,Neighbourhood & Planning,SEN Secondary,Transport Contracts,Third Party Payments,REVENUE
Wiltshire,http://opendatacommunities.org/id/unitary-authority/wiltshire,08/04/2016,1901696240,1022.34,Abbey Taxis (Swindon) Ltd ,100920,SN2 ,Neighbourhood & Planning,SEN Primary,Transport Contracts,Third Party Payments,REVENUE
Wiltshire,http://opendatacommunities.org/id/unitary-authority/wiltshire,08/04/2016,1901696241,1190.00,Abbey Taxis (Swindon) Ltd ,100920,SN2 ,Neighbourhood & Planning,SEN Primary,Transport Contracts,Third Party Payments,REVENUE
Wiltshire,http://opendatacommunities.org/id/unitary-authority/wiltshire,08/04/2016,1901696242,2100.00,Abbey Taxis (Swindon) Ltd ,100920,SN2 ,Neighbourhood & Planning,SEN Primary,Transport Contracts,Third Party Payments,REVENUE
Wiltshire,http://opendatacommunities.org/id/unitary-authority/wiltshire,08/04/2016,1901696243,336.00,Abbey Taxis (Swindon) Ltd ,100920,SN2 ,Neighbourhood & Planning,SEN 16+ Secondary,Transport Contracts,Third Party Payments,REVENUE
Wiltshire,http://opendatacommunities.org/id/unitary-authority/wiltshire,08/04/2016,1901696243,336.00,Abbey Taxis (Swindon) Ltd ,100920,SN2 ,Neighbourhood & Planning,SEN 16+ FE Colleges,Transport Contracts,Third Party Payments,REVENUE
Wiltshire,http://opendatacommunities.org/id/unitary-authority/wiltshire,08/04/2016,1901696244,510.00,Abbey Taxis (Swindon) Ltd ,100920,SN2 ,Neighbourhood & Planning,SEN 16+ FE Colleges,Transport Contracts,Third Party Payments,REVENUE
Wiltshire,http://opendatacommunities.org/id/unitary-authority/wiltshire,08/04/2016,1901696245,1980.00,Abbey Taxis (Swindon) Ltd ,100920,SN2 ,Neighbourhood & Planning,SEN Secondary,Transport Contracts,Third Party Payments,REVENUE
Wiltshire,http://opendatacommunities.org/id/unitary-authority/wiltshire,08/04/2016,1901696246,660.00,Abbey Taxis (Swindon) Ltd ,100920,SN2 ,Neighbourhood & Planning,SEN Primary,Transport Contracts,Third Party Payments,REVENUE
Wiltshire,http://opendatacommunities.org/id/unitary-authority/wiltshire,08/04/2016,1901696247,675.00,Abbey Taxis (Swindon) Ltd ,100920,SN2 ,Neighbourhood & Planning,SEN Primary,Transport Contracts,Third Party Payments,REVENUE
Wiltshire,http://opendatacommunities.org/id/unitary-authority/wiltshire,08/04/2016,1901696259,2016.00,Abbey Taxis (Swindon) Ltd ,100920,SN2 ,Neighbourhood & Planning,SEN 16+ Secondary,Transport Contracts,Third Party Payments,REVENUE
Wiltshire,http://opendatacommunities.org/id/unitary-authority/wiltshire,08/04/2016,1901696269,585.00,Abbey Taxis (Swindon) Ltd ,100920,SN2 ,Community Services,CTPLD Place CIC U65,Transport Contracts,Third Party Payments,REVENUE
Wiltshire,http://opendatacommunities.org/id/unitary-authority/wiltshire,08/04/2016,1901696276,1700.00,Abbey Taxis (Swindon) Ltd ,100920,SN2 ,Neighbourhood & Planning,SEN Primary,Transport Contracts,Third Party Payments,REVENUE
Wiltshire,http://opendatacommunities.org/id/unitary-authority/wiltshire,08/04/2016,1901696277,748.00,Abbey Taxis (Swindon) Ltd ,100920,SN2 ,Neighbourhood & Planning,SEN Secondary,Transport Contracts,Third Party Payments,REVENUE
Wiltshire,http://opendatacommunities.org/id/unitary-authority/wiltshire,08/04/2016,1901696277,1122.00,Abbey Taxis (Swindon) Ltd ,100920,SN2 ,Neighbourhood & Planning,SEN Primary,Transport Contracts,Third Party Payments,REVENUE
Wiltshire,http://opendatacommunities.org/id/unitary-authority/wiltshire,18/04/2016,1901705544,450.00,Abbey Taxis (Swindon) Ltd ,100920,SN2 ,Neighbourhood & Planning,Mainstream Primary,Transport Contracts,Third Party Payments,REVENUE
Wiltshire,http://opendatacommunities.org/id/unitary-authority/wiltshire,18/04/2016,1901705544,1800.00,Abbey Taxis (Swindon) Ltd ,100920,SN2 ,Neighbourhood & Planning,SEN Primary,Transport Contracts,Third Party Payments,REVENUE
Wiltshire,http://opendatacommunities.org/id/unitary-authority/wiltshire,19/04/2016,1901706516,542.94,Abbey Taxis (Swindon) Ltd ,100920,SN2 ,Neighbourhood & Planning,SEN 16+ FE Colleges,Transport Contracts,Third Party Payments,REVENUE
Wiltshire,http://opendatacommunities.org/id/unitary-authority/wiltshire,19/04/2016,1901706516,877.06,Abbey Taxis (Swindon) Ltd ,100920,SN2 ,Children & Education,S&W 0-25 SEND Locali,Transport Contracts,Third Party Payments,REVENUE
Wiltshire,http://opendatacommunities.org/id/unitary-authority/wiltshire,19/04/2016,1901706519,1260.00,Abbey Taxis (Swindon) Ltd ,100920,SN2 ,Neighbourhood & Planning,Mainstream Primary,Transport Contracts,Third Party Payments,REVENUE
Wiltshire,http://opendatacommunities.org/id/unitary-authority/wiltshire,20/04/2016,1901707409,1728.00,Abbey Taxis (Swindon) Ltd ,100920,SN2 ,Neighbourhood & Planning,SEN Secondary,Transport Contracts,Third Party Payments,REVENUE
Wiltshire,http://opendatacommunities.org/id/unitary-authority/wiltshire,20/04/2016,1901707410,2175.12,Abbey Taxis (Swindon) Ltd ,100920,SN2 ,Neighbourhood & Planning,SEN Secondary,Transport Contracts,Third Party Payments,REVENUE
Wiltshire,http://opendatacommunities.org/id/unitary-authority/wiltshire,22/04/2016,1901708465,1897.50,Abbey Taxis (Swindon) Ltd ,100920,SN2 ,Neighbourhood & Planning,SEN Secondary,Transport Contracts,Third Party Payments,REVENUE
Wiltshire,http://opendatacommunities.org/id/unitary-authority/wiltshire,22/04/2016,1901708466,413.04,Abbey Taxis (Swindon) Ltd ,100920,SN2 ,Neighbourhood & Planning,SEN Secondary,Transport Contracts,Third Party Payments,REVENUE
Wiltshire,http://opendatacommunities.org/id/unitary-authority/wiltshire,22/04/2016,1901708466,1431.96,Abbey Taxis (Swindon) Ltd ,100920,SN2 ,Neighbourhood & Planning,Mainstream Secondary,Transport Contracts,Third Party Payments,REVENUE
Wiltshire,http://opendatacommunities.org/id/unitary-authority/wiltshire,25/04/2016,1901708929,1155.00,Abbey Taxis (Swindon) Ltd ,100920,SN2 ,Neighbourhood & Planning,SEN Primary,Transport Contracts,Third Party Payments,REVENUE
Wiltshire,http://opendatacommunities.org/id/unitary-authority/wiltshire,27/04/2016,1901709901,645.40,Abbey Taxis (Swindon) Ltd ,100920,SN2 ,Neighbourhood & Planning,SEN Secondary,Transport Contracts,Third Party Payments,REVENUE
Wiltshire,http://opendatacommunities.org/id/unitary-authority/wiltshire,27/04/2016,1901709904,412.20,Abbey Taxis (Swindon) Ltd ,100920,SN2 ,Neighbourhood & Planning,Mainstream Primary,Transport Contracts,Third Party Payments,REVENUE
Wiltshire,http://opendatacommunities.org/id/unitary-authority/wiltshire,27/04/2016,1901709904,412.20,Abbey Taxis (Swindon) Ltd ,100920,SN2 ,Neighbourhood & Planning,SEN Secondary,Transport Contracts,Third Party Payments,REVENUE
Wiltshire,http://opendatacommunities.org/id/unitary-authority/wiltshire,27/04/2016,1901709904,1236.60,Abbey Taxis (Swindon) Ltd ,100920,SN2 ,Neighbourhood & Planning,SEN Primary,Transport Contracts,Third Party Payments,REVENUE
Wiltshire,http://opendatacommunities.org/id/unitary-authority/wiltshire,27/04/2016,1901709905,271.60,Abbey Taxis (Swindon) Ltd ,100920,SN2 ,Neighbourhood & Planning,RES Primary,Transport Contracts,Third Party Payments,REVENUE
Wiltshire,http://opendatacommunities.org/id/unitary-authority/wiltshire,14/04/2016,1901704894,990.00,Abbey Taxis Ltd ,101080,BA2 ,Neighbourhood & Planning,SEN Secondary,Transport Contracts,Third Party Payments,REVENUE
Wiltshire,http://opendatacommunities.org/id/unitary-authority/wiltshire,04/04/2016,5106855804,268.38,Abicare Services Ltd Homecare ,110031,SP2 ,Community Services,East Locality OP,Adult Domiciliary Care - Spot,Third Party Payments,REVENUE
Wiltshire,http://opendatacommunities.org/id/unitary-authority/wiltshire,04/04/2016,5106855805,343.98,Abicare Services Ltd Homecare ,110031,SP2 ,Community Services,East Locality OP,Adult Domiciliary Care - Spot,Third Party Payments,REVENUE
Wiltshire,http://opendatacommunities.org/id/unitary-authority/wiltshire,05/04/2016,5106855969,525.31,Abicare Services Ltd Homecare ,110031,SP2 ,Community Services,West Locality OP,Adult Domiciliary Care - Spot Contribution,Income,REVENUE
Wiltshire,http://opendatacommunities.org/id/unitary-authority/wiltshire,05/04/2016,5106855980,525.31,Abicare Services Ltd Homecare ,110031,SP2 ,Community Services,West Locality OP,Adult Domiciliary Care - Spot Contribution,Income,REVENUE
Wiltshire,http://opendatacommunities.org/id/unitary-authority/wiltshire,05/04/2016,5106855981,337.24,Abicare Services Ltd Homecare ,110031,SP2 ,Community Services,South Locality OP,Adult Domiciliary Care - Spot,Third Party Payments,REVENUE
Wiltshire,http://opendatacommunities.org/id/unitary-authority/wiltshire,05/04/2016,5106856007,404.67,Abicare Services Ltd Homecare ,110031,SP2 ,Community Services,South Locality OP,Adult Domiciliary Care - Spot,Third Party Payments,REVENUE
Wiltshire,http://opendatacommunities.org/id/unitary-authority/wiltshire,05/04/2016,5106856008,421.89,Abicare Services Ltd Homecare ,110031,SP2 ,Community Services,South Locality OP,Adult Domiciliary Care - Spot,Third Party Payments,REVENUE
Wiltshire,http://opendatacommunities.org/id/unitary-authority/wiltshire,19/04/2016,5106856342,410.34,Abicare Services Ltd Homecare ,110031,SP2 ,Community Services,CTPLD Place CIC U65,Adult Domiciliary Care - Spot Contribution,Income,REVENUE
Wiltshire,http://opendatacommunities.org/id/unitary-authority/wiltshire,08/04/2016,5106863025,401.21,Abicare Services Ltd Homecare ,110031,SP2 ,Community Services,MH OP North Locality,Adult Domiciliary Care - Spot Contribution,Income,REVENUE
Wiltshire,http://opendatacommunities.org/id/unitary-authority/wiltshire,08/04/2016,5106863044,343.98,Abicare Services Ltd Homecare ,110031,SP2 ,Community Services,East Locality OP,Adult Domiciliary Care - Spot,Third Party Payments,REVENUE
Wiltshire,http://opendatacommunities.org/id/unitary-authority/wiltshire,08/04/2016,5106863046,531.62,Abicare Services Ltd Homecare ,110031,SP2 ,Community Services,West Locality OP,Adult Domiciliary Care - Spot Contribution,Income,REVENUE
Wiltshire,http://opendatacommunities.org/id/unitary-authority/wiltshire,13/04/2016,5106864062,756.05,Abicare Services Ltd Homecare ,110031,SP2 ,Community Services,MH OP North Locality,Adult Domiciliary care - Live in contribution,Income,REVENUE
Wiltshire,http://opendatacommunities.org/id/unitary-authority/wiltshire,20/04/2016,5106865313,317.26,Abicare Services Ltd Homecare ,110031,SP2 ,Community Services,South Locality OP,Adult Domiciliary Care - Spot,Third Party Payments,REVENUE
Wiltshire,http://opendatacommunities.org/id/unitary-authority/wiltshire,22/04/2016,5106866252,402.18,Abicare Services Ltd Homecare ,110031,SP2 ,Community Services,CTPLD Place CIC U65,Adult Domiciliary Care - Spot Contribution,Income,REVENUE
Wiltshire,http://opendatacommunities.org/id/unitary-authority/wiltshire,22/04/2016,5106866288,723.38,Abicare Services Ltd Homecare ,110031,SP2 ,Community Services,CTPLD Place CIC U65,Adult Domiciliary Care - Live in Care,Third Party Payments,REVENUE
Wiltshire,http://opendatacommunities.org/id/unitary-authority/wiltshire,22/04/2016,5106866323,402.18,Abicare Services Ltd Homecare ,110031,SP2 ,Community Services,CTPLD Place CIC U65,Adult Domiciliary Care - Spot Contribution,Income,REVENUE
Wiltshire,http://opendatacommunities.org/id/unitary-authority/wiltshire,22/04/2016,5106866335,723.38,Abicare Services Ltd Homecare ,110031,SP2 ,Community Services,CTPLD Place CIC U65,Adult Domiciliary Care - Live in Care,Third Party Payments,REVENUE
Wiltshire,http://opendatacommunities.org/id/unitary-authority/wiltshire,22/04/2016,5106866375,723.38,Abicare Services Ltd Homecare ,110031,SP2 ,Community Services,CTPLD Place CIC U65,Adult Domiciliary Care - Live in Care,Third Party Payments,REVENUE
Wiltshire,http://opendatacommunities.org/id/unitary-authority/wiltshire,22/04/2016,5106866388,352.62,Abicare Services Ltd Homecare ,110031,SP2 ,Community Services,Downton,Adult Domiciliary Care - Spot,Third Party Payments,REVENUE
Wiltshire,http://opendatacommunities.org/id/unitary-authority/wiltshire,25/04/2016,5106866407,525.31,Abicare Services Ltd Homecare ,110031,SP2 ,Community Services,West Locality OP,Adult Domiciliary Care - Spot Contribution,Income,REVENUE
Wiltshire,http://opendatacommunities.org/id/unitary-authority/wiltshire,25/04/2016,5106866409,756.05,Abicare Services Ltd Homecare ,110031,SP2 ,Community Services,MH OP North Locality,Adult Domiciliary care - Live in contribution,Income,REVENUE
Wiltshire,http://opendatacommunities.org/id/unitary-authority/wiltshire,25/04/2016,5106866581,411.39,Abicare Services Ltd Homecare ,110031,SP2 ,Community Services,South Locality OP,Adult Domiciliary Care - Spot,Third Party Payments,REVENUE
Wiltshire,http://opendatacommunities.org/id/unitary-authority/wiltshire,29/04/2016,5106870262,525.31,Abicare Services Ltd Homecare ,110031,SP2 ,Community Services,West Locality OP,Adult Domiciliary Care - Spot Contribution,Income,REVENUE
Wiltshire,http://opendatacommunities.org/id/unitary-authority/wiltshire,29/04/2016,5106870282,756.05,Abicare Services Ltd Homecare ,110031,SP2 ,Community Services,MH OP North Locality,Adult Domiciliary care - Live in contribution,Income,REVENUE
Wiltshire,http://opendatacommunities.org/id/unitary-authority/wiltshire,29/04/2016,5106870318,723.38,Abicare Services Ltd Homecare ,110031,SP2 ,Community Services,CTPLD Place CIC U65,Adult Domiciliary Care - Live in Care,Third Party Payments,REVENUE
Wiltshire,http://opendatacommunities.org/id/unitary-authority/wiltshire,01/04/2016,5106846705,723.38,Abicare Services Ltd Live in Care. ,113071,SP2 ,Community Services,CTPLD Place CIC U65,Adult Domiciliary Care - Live in Care,Third Party Payments,REVENUE
Wiltshire,http://opendatacommunities.org/id/unitary-authority/wiltshire,01/04/2016,5106855308,411.39,Abicare Services Ltd Live in Care. ,113071,SP2 ,Community Services,South Locality OP,Adult Domiciliary Care - Live in Care,Third Party Payments,REVENUE
Wiltshire,http://opendatacommunities.org/id/unitary-authority/wiltshire,22/04/2016,5106855803,723.38,Abicare Services Ltd Live in Care. ,113071,SP2 ,Community Services,CTPLD Place CIC U65,Adult Domiciliary Care - Live in Care,Third Party Payments,REVENUE
Wiltshire,http://opendatacommunities.org/id/unitary-authority/wiltshire,05/04/2016,5106856033,822.78,Abicare Services Ltd Live in Care. ,113071,SP2 ,Community Services,South Locality OP,Adult Domiciliary Care - Live in Care,Third Party Payments,REVENUE
Wiltshire,http://opendatacommunities.org/id/unitary-authority/wiltshire,05/04/2016,5106856034,764.01,Abicare Services Ltd Live in Care. ,113071,SP2 ,Community Services,South Locality OP,Adult Domiciliary Care - Live in Care,Third Party Payments,REVENUE
Wiltshire,http://opendatacommunities.org/id/unitary-authority/wiltshire,05/04/2016,5106856035,822.78,Abicare Services Ltd Live in Care. ,113071,SP2 ,Community Services,South Locality OP,Adult Domiciliary Care - Live in Care,Third Party Payments,REVENUE
Wiltshire,http://opendatacommunities.org/id/unitary-authority/wiltshire,05/04/2016,5106856037,822.78,Abicare Services Ltd Live in Care. ,113071,SP2 ,Community Services,South Locality OP,Adult Domiciliary Care - Live in Care,Third Party Payments,REVENUE
Wiltshire,http://opendatacommunities.org/id/unitary-authority/wiltshire,05/04/2016,5106856082,756.05,Abicare Services Ltd Live in Care. ,113071,SP2 ,Community Services,MH OP North Locality,Adult Domiciliary care - Live in contribution,Income,REVENUE
Wiltshire,http://opendatacommunities.org/id/unitary-authority/wiltshire,05/04/2016,5106856083,756.05,Abicare Services Ltd Live in Care. ,113071,SP2 ,Community Services,MH OP North Locality,Adult Domiciliary care - Live in contribution,Income,REVENUE
Wiltshire,http://opendatacommunities.org/id/unitary-authority/wiltshire,05/04/2016,5106856084,768.48,Abicare Services Ltd Live in Care. ,113071,SP2 ,Community Services,OVA North Locality,Adult Domiciliary care - Live in contribution,Income,REVENUE
Wiltshire,http://opendatacommunities.org/id/unitary-authority/wiltshire,05/04/2016,5106856085,768.48,Abicare Services Ltd Live in Care. ,113071,SP2 ,Community Services,OVA North Locality,Adult Domiciliary care - Live in contribution,Income,REVENUE
Wiltshire,http://opendatacommunities.org/id/unitary-authority/wiltshire,08/04/2016,5106856086,723.38,Abicare Services Ltd Live in Care. ,113071,SP2 ,Community Services,CTPLD Place CIC U65,Adult Domiciliary Care - Live in Care,Third Party Payments,REVENUE
Wiltshire,http://opendatacommunities.org/id/unitary-authority/wiltshire,05/04/2016,5106856087,708.90,Abicare Services Ltd Live in Care. ,113071,SP2 ,Community Services,East Locality OP,Adult Domiciliary care - Live in contribution,Income,REVENUE
Wiltshire,http://opendatacommunities.org/id/unitary-authority/wiltshire,05/04/2016,5106856088,708.90,Abicare Services Ltd Live in Care. ,113071,SP2 ,Community Services,East Locality OP,Adult Domiciliary care - Live in contribution,Income,REVENUE
Wiltshire,http://opendatacommunities.org/id/unitary-authority/wiltshire,15/04/2016,5106856275,723.38,Abicare Services Ltd Live in Care. ,113071,SP2 ,Community Services,CTPLD Place CIC U65,Adult Domiciliary Care - Live in Care,Third Party Payments,REVENUE
Wiltshire,http://opendatacommunities.org/id/unitary-authority/wiltshire,06/04/2016,5106856421,708.90,Abicare Services Ltd Live in Care. ,113071,SP2 ,Community Services,East Locality OP,Adult Domiciliary care - Live in contribution,Income,REVENUE
Wiltshire,http://opendatacommunities.org/id/unitary-authority/wiltshire,06/04/2016,5106856422,1542.38,Abicare Services Ltd Live in Care. ,113071,SP2 ,Community Services,MH AOWA North Locali,Adult Domiciliary Care - Live in Care,Third Party Payments,REVENUE
Wiltshire,http://opendatacommunities.org/id/unitary-authority/wiltshire,06/04/2016,5106856423,716.10,Abicare Services Ltd Live in Care. ,113071,SP2 ,Community Services,BoA Cluster,Adult Domiciliary Care - Live in Care,Third Party Payments,REVENUE
Wiltshire,http://opendatacommunities.org/id/unitary-authority/wiltshire,06/04/2016,5106856441,768.48,Abicare Services Ltd Live in Care. ,113071,SP2 ,Community Services,OVA North Locality,Adult Domiciliary care - Live in contribution,Income,REVENUE
Wiltshire,http://opendatacommunities.org/id/unitary-authority/wiltshire,06/04/2016,5106856442,756.05,Abicare Services Ltd Live in Care. ,113071,SP2 ,Community Services,MH OP North Locality,Adult Domiciliary care - Live in contribution,Income,REVENUE
Wiltshire,http://opendatacommunities.org/id/unitary-authority/wiltshire,08/04/2016,5106863014,716.10,Abicare Services Ltd Live in Care. ,113071,SP2 ,Community Services,Endless/St.A,Adult Domiciliary Care - Live in Care,Third Party Payments,REVENUE
Wiltshire,http://opendatacommunities.org/id/unitary-authority/wiltshire,08/04/2016,5106863016,771.19,Abicare Services Ltd Live in Care. ,113071,SP2 ,Community Services,Endless/St.A,Adult Domiciliary Care - Live in Care,Third Party Payments,REVENUE
Wiltshire,http://opendatacommunities.org/id/unitary-authority/wiltshire,08/04/2016,5106863017,771.19,Abicare Services Ltd Live in Care. ,113071,SP2 ,Community Services,Endless/St.A,Adult Domiciliary Care - Live in Care,Third Party Payments,REVENUE
Wiltshire,http://opendatacommunities.org/id/unitary-authority/wiltshire,08/04/2016,5106863019,771.19,Abicare Services Ltd Live in Care. ,113071,SP2 ,Community Services,Endless/St.A,Adult Domiciliary Care - Live in Care,Third Party Payments,REVENUE
Wiltshire,http://opendatacommunities.org/id/unitary-authority/wiltshire,13/04/2016,5106863706,768.48,Abicare Services Ltd Live in Care. ,113071,SP2 ,Community Services,OVA North Locality,Adult Domiciliary care - Live in contribution,Income,REVENUE
Wiltshire,http://opendatacommunities.org/id/unitary-authority/wiltshire,13/04/2016,5106864060,822.78,Abicare Services Ltd Live in Care. ,113071,SP2 ,Community Services,Orchard,Adult Domiciliary Care - Live in Care,Third Party Payments,REVENUE
Wiltshire,http://opendatacommunities.org/id/unitary-authority/wiltshire,13/04/2016,5106864061,619.59,Abicare Services Ltd Live in Care. ,113071,SP2 ,Community Services,East Locality OP,Adult Domiciliary care - Live in contribution,Income,REVENUE
Wiltshire,http://opendatacommunities.org/id/unitary-authority/wiltshire,18/04/2016,5106864945,619.59,Abicare Services Ltd Live in Care. ,113071,SP2 ,Community Services,East Locality OP,Adult Domiciliary Care - Live in Care,Third Party Payments,REVENUE
Wiltshire,http://opendatacommunities.org/id/unitary-authority/wiltshire,18/04/2016,5106864946,771.19,Abicare Services Ltd Live in Care. ,113071,SP2 ,Community Services,East Locality OP,Adult Domiciliary Care - Live in Care,Third Party Payments,REVENUE
Wiltshire,http://opendatacommunities.org/id/unitary-authority/wiltshire,18/04/2016,5106864947,771.19,Abicare Services Ltd Live in Care. ,113071,SP2 ,Community Services,East Locality OP,Adult Domiciliary Care - Live in Care,Third Party Payments,REVENUE
Wiltshire,http://opendatacommunities.org/id/unitary-authority/wiltshire,18/04/2016,5106864948,771.19,Abicare Services Ltd Live in Care. ,113071,SP2 ,Community Services,East Locality OP,Adult Domiciliary Care - Live in Care,Third Party Payments,REVENUE
Wiltshire,http://opendatacommunities.org/id/unitary-authority/wiltshire,18/04/2016,5106864949,771.19,Abicare Services Ltd Live in Care. ,113071,SP2 ,Community Services,East Locality OP,Adult Domiciliary Care - Live in Care,Third Party Payments,REVENUE
Wiltshire,http://opendatacommunities.org/id/unitary-authority/wiltshire,18/04/2016,5106864960,771.19,Abicare Services Ltd Live in Care. ,113071,SP2 ,Community Services,East Locality OP,Adult Domiciliary Care - Live in Care,Third Party Payments,REVENUE
Wiltshire,http://opendatacommunities.org/id/unitary-authority/wiltshire,18/04/2016,5106864961,771.19,Abicare Services Ltd Live in Care. ,113071,SP2 ,Community Services,East Locality OP,Adult Domiciliary Care - Live in Care,Third Party Payments,REVENUE
Wiltshire,http://opendatacommunities.org/id/unitary-authority/wiltshire,18/04/2016,5106864962,771.19,Abicare Services Ltd Live in Care. ,113071,SP2 ,Community Services,East Locality OP,Adult Domiciliary Care - Live in Care,Third Party Payments,REVENUE
Wiltshire,http://opendatacommunities.org/id/unitary-authority/wiltshire,18/04/2016,5106864963,771.19,Abicare Services Ltd Live in Care. ,113071,SP2 ,Community Services,East Locality OP,Adult Domiciliary Care - Live in Care,Third Party Payments,REVENUE
Wiltshire,http://opendatacommunities.org/id/unitary-authority/wiltshire,18/04/2016,5106864964,771.19,Abicare Services Ltd Live in Care. ,113071,SP2 ,Community Services,East Locality OP,Adult Domiciliary Care - Live in Care,Third Party Payments,REVENUE
Wiltshire,http://opendatacommunities.org/id/unitary-authority/wiltshire,18/04/2016,5106864965,771.19,Abicare Services Ltd Live in Care. ,113071,SP2 ,Community Services,East Locality OP,Adult Domiciliary Care - Live in Care,Third Party Payments,REVENUE
Wiltshire,http://opendatacommunities.org/id/unitary-authority/wiltshire,18/04/2016,5106864967,771.19,Abicare Services Ltd Live in Care. ,113071,SP2 ,Community Services,East Locality OP,Adult Domiciliary Care - Live in Care,Third Party Payments,REVENUE
Wiltshire,http://opendatacommunities.org/id/unitary-authority/wiltshire,18/04/2016,5106864968,822.78,Abicare Services Ltd Live in Care. ,113071,SP2 ,Community Services,South Locality OP,Adult Domiciliary Care - Live in Care,Third Party Payments,REVENUE
Wiltshire,http://opendatacommunities.org/id/unitary-authority/wiltshire,21/04/2016,5106866124,822.78,Abicare Services Ltd Live in Care. ,113071,SP2 ,Community Services,South Locality OP,Adult Domiciliary Care - Live in Care,Third Party Payments,REVENUE
Wiltshire,http://opendatacommunities.org/id/unitary-authority/wiltshire,22/04/2016,5106866271,771.19,Abicare Services Ltd Live in Care. ,113071,SP2 ,Community Services,BoA Cluster,Adult Domiciliary Care - Live in Care,Third Party Payments,REVENUE
Wiltshire,http://opendatacommunities.org/id/unitary-authority/wiltshire,22/04/2016,5106866274,822.78,Abicare Services Ltd Live in Care. ,113071,SP2 ,Community Services,Orchard,Adult Domiciliary Care - Live in Care,Third Party Payments,REVENUE
Wiltshire,http://opendatacommunities.org/id/unitary-authority/wiltshire,22/04/2016,5106866285,1432.21,Abicare Services Ltd Live in Care. ,113071,SP2 ,Community Services,MH OP North Locality,Adult Domiciliary Care - Live in Care,Third Party Payments,REVENUE
Wiltshire,http://opendatacommunities.org/id/unitary-authority/wiltshire,22/04/2016,5106866286,1542.38,Abicare Services Ltd Live in Care. ,113071,SP2 ,Community Services,MH OP North Locality,Adult Domiciliary Care - Live in Care,Third Party Payments,REVENUE
Wiltshire,http://opendatacommunities.org/id/unitary-authority/wiltshire,22/04/2016,5106866287,708.90,Abicare Services Ltd Live in Care. ,113071,SP2 ,Community Services,East Locality OP,Adult Domiciliary care - Live in contribution,Income,REVENUE
Wiltshire,http://opendatacommunities.org/id/unitary-authority/wiltshire,22/04/2016,5106866319,771.19,Abicare Services Ltd Live in Care. ,113071,SP2 ,Community Services,BoA Cluster,Adult Domiciliary Care - Live in Care,Third Party Payments,REVENUE
Wiltshire,http://opendatacommunities.org/id/unitary-authority/wiltshire,22/04/2016,5106866321,768.48,Abicare Services Ltd Live in Care. ,113071,SP2 ,Community Services,OVA North Locality,Adult Domiciliary care - Live in contribution,Income,REVENUE
Wiltshire,http://opendatacommunities.org/id/unitary-authority/wiltshire,22/04/2016,5106866322,1542.38,Abicare Services Ltd Live in Care. ,113071,SP2 ,Community Services,MH OP North Locality,Adult Domiciliary Care - Live in Care,Third Party Payments,REVENUE
Wiltshire,http://opendatacommunities.org/id/unitary-authority/wiltshire,25/04/2016,5106866408,619.59,Abicare Services Ltd Live in Care. ,113071,SP2 ,Community Services,East Locality OP,Adult Domiciliary care - Live in contribution,Income,REVENUE
Wiltshire,http://opendatacommunities.org/id/unitary-authority/wiltshire,29/04/2016,5106870283,822.78,Abicare Services Ltd Live in Care. ,113071,SP2 ,Community Services,Orchard,Adult Domiciliary Care - Live in Care,Third Party Payments,REVENUE
Wiltshire,http://opendatacommunities.org/id/unitary-authority/wiltshire,29/04/2016,5106870284,768.48,Abicare Services Ltd Live in Care. ,113071,SP2 ,Community Services,OVA North Locality,Adult Domiciliary care - Live in contribution,Income,REVENUE
Wiltshire,http://opendatacommunities.org/id/unitary-authority/wiltshire,29/04/2016,5106870286,708.90,Abicare Services Ltd Live in Care. ,113071,SP2 ,Community Services,East Locality OP,Adult Domiciliary care - Live in contribution,Income,REVENUE
Wiltshire,http://opendatacommunities.org/id/unitary-authority/wiltshire,29/04/2016,5106870287,822.78,Abicare Services Ltd Live in Care. ,113071,SP2 ,Community Services,Orchard,Adult Domiciliary Care - Live in Care,Third Party Payments,REVENUE
Wiltshire,http://opendatacommunities.org/id/unitary-authority/wiltshire,06/04/2016,5106854900,1467.90,Ability Associates Ltd ,110033,SP3 ,Community Services,CTPLD Place CIC U65,Supported Living - Without SP payments,Third Party Payments,REVENUE
Wiltshire,http://opendatacommunities.org/id/unitary-authority/wiltshire,06/04/2016,5106854902,923.20,Ability Associates Ltd ,110033,SP3 ,Community Services,CTPLD Place CIC U65,Supported Living - Without SP payments,Third Party Payments,REVENUE
Wiltshire,http://opendatacommunities.org/id/unitary-authority/wiltshire,06/04/2016,5106859100,2311.50,Ability Associates Ltd ,110033,SP3 ,Community Services,CTPLD Place CIC U65,Adult Residential Placements - Spot Purchase,Third Party Payments,REVENUE
Wiltshire,http://opendatacommunities.org/id/unitary-authority/wiltshire,06/04/2016,5106859127,1667.70,Ability Associates Ltd ,110033,SP3 ,Community Services,CTPLD Place CIC U65,Adult Residential Placements - Spot Purchase,Third Party Payments,REVENUE
Wiltshire,http://opendatacommunities.org/id/unitary-authority/wiltshire,06/04/2016,5106859153,2334.90,Ability Associates Ltd ,110033,SP3 ,Community Services,CTPLD Place CIC U65,Adult Residential Placements - Spot Purchase,Third Party Payments,REVENUE
Wiltshire,http://opendatacommunities.org/id/unitary-authority/wiltshire,06/04/2016,5106859414,2421.30,Ability Associates Ltd ,110033,SP3 ,Community Services,CTPLD Place CIC U65,Adult Residential Placements - Spot Purchase,Third Party Payments,REVENUE
Wiltshire,http://opendatacommunities.org/id/unitary-authority/wiltshire,06/04/2016,5106857183,3400.00,ABLE ,110034,BA14,Community Services,MH AOWA North Locali,Adult Residential Placements - Spot Purchase,Third Party Payments,REVENUE
Wiltshire,http://opendatacommunities.org/id/unitary-authority/wiltshire,06/04/2016,5106858443,2772.20,ABLE ,110034,BA14,Community Services,MH AOWA North Locali,Adult Residential Placements - Spot Purchase,Third Party Payments,REVENUE
Wiltshire,http://opendatacommunities.org/id/unitary-authority/wiltshire,06/04/2016,5106858459,2527.04,ABLE ,110034,BA14,Community Services,MH OP North Locality,Adult Residential Placements - Spot Purchase,Third Party Payments,REVENUE
Wiltshire,http://opendatacommunities.org/id/unitary-authority/wiltshire,06/04/2016,5106858463,2844.12,ABLE ,110034,BA14,Community Services,MH AOWA North Locali,Adult Residential Placements - Spot Purchase,Third Party Payments,REVENUE
Wiltshire,http://opendatacommunities.org/id/unitary-authority/wiltshire,05/04/2016,5106855954,25911.04,Abritas Ltd ,110036,RG1 ,Resources,Applications SuppLOB,Software Purchases,Supplies and Services,REVENUE
Wiltshire,http://opendatacommunities.org/id/unitary-authority/wiltshire,14/04/2016,1901692135,5852.47,AC  and  MS Ltd ,101175,SS8 ,Resources,FM � Service Contrac,Preventative Property Maintenance,Premises Related,REVENUE
Wiltshire,http://opendatacommunities.org/id/unitary-authority/wiltshire,14/04/2016,1901692136,1413.84,AC  and  MS Ltd ,101175,SS8 ,Resources,FM � Service Contrac,Preventative Property Maintenance,Premises Related,REVENUE
Wiltshire,http://opendatacommunities.org/id/unitary-authority/wiltshire,13/04/2016,1901692161,725.00,AC  and  MS Ltd ,101175,SS8 ,Wiltshire Council,Wiltshire Council,Buildings Minor Alterations,Premises Related,CAPITAL
Wiltshire,http://opendatacommunities.org/id/unitary-authority/wiltshire,13/04/2016,1901692178,8128.00,AC  and  MS Ltd ,101175,SS8 ,Resources,Other Comm Assets,Preventative Property Maintenance,Premises Related,REVENUE
Wiltshire,http://opendatacommunities.org/id/unitary-authority/wiltshire,22/04/2016,1901692901,5960.00,AC  and  MS Ltd ,101175,SS8 ,Resources,Unoccupied Sites,Preventative Property Maintenance,Premises Related,REVENUE
Wiltshire,http://opendatacommunities.org/id/unitary-authority/wiltshire,26/04/2016,1901695707,270.00,AC  and  MS Ltd ,101175,SS8 ,Wiltshire Council,Wiltshire Council,Payments to Contractors - Other,Third Party Payments,CAPITAL
Wiltshire,http://opendatacommunities.org/id/unitary-authority/wiltshire,01/04/2016,5106839602,693.00,AC  and  MS Ltd ,101175,SS8 ,Wiltshire Council,Wiltshire Council,Premises Related Other Maintenance Costs,Premises Related,CAPITAL
Wiltshire,http://opendatacommunities.org/id/unitary-authority/wiltshire,05/04/2016,5106847973,450.00,AC  and  MS Ltd ,101175,SS8 ,Wiltshire Council,Wiltshire Council,Premises Related Other Maintenance Costs,Premises Related,CAPITAL
Wiltshire,http://opendatacommunities.org/id/unitary-authority/wiltshire,15/04/2016,5106847975,578.00,AC  and  MS Ltd ,101175,SS8 ,Wiltshire Council,Wiltshire Council,Premises Related Other Maintenance Costs,Premises Related,CAPITAL
Wiltshire,http://opendatacommunities.org/id/unitary-authority/wiltshire,06/04/2016,5106847979,825.00,AC  and  MS Ltd ,101175,SS8 ,Wiltshire Council,Wiltshire Council,Premises Related Other Maintenance Costs,Premises Related,CAPITAL
Wiltshire,http://opendatacommunities.org/id/unitary-authority/wiltshire,06/04/2016,5106847990,450.00,AC  and  MS Ltd ,101175,SS8 ,Wiltshire Council,Wiltshire Council,Premises Related Other Maintenance Costs,Premises Related,CAPITAL
Wiltshire,http://opendatacommunities.org/id/unitary-authority/wiltshire,06/04/2016,5106847991,420.00,AC  and  MS Ltd ,101175,SS8 ,Wiltshire Council,Wiltshire Council,Premises Related Other Maintenance Costs,Premises Related,CAPITAL
Wiltshire,http://opendatacommunities.org/id/unitary-authority/wiltshire,29/04/2016,5106864085,585.00,AC  and  MS Ltd ,101175,SS8 ,Wiltshire Council,Wiltshire Council,Premises Related Other Maintenance Costs,Premises Related,CAPITAL
Wiltshire,http://opendatacommunities.org/id/unitary-authority/wiltshire,22/04/2016,5106864097,441.00,AC  and  MS Ltd ,101175,SS8 ,Wiltshire Council,Wiltshire Council,Premises Related Other Maintenance Costs,Premises Related,CAPITAL
Wiltshire,http://opendatacommunities.org/id/unitary-authority/wiltshire,29/04/2016,5106864098,675.00,AC  and  MS Ltd ,101175,SS8 ,Wiltshire Council,Wiltshire Council,Premises Related Other Maintenance Costs,Premises Related,CAPITAL
Wiltshire,http://opendatacommunities.org/id/unitary-authority/wiltshire,22/04/2016,5106864099,350.00,AC  and  MS Ltd ,101175,SS8 ,Wiltshire Council,Wiltshire Council,Premises Related Other Maintenance Costs,Premises Related,CAPITAL
Wiltshire,http://opendatacommunities.org/id/unitary-authority/wiltshire,29/04/2016,5106864130,870.00,AC  and  MS Ltd ,101175,SS8 ,Wiltshire Council,Wiltshire Council,Premises Related Other Maintenance Costs,Premises Related,CAPITAL
Wiltshire,http://opendatacommunities.org/id/unitary-authority/wiltshire,29/04/2016,5106864131,705.00,AC  and  MS Ltd ,101175,SS8 ,Wiltshire Council,Wiltshire Council,Premises Related Other Maintenance Costs,Premises Related,CAPITAL
Wiltshire,http://opendatacommunities.org/id/unitary-authority/wiltshire,15/04/2016,5106864132,1050.00,AC  and  MS Ltd ,101175,SS8 ,Wiltshire Council,Wiltshire Council,Premises Related Other Maintenance Costs,Premises Related,CAPITAL
Wiltshire,http://opendatacommunities.org/id/unitary-authority/wiltshire,15/04/2016,5106864135,950.00,AC  and  MS Ltd ,101175,SS8 ,Wiltshire Council,Wiltshire Council,Premises Related Other Maintenance Costs,Premises Related,CAPITAL
Wiltshire,http://opendatacommunities.org/id/unitary-authority/wiltshire,22/04/2016,5106864136,693.00,AC  and  MS Ltd ,101175,SS8 ,Wiltshire Council,Wiltshire Council,Premises Related Other Maintenance Costs,Premises Related,CAPITAL
Wiltshire,http://opendatacommunities.org/id/unitary-authority/wiltshire,15/04/2016,5106864137,765.00,AC  and  MS Ltd ,101175,SS8 ,Wiltshire Council,Wiltshire Council,Premises Related Other Maintenance Costs,Premises Related,CAPITAL
Wiltshire,http://opendatacommunities.org/id/unitary-authority/wiltshire,22/04/2016,5106864139,950.00,AC  and  MS Ltd ,101175,SS8 ,Wiltshire Council,Wiltshire Council,Premises Related Other Maintenance Costs,Premises Related,CAPITAL
Wiltshire,http://opendatacommunities.org/id/unitary-authority/wiltshire,15/04/2016,5106856281,1504.00,Academy21 Ltd ,136859,SG1 ,Children & Education,EOTAS Service,Educational Fees,Supplies and Services,REVENUE
Wiltshire,http://opendatacommunities.org/id/unitary-authority/wiltshire,06/04/2016,5106856282,1927.00,Academy21 Ltd ,136859,SG1 ,Children & Education,EOTAS Service,Educational Fees,Supplies and Services,REVENUE
Wiltshire,http://opendatacommunities.org/id/unitary-authority/wiltshire,01/04/2016,5106855405,2803.19,Access Care Ltd ,110037,SP10,Community Services,OVA East Locality,Adult Domiciliary care - Live in contribution,Income,REVENUE
Wiltshire,http://opendatacommunities.org/id/unitary-authority/wiltshire,13/04/2016,1901704377,1710.00,Ace Cabs ,139613,BA12,Neighbourhood & Planning,SEN Primary,Transport Contracts,Third Party Payments,REVENUE
Wiltshire,http://opendatacommunities.org/id/unitary-authority/wiltshire,13/04/2016,1901704378,482.40,Ace Cabs ,139613,BA12,Neighbourhood & Planning,SEN 16+ FE Colleges,Transport Contracts,Third Party Payments,REVENUE
Wiltshire,http://opendatacommunities.org/id/unitary-authority/wiltshire,13/04/2016,1901704378,964.80,Ace Cabs ,139613,BA12,Neighbourhood & Planning,SEN Secondary,Transport Contracts,Third Party Payments,REVENUE
Wiltshire,http://opendatacommunities.org/id/unitary-authority/wiltshire,13/04/2016,1901704378,964.80,Ace Cabs ,139613,BA12,Neighbourhood & Planning,SEN 16+ Secondary,Transport Contracts,Third Party Payments,REVENUE
Wiltshire,http://opendatacommunities.org/id/unitary-authority/wiltshire,13/04/2016,1901704380,276.48,Ace Cabs ,139613,BA12,Neighbourhood & Planning,SEN Post 19,Transport Contracts,Third Party Payments,REVENUE
Wiltshire,http://opendatacommunities.org/id/unitary-authority/wiltshire,13/04/2016,1901704380,875.52,Ace Cabs ,139613,BA12,Neighbourhood & Planning,SEN 16+ Secondary,Transport Contracts,Third Party Payments,REVENUE
Wiltshire,http://opendatacommunities.org/id/unitary-authority/wiltshire,13/04/2016,1901704358,563.92,Ace Taxis Warminster Ace Taxis,131208,BA12,Neighbourhood & Planning,RES Secondary,Transport Contracts,Third Party Payments,REVENUE
Wiltshire,http://opendatacommunities.org/id/unitary-authority/wiltshire,13/04/2016,1901704359,795.00,Ace Taxis Warminster Ace Taxis,131208,BA12,Children & Education,BehaviourSuppCore,Transport Contracts,Third Party Payments,REVENUE
Wiltshire,http://opendatacommunities.org/id/unitary-authority/wiltshire,13/04/2016,1901704361,567.50,Ace Taxis Warminster Ace Taxis,131208,BA12,Community Services,CTPLD Place CIC U65,Transport Contracts,Third Party Payments,REVENUE
Wiltshire,http://opendatacommunities.org/id/unitary-authority/wiltshire,13/04/2016,1901704365,719.46,Ace Taxis Warminster Ace Taxis,131208,BA12,Neighbourhood & Planning,SEN 16+ Secondary,Transport Contracts,Third Party Payments,REVENUE
Wiltshire,http://opendatacommunities.org/id/unitary-authority/wiltshire,13/04/2016,1901704365,719.46,Ace Taxis Warminster Ace Taxis,131208,BA12,Neighbourhood & Planning,SEN 16+ FE Colleges,Transport Contracts,Third Party Payments,REVENUE
Wiltshire,http://opendatacommunities.org/id/unitary-authority/wiltshire,13/04/2016,1901704370,395.22,Ace Taxis Warminster Ace Taxis,131208,BA12,Neighbourhood & Planning,SEN 16+ FE Colleges,Transport Contracts,Third Party Payments,REVENUE
Wiltshire,http://opendatacommunities.org/id/unitary-authority/wiltshire,13/04/2016,1901704370,834.36,Ace Taxis Warminster Ace Taxis,131208,BA12,Neighbourhood & Planning,SEN 16+ Secondary,Transport Contracts,Third Party Payments,REVENUE
Wiltshire,http://opendatacommunities.org/id/unitary-authority/wiltshire,28/04/2016,5106850400,2110.00,Acer Tree Surgeons Ltd ,113296,BA13,Wiltshire Council,Wiltshire Council,Buildings Minor Alterations,Premises Related,CAPITAL
Wiltshire,http://opendatacommunities.org/id/unitary-authority/wiltshire,04/04/2016,5106855818,15987.50,Action For Children ,110045,WD18,Children & Education,Family&Parenting Sup,Other Social & Welfare Costs,Third Party Payments,REVENUE
Wiltshire,http://opendatacommunities.org/id/unitary-authority/wiltshire,04/04/2016,5106855823,15987.50,Action For Children ,110045,WD18,Children & Education,Family&Parenting Sup,Other Social & Welfare Costs,Third Party Payments,REVENUE
Wiltshire,http://opendatacommunities.org/id/unitary-authority/wiltshire,04/04/2016,5106855828,184000.00,Action For Children ,110045,WD18,Children & Education,Family&Parenting Sup,Other Social & Welfare Costs,Third Party Payments,REVENUE
Wiltshire,http://opendatacommunities.org/id/unitary-authority/wiltshire,15/04/2016,5106864854,18000.00,Action For Children ,110045,WD18,Children & Education,Adoption Services,Adoption Support,Third Party Payments,REVENUE
Wiltshire,http://opendatacommunities.org/id/unitary-authority/wiltshire,20/04/2016,5106855070,3000.00,Action For The River Kennet ,113309,SN8 ,Neighbourhood & Planning,N Wessex Downs AONB,Consultants� Fees,Supplies and Services,REVENUE
Wiltshire,http://opendatacommunities.org/id/unitary-authority/wiltshire,22/04/2016,5106866156,10935.65,Action on Addiction ,125931,SW4 ,Community Services,(8)FamiliesPlus-Othr,Substance Misuse - Payments to Contractors,Third Party Payments,REVENUE
Wiltshire,http://opendatacommunities.org/id/unitary-authority/wiltshire,06/04/2016,5106847465,3942.05,Action on Hearing Loss ,112215,EC1Y,Community Services,OVA North Locality,Adult Residential Placements - Spot Purchase,Third Party Payments,REVENUE
Wiltshire,http://opendatacommunities.org/id/unitary-authority/wiltshire,06/04/2016,5106855648,880.00,Action on Hearing Loss ,112215,EC1Y,Children & Education,Safeguarding Ass Est,Grants Paid to individuals for Tangible Benefits,Supplies and Services,REVENUE
Wiltshire,http://opendatacommunities.org/id/unitary-authority/wiltshire,06/04/2016,5106859745,1936.40,Action on Hearing Loss ,112215,EC1Y,Community Services,Malmesbury,Adult Residential Placements - Spot Purchase,Third Party Payments,REVENUE
Wiltshire,http://opendatacommunities.org/id/unitary-authority/wiltshire,06/04/2016,5106860393,2239.40,Action on Hearing Loss ,112215,EC1Y,Community Services,Orchard,Adult Residential Placements - Spot Purchase,Third Party Payments,REVENUE
Wiltshire,http://opendatacommunities.org/id/unitary-authority/wiltshire,06/04/2016,5106860887,1357.10,Action on Hearing Loss ,112215,EC1Y,Community Services,Calne,Adult Residential Placements - Spot Purchase,Third Party Payments,REVENUE
Wiltshire,http://opendatacommunities.org/id/unitary-authority/wiltshire,11/04/2016,5106863328,1472.25,Action on Hearing Loss ,112215,EC1Y,Community Services,OVA North Locality,Adult Day Care - Spot,Third Party Payments,REVENUE
Wiltshire,http://opendatacommunities.org/id/unitary-authority/wiltshire,22/04/2016,5106866301,480.00,Action on Hearing Loss ,112215,EC1Y,Community Services,OVA North Locality,Supported Living - Without SP payments,Third Party Payments,REVENUE
Wiltshire,http://opendatacommunities.org/id/unitary-authority/wiltshire,25/04/2016,5106866713,340.00,Action on Hearing Loss ,112215,EC1Y,Children & Education,Chld Protctn Conf Tm,Grants Paid to individuals for Tangible Benefits,Supplies and Services,REVENUE
Wiltshire,http://opendatacommunities.org/id/unitary-authority/wiltshire,25/04/2016,5106866714,405.00,Action on Hearing Loss ,112215,EC1Y,Children & Education,Safeguarding Ass Est,Grants Paid to individuals for Tangible Benefits,Supplies and Services,REVENUE
Wiltshire,http://opendatacommunities.org/id/unitary-authority/wiltshire,25/04/2016,5106866715,270.00,Action on Hearing Loss ,112215,EC1Y,Resources,HR Strategy & Policy,Grants Paid to individuals for Tangible Benefits,Supplies and Services,REVENUE
Wiltshire,http://opendatacommunities.org/id/unitary-authority/wiltshire,07/04/2016,5106850397,3757.48,Action on Hearing Loss ,120413,PE2 ,Community Services,Hearing & Vision,Client Aids and Adaptations,Third Party Payments,REVENUE
Wiltshire,http://opendatacommunities.org/id/unitary-authority/wiltshire,26/04/2016,5106856039,382.93,Adams Morey Ltd ,110053,SP2 ,Neighbourhood & Planning,Fleet Operations,Vehicle Parts,Transport Related,REVENUE
Wiltshire,http://opendatacommunities.org/id/unitary-authority/wiltshire,26/04/2016,5106856051,315.40,Adams Morey Ltd ,110053,SP2 ,Neighbourhood & Planning,Fleet Operations,Vehicle Parts,Transport Related,REVENUE
Wiltshire,http://opendatacommunities.org/id/unitary-authority/wiltshire,21/04/2016,5106856067,265.00,Adams Morey Ltd ,110053,SP2 ,Neighbourhood & Planning,Fleet Operations,Vehicle Parts,Transport Related,REVENUE
Wiltshire,http://opendatacommunities.org/id/unitary-authority/wiltshire,13/04/2016,5106861280,414.43,Adams Morey Ltd ,110053,SP2 ,Neighbourhood & Planning,Fleet Operations,Vehicle Parts,Transport Related,REVENUE
Wiltshire,http://opendatacommunities.org/id/unitary-authority/wiltshire,13/04/2016,5106861281,289.79,Adams Morey Ltd ,110053,SP2 ,Neighbourhood & Planning,Fleet Operations,Vehicle Parts,Transport Related,REVENUE
Wiltshire,http://opendatacommunities.org/id/unitary-authority/wiltshire,13/04/2016,5106861282,265.00,Adams Morey Ltd ,110053,SP2 ,Neighbourhood & Planning,Fleet Operations,Vehicle Parts,Transport Related,REVENUE
Wiltshire,http://opendatacommunities.org/id/unitary-authority/wiltshire,13/04/2016,5106861285,271.13,Adams Morey Ltd ,110053,SP2 ,Neighbourhood & Planning,Fleet Operations,Vehicle Parts,Transport Related,REVENUE
Wiltshire,http://opendatacommunities.org/id/unitary-authority/wiltshire,13/04/2016,5106861295,414.13,Adams Morey Ltd ,110053,SP2 ,Neighbourhood & Planning,Fleet Operations,Vehicle Parts,Transport Related,REVENUE
Wiltshire,http://opendatacommunities.org/id/unitary-authority/wiltshire,13/04/2016,5106861298,1429.93,Adams Morey Ltd ,110053,SP2 ,Neighbourhood & Planning,Fleet Operations,Vehicle Parts,Transport Related,REVENUE
Wiltshire,http://opendatacommunities.org/id/unitary-authority/wiltshire,15/04/2016,5106861306,477.74,Adams Morey Ltd ,110053,SP2 ,Neighbourhood & Planning,Fleet Operations,Vehicle Parts,Transport Related,REVENUE
Wiltshire,http://opendatacommunities.org/id/unitary-authority/wiltshire,15/04/2016,5106861307,351.85,Adams Morey Ltd ,110053,SP2 ,Neighbourhood & Planning,Fleet Operations,Vehicle Parts,Transport Related,REVENUE
Wiltshire,http://opendatacommunities.org/id/unitary-authority/wiltshire,29/04/2016,5106865159,1312.10,Adams Morey Ltd ,110053,SP2 ,Neighbourhood & Planning,Fleet Operations,Vehicle Parts,Transport Related,REVENUE
Wiltshire,http://opendatacommunities.org/id/unitary-authority/wiltshire,29/04/2016,5106865231,466.14,Adams Morey Ltd ,110053,SP2 ,Neighbourhood & Planning,Fleet Operations,Vehicle Parts,Transport Related,REVENUE
Wiltshire,http://opendatacommunities.org/id/unitary-authority/wiltshire,27/04/2016,5106863907,499.00,ADASS ,110054,CH7 ,Community Services,Operations Manag,Conference Fees,Supplies and Services,REVENUE
Wiltshire,http://opendatacommunities.org/id/unitary-authority/wiltshire,18/04/2016,5106864919,450.00,ADASS ,110054,CH7 ,Resources,MembersCosts,Conference Fees,Supplies and Services,REVENUE
Wiltshire,http://opendatacommunities.org/id/unitary-authority/wiltshire,06/04/2016,5106858749,875.70,Adiemus Care Limited - Ravenscroft ,132154,HA1 ,Community Services,Ad/Brad Rd,Adult Care Nursing Placements- Spot Purchase,Third Party Payments,REVENUE
Wiltshire,http://opendatacommunities.org/id/unitary-authority/wiltshire,06/04/2016,5106858882,748.80,Adiemus Care Limited - Ravenscroft ,132154,HA1 ,Community Services,Lovemd/Wid,Adult Care Nursing Placements- Spot Purchase,Third Party Payments,REVENUE
Wiltshire,http://opendatacommunities.org/id/unitary-authority/wiltshire,06/04/2016,5106858956,748.80,Adiemus Care Limited - Ravenscroft ,132154,HA1 ,Community Services,Lovemd/Wid,Adult Care Nursing Placements- Spot Purchase,Third Party Payments,REVENUE
Wiltshire,http://opendatacommunities.org/id/unitary-authority/wiltshire,06/04/2016,5106859960,745.10,Adiemus Care Limited - Ravenscroft ,132154,HA1 ,Community Services,Lovemd/Wid,Adult Care Nursing Placements- Spot Purchase,Third Party Payments,REVENUE
Wiltshire,http://opendatacommunities.org/id/unitary-authority/wiltshire,06/04/2016,5106860201,874.70,Adiemus Care Limited - Ravenscroft ,132154,HA1 ,Community Services,Lovemd/Wid,Adult Residential Placements - Spot Purchase,Third Party Payments,REVENUE
Wiltshire,http://opendatacommunities.org/id/unitary-authority/wiltshire,06/04/2016,5106860297,537.80,Adiemus Care Limited - Ravenscroft ,132154,HA1 ,Community Services,Ad/Brad Rd,Adult Care Nursing Placements- Spot Purchase,Third Party Payments,REVENUE
Wiltshire,http://opendatacommunities.org/id/unitary-authority/wiltshire,06/04/2016,5106860843,748.80,Adiemus Care Limited - Ravenscroft ,132154,HA1 ,Community Services,Lovemd/Wid,Adult Care Nursing Placements- Spot Purchase,Third Party Payments,REVENUE
Wiltshire,http://opendatacommunities.org/id/unitary-authority/wiltshire,06/04/2016,5106860492,1887.20,Admirals Reach BUPA,137917,CM1 ,Community Services,Salisbury,Adult Care Nursing Placements- Spot Purchase,Third Party Payments,REVENUE
Wiltshire,http://opendatacommunities.org/id/unitary-authority/wiltshire,15/04/2016,5106864424,6600.00,Adoption UK ,110057,OX16,Children & Education,Adoption Support Fun,Adoption Support,Third Party Payments,REVENUE
Wiltshire,http://opendatacommunities.org/id/unitary-authority/wiltshire,15/04/2016,5106864425,1695.00,Adoption UK ,110057,OX16,Children & Education,Adoption Support Fun,Adoption Support,Third Party Payments,REVENUE
Wiltshire,http://opendatacommunities.org/id/unitary-authority/wiltshire,20/04/2016,1901707401,1219.21,Adrains Engineering Psv ,100848,SN15,Neighbourhood & Planning,Mainstream Secondary,Transport Contracts,Third Party Payments,REVENUE
Wiltshire,http://opendatacommunities.org/id/unitary-authority/wiltshire,20/04/2016,1901707402,638.97,Adrains Engineering Psv ,100848,SN15,Neighbourhood & Planning,Mainstream 16+ Sec,Transport Contracts,Third Party Payments,REVENUE
Wiltshire,http://opendatacommunities.org/id/unitary-authority/wiltshire,20/04/2016,1901707402,2511.86,Adrains Engineering Psv ,100848,SN15,Neighbourhood & Planning,Mainstream Secondary,Transport Contracts,Third Party Payments,REVENUE
Wiltshire,http://opendatacommunities.org/id/unitary-authority/wiltshire,20/04/2016,1901707403,2755.90,Adrains Engineering Psv ,100848,SN15,Neighbourhood & Planning,Mainstream Secondary,Transport Contracts,Third Party Payments,REVENUE
Wiltshire,http://opendatacommunities.org/id/unitary-authority/wiltshire,20/04/2016,1901707404,3968.30,Adrains Engineering Psv ,100848,SN15,Neighbourhood & Planning,Mainstream Secondary,Transport Contracts,Third Party Payments,REVENUE
Wiltshire,http://opendatacommunities.org/id/unitary-authority/wiltshire,20/04/2016,1901707405,3035.09,Adrains Engineering Psv ,100848,SN15,Neighbourhood & Planning,Mainstream Primary,Transport Contracts,Third Party Payments,REVENUE
Wiltshire,http://opendatacommunities.org/id/unitary-authority/wiltshire,20/04/2016,1901707406,2919.35,Adrains Engineering Psv ,100848,SN15,Neighbourhood & Planning,Mainstream Secondary,Transport Contracts,Third Party Payments,REVENUE
Wiltshire,http://opendatacommunities.org/id/unitary-authority/wiltshire,20/04/2016,1901707407,3006.11,Adrains Engineering Psv ,100848,SN15,Neighbourhood & Planning,Mainstream Secondary,Transport Contracts,Third Party Payments,REVENUE
Wiltshire,http://opendatacommunities.org/id/unitary-authority/wiltshire,20/04/2016,1901707408,3333.33,Adrains Engineering Psv ,100848,SN15,Neighbourhood & Planning,Mainstream Primary,Transport Contracts,Third Party Payments,REVENUE
Wiltshire,http://opendatacommunities.org/id/unitary-authority/wiltshire,20/04/2016,1901707408,4596.67,Adrains Engineering Psv ,100848,SN15,Neighbourhood & Planning,Public Transport,Transport Contracts,Third Party Payments,REVENUE
Wiltshire,http://opendatacommunities.org/id/unitary-authority/wiltshire,20/04/2016,1901707413,3333.33,Adrains Engineering Psv ,100848,SN15,Neighbourhood & Planning,Mainstream Secondary,Transport Contracts,Third Party Payments,REVENUE
Wiltshire,http://opendatacommunities.org/id/unitary-authority/wiltshire,20/04/2016,1901707413,3426.42,Adrains Engineering Psv ,100848,SN15,Neighbourhood & Planning,Public Transport,Transport Contracts,Third Party Payments,REVENUE
Wiltshire,http://opendatacommunities.org/id/unitary-authority/wiltshire,21/04/2016,1901707867,381.30,Adrains Engineering Psv ,100848,SN15,Neighbourhood & Planning,Concessionary Fares,Compensation for Concessionary fares,Third Party Payments,REVENUE
Wiltshire,http://opendatacommunities.org/id/unitary-authority/wiltshire,13/04/2016,1901704379,310.80,Adrian's Taxi ,138861,SN10,Neighbourhood & Planning,Mainstream Secondary,Transport Contracts,Third Party Payments,REVENUE
Wiltshire,http://opendatacommunities.org/id/unitary-authority/wiltshire,13/04/2016,1901704379,725.20,Adrian's Taxi ,138861,SN10,Neighbourhood & Planning,Mainstream Primary,Transport Contracts,Third Party Payments,REVENUE
Wiltshire,http://opendatacommunities.org/id/unitary-authority/wiltshire,19/04/2016,1901705687,3068.49,Advance Housing  and  Support Ltd ,110060,OX28,Neighbourhood & Planning,Strategy & Enabling,Payments to Contractors - Other,Third Party Payments,REVENUE
Wiltshire,http://opendatacommunities.org/id/unitary-authority/wiltshire,21/04/2016,1901707525,6136.99,Advance Housing  and  Support Ltd ,110060,OX28,Neighbourhood & Planning,Strategy & Enabling,Payments to Contractors - Other,Third Party Payments,REVENUE
Wiltshire,http://opendatacommunities.org/id/unitary-authority/wiltshire,25/04/2016,1901708907,1602.00,Adycars ,136208,SP11,Neighbourhood & Planning,SEN 16+ Secondary,Transport Contracts,Third Party Payments,REVENUE
Wiltshire,http://opendatacommunities.org/id/unitary-authority/wiltshire,28/04/2016,5106864278,2000.00,AECOM Professional Services LLP ,127871,AL1 ,Wiltshire Council,Wiltshire Council,Buildings Minor Alterations,Premises Related,CAPITAL
Wiltshire,http://opendatacommunities.org/id/unitary-authority/wiltshire,01/04/2016,5106855386,607.15,AginCare Live In Care Services Ltd ,110071,DT5 ,Community Services,North Locality OP,Adult Domiciliary Care - Live in Care,Third Party Payments,REVENUE
Wiltshire,http://opendatacommunities.org/id/unitary-authority/wiltshire,01/04/2016,5106855386,1092.87,AginCare Live In Care Services Ltd ,110071,DT5 ,Community Services,Malmesbury,Adult Domiciliary Care - Live in Care,Third Party Payments,REVENUE
Wiltshire,http://opendatacommunities.org/id/unitary-authority/wiltshire,04/04/2016,5106855800,942.92,AginCare Live In Care Services Ltd ,110071,DT5 ,Community Services,CTPLD Place CIC U65,Adult Domiciliary Care - Live in Care,Third Party Payments,REVENUE
Wiltshire,http://opendatacommunities.org/id/unitary-authority/wiltshire,04/04/2016,5106855801,1499.96,AginCare Live In Care Services Ltd ,110071,DT5 ,Community Services,OVA West Locality,Adult Domiciliary Care - Live in Care,Third Party Payments,REVENUE
Wiltshire,http://opendatacommunities.org/id/unitary-authority/wiltshire,04/04/2016,5106855808,1499.96,AginCare Live In Care Services Ltd ,110071,DT5 ,Community Services,OVA West Locality,Adult Domiciliary Care - Live in Care,Third Party Payments,REVENUE
Wiltshire,http://opendatacommunities.org/id/unitary-authority/wiltshire,05/04/2016,5106855968,1700.02,AginCare Live In Care Services Ltd ,110071,DT5 ,Community Services,North Locality OP,Adult Domiciliary Care - Live in Care,Third Party Payments,REVENUE
Wiltshire,http://opendatacommunities.org/id/unitary-authority/wiltshire,06/04/2016,5106856276,257.16,AginCare Live In Care Services Ltd ,110071,DT5 ,Community Services,CTPLD Place CIC U65,Adult Domiciliary Care - Live in Care,Third Party Payments,REVENUE
Wiltshire,http://opendatacommunities.org/id/unitary-authority/wiltshire,06/04/2016,1901695360,512.53,Agincare Ltd ,110069,DT5 ,Community Services,HTLAH - Neighbourhoo,Interim Support Plan - HTLAH,Third Party Payments,REVENUE
Wiltshire,http://opendatacommunities.org/id/unitary-authority/wiltshire,06/04/2016,1901695362,720.57,Agincare Ltd ,110069,DT5 ,Community Services,HTLAH - Neighbourhoo,Interim Support Plan - HTLAH,Third Party Payments,REVENUE
Wiltshire,http://opendatacommunities.org/id/unitary-authority/wiltshire,06/04/2016,1901695363,452.94,Agincare Ltd ,110069,DT5 ,Community Services,HTLAH - Neighbourhoo,Interim Support Plan - HTLAH,Third Party Payments,REVENUE
Wiltshire,http://opendatacommunities.org/id/unitary-authority/wiltshire,06/04/2016,1901695366,323.11,Agincare Ltd ,110069,DT5 ,Community Services,HTLAH - Neighbourhoo,Interim Support Plan - HTLAH,Third Party Payments,REVENUE
Wiltshire,http://opendatacommunities.org/id/unitary-authority/wiltshire,19/04/2016,5106865225,798.84,Agincare Ltd ,110069,DT5 ,Community Services,MH AOWA North Locali,Supported Living - Without SP payments,Third Party Payments,REVENUE
Wiltshire,http://opendatacommunities.org/id/unitary-authority/wiltshire,19/04/2016,5106865226,330.88,Agincare Ltd ,110069,DT5 ,Community Services,OVA North Locality,Adult Domiciliary Care - Spot,Third Party Payments,REVENUE
Wiltshire,http://opendatacommunities.org/id/unitary-authority/wiltshire,20/04/2016,5106865358,792.28,Agincare Ltd ,110069,DT5 ,Community Services,MH AOWA North Locali,Supported Living - Without SP payments,Third Party Payments,REVENUE
Wiltshire,http://opendatacommunities.org/id/unitary-authority/wiltshire,20/04/2016,5106865361,546.00,Agincare Ltd ,110069,DT5 ,Community Services,OVA North Locality,Adult Domiciliary Care - Spot,Third Party Payments,REVENUE
Wiltshire,http://opendatacommunities.org/id/unitary-authority/wiltshire,21/04/2016,5106866121,945.76,Agincare Ltd ,110069,DT5 ,Community Services,North Locality OP,Adult Domiciliary Care - Spot Contribution,Income,REVENUE
Wiltshire,http://opendatacommunities.org/id/unitary-authority/wiltshire,22/04/2016,5106866391,945.76,Agincare Ltd ,110069,DT5 ,Community Services,North Locality OP,Adult Domiciliary Care - Spot Contribution,Income,REVENUE
Wiltshire,http://opendatacommunities.org/id/unitary-authority/wiltshire,15/04/2016,1901705053,2370.00,Air Photo Services Limited ,134217,SN2 ,Neighbourhood & Planning,DevControlSouth,Consultants� Fees,Supplies and Services,REVENUE
Wiltshire,http://opendatacommunities.org/id/unitary-authority/wiltshire,20/04/2016,1901707400,1465.65,Akcess Ltd ,101402,SN2 ,Neighbourhood & Planning,SEN Post 19,Transport Contracts,Third Party Payments,REVENUE
Wiltshire,http://opendatacommunities.org/id/unitary-authority/wiltshire,20/04/2016,1901707411,312.42,Akcess Ltd ,101402,SN2 ,Neighbourhood & Planning,SEN Primary,Transport Contracts,Third Party Payments,REVENUE
Wiltshire,http://opendatacommunities.org/id/unitary-authority/wiltshire,20/04/2016,1901707411,624.86,Akcess Ltd ,101402,SN2 ,Neighbourhood & Planning,SEN Secondary,Transport Contracts,Third Party Payments,REVENUE
Wiltshire,http://opendatacommunities.org/id/unitary-authority/wiltshire,20/04/2016,1901707411,1249.72,Akcess Ltd ,101402,SN2 ,Neighbourhood & Planning,Mainstream Secondary,Transport Contracts,Third Party Payments,REVENUE
Wiltshire,http://opendatacommunities.org/id/unitary-authority/wiltshire,20/04/2016,1901707415,1815.30,Akcess Ltd ,101402,SN2 ,Neighbourhood & Planning,Mainstream Primary,Transport Contracts,Third Party Payments,REVENUE
Wiltshire,http://opendatacommunities.org/id/unitary-authority/wiltshire,20/04/2016,1901707416,1217.22,Akcess Ltd ,101402,SN2 ,Neighbourhood & Planning,SEN 16+ FE Colleges,Transport Contracts,Third Party Payments,REVENUE
Wiltshire,http://opendatacommunities.org/id/unitary-authority/wiltshire,20/04/2016,1901707416,2434.44,Akcess Ltd ,101402,SN2 ,Neighbourhood & Planning,SEN Secondary,Transport Contracts,Third Party Payments,REVENUE
Wiltshire,http://opendatacommunities.org/id/unitary-authority/wiltshire,20/04/2016,1901707417,438.64,Akcess Ltd ,101402,SN2 ,Neighbourhood & Planning,Mainstream Secondary,Transport Contracts,Third Party Payments,REVENUE
Wiltshire,http://opendatacommunities.org/id/unitary-authority/wiltshire,20/04/2016,1901707417,1900.78,Akcess Ltd ,101402,SN2 ,Neighbourhood & Planning,SEN Secondary,Transport Contracts,Third Party Payments,REVENUE
Wiltshire,http://opendatacommunities.org/id/unitary-authority/wiltshire,20/04/2016,1901707418,954.00,Akcess Ltd ,101402,SN2 ,Neighbourhood & Planning,Mainstream Secondary,Transport Contracts,Third Party Payments,REVENUE
Wiltshire,http://opendatacommunities.org/id/unitary-authority/wiltshire,20/04/2016,1901707419,1104.00,Akcess Ltd ,101402,SN2 ,Neighbourhood & Planning,SEN Primary,Transport Contracts,Third Party Payments,REVENUE
Wiltshire,http://opendatacommunities.org/id/unitary-authority/wiltshire,20/04/2016,1901707419,1380.00,Akcess Ltd ,101402,SN2 ,Neighbourhood & Planning,SEN Secondary,Transport Contracts,Third Party Payments,REVENUE
Wiltshire,http://opendatacommunities.org/id/unitary-authority/wiltshire,20/04/2016,1901707420,598.50,Akcess Ltd ,101402,SN2 ,Neighbourhood & Planning,SEN Primary,Transport Contracts,Third Party Payments,REVENUE
Wiltshire,http://opendatacommunities.org/id/unitary-authority/wiltshire,20/04/2016,1901707420,598.50,Akcess Ltd ,101402,SN2 ,Neighbourhood & Planning,SEN 16+ Secondary,Transport Contracts,Third Party Payments,REVENUE
Wiltshire,http://opendatacommunities.org/id/unitary-authority/wiltshire,20/04/2016,1901707420,1197.00,Akcess Ltd ,101402,SN2 ,Neighbourhood & Planning,SEN Secondary,Transport Contracts,Third Party Payments,REVENUE
Wiltshire,http://opendatacommunities.org/id/unitary-authority/wiltshire,20/04/2016,1901707421,806.07,Akcess Ltd ,101402,SN2 ,Neighbourhood & Planning,SEN Primary,Transport Contracts,Third Party Payments,REVENUE
Wiltshire,http://opendatacommunities.org/id/unitary-authority/wiltshire,20/04/2016,1901707421,2115.93,Akcess Ltd ,101402,SN2 ,Neighbourhood & Planning,SEN Secondary,Transport Contracts,Third Party Payments,REVENUE
Wiltshire,http://opendatacommunities.org/id/unitary-authority/wiltshire,20/04/2016,1901707422,2334.60,Akcess Ltd ,101402,SN2 ,Neighbourhood & Planning,SEN Primary,Transport Contracts,Third Party Payments,REVENUE
Wiltshire,http://opendatacommunities.org/id/unitary-authority/wiltshire,20/04/2016,1901707423,954.00,Akcess Ltd ,101402,SN2 ,Neighbourhood & Planning,Mainstream Secondary,Transport Contracts,Third Party Payments,REVENUE
Wiltshire,http://opendatacommunities.org/id/unitary-authority/wiltshire,20/04/2016,1901707424,1404.00,Akcess Ltd ,101402,SN2 ,Neighbourhood & Planning,Mainstream Primary,Transport Contracts,Third Party Payments,REVENUE
Wiltshire,http://opendatacommunities.org/id/unitary-authority/wiltshire,20/04/2016,1901707425,718.60,Akcess Ltd ,101402,SN2 ,Neighbourhood & Planning,SEN 16+ FE Colleges,Transport Contracts,Third Party Payments,REVENUE
Wiltshire,http://opendatacommunities.org/id/unitary-authority/wiltshire,20/04/2016,1901707425,1736.60,Akcess Ltd ,101402,SN2 ,Neighbourhood & Planning,SEN 16+ Secondary,Transport Contracts,Third Party Payments,REVENUE
Wiltshire,http://opendatacommunities.org/id/unitary-authority/wiltshire,20/04/2016,1901707426,1611.00,Akcess Ltd ,101402,SN2 ,Neighbourhood & Planning,Mainstream Primary,Transport Contracts,Third Party Payments,REVENUE
Wiltshire,http://opendatacommunities.org/id/unitary-authority/wiltshire,20/04/2016,1901707427,787.50,Akcess Ltd ,101402,SN2 ,Neighbourhood & Planning,Mainstream Secondary,Transport Contracts,Third Party Payments,REVENUE
Wiltshire,http://opendatacommunities.org/id/unitary-authority/wiltshire,20/04/2016,1901707427,787.50,Akcess Ltd ,101402,SN2 ,Neighbourhood & Planning,SEN Primary,Transport Contracts,Third Party Payments,REVENUE
Wiltshire,http://opendatacommunities.org/id/unitary-authority/wiltshire,20/04/2016,1901707428,2752.20,Akcess Ltd ,101402,SN2 ,Neighbourhood & Planning,SEN Primary,Transport Contracts,Third Party Payments,REVENUE
Wiltshire,http://opendatacommunities.org/id/unitary-authority/wiltshire,20/04/2016,1901707429,1682.45,Akcess Ltd ,101402,SN2 ,Neighbourhood & Planning,Mainstream Secondary,Transport Contracts,Third Party Payments,REVENUE
Wiltshire,http://opendatacommunities.org/id/unitary-authority/wiltshire,20/04/2016,1901707430,1022.25,Akcess Ltd ,101402,SN2 ,Neighbourhood & Planning,Mainstream Primary,Transport Contracts,Third Party Payments,REVENUE
Wiltshire,http://opendatacommunities.org/id/unitary-authority/wiltshire,20/04/2016,1901707431,1022.25,Akcess Ltd ,101402,SN2 ,Neighbourhood & Planning,Mainstream Primary,Transport Contracts,Third Party Payments,REVENUE
Wiltshire,http://opendatacommunities.org/id/unitary-authority/wiltshire,20/04/2016,1901707432,1974.92,Akcess Ltd ,101402,SN2 ,Neighbourhood & Planning,Mainstream Secondary,Transport Contracts,Third Party Payments,REVENUE
Wiltshire,http://opendatacommunities.org/id/unitary-authority/wiltshire,20/04/2016,1901707433,1849.97,Akcess Ltd ,101402,SN2 ,Neighbourhood & Planning,Mainstream Primary,Transport Contracts,Third Party Payments,REVENUE
Wiltshire,http://opendatacommunities.org/id/unitary-authority/wiltshire,20/04/2016,1901707434,1863.88,Akcess Ltd ,101402,SN2 ,Neighbourhood & Planning,Mainstream Secondary,Transport Contracts,Third Party Payments,REVENUE
Wiltshire,http://opendatacommunities.org/id/unitary-authority/wiltshire,20/04/2016,1901707435,254.02,Akcess Ltd ,101402,SN2 ,Neighbourhood & Planning,SEN Secondary,Transport Contracts,Third Party Payments,REVENUE
Wiltshire,http://opendatacommunities.org/id/unitary-authority/wiltshire,20/04/2016,1901707435,634.95,Akcess Ltd ,101402,SN2 ,Neighbourhood & Planning,Mainstream 16+ Sec,Transport Contracts,Third Party Payments,REVENUE
Wiltshire,http://opendatacommunities.org/id/unitary-authority/wiltshire,20/04/2016,1901707435,2540.20,Akcess Ltd ,101402,SN2 ,Neighbourhood & Planning,Mainstream Secondary,Transport Contracts,Third Party Payments,REVENUE
Wiltshire,http://opendatacommunities.org/id/unitary-authority/wiltshire,20/04/2016,1901707436,1564.33,Akcess Ltd ,101402,SN2 ,Neighbourhood & Planning,Mainstream Secondary,Transport Contracts,Third Party Payments,REVENUE
Wiltshire,http://opendatacommunities.org/id/unitary-authority/wiltshire,20/04/2016,1901707437,1421.83,Akcess Ltd ,101402,SN2 ,Neighbourhood & Planning,Mainstream Secondary,Transport Contracts,Third Party Payments,REVENUE
Wiltshire,http://opendatacommunities.org/id/unitary-authority/wiltshire,20/04/2016,1901707438,1833.17,Akcess Ltd ,101402,SN2 ,Neighbourhood & Planning,Mainstream Primary,Transport Contracts,Third Party Payments,REVENUE
Wiltshire,http://opendatacommunities.org/id/unitary-authority/wiltshire,20/04/2016,1901707439,933.33,Akcess Ltd ,101402,SN2 ,Neighbourhood & Planning,Mainstream Primary,Transport Contracts,Third Party Payments,REVENUE
Wiltshire,http://opendatacommunities.org/id/unitary-authority/wiltshire,20/04/2016,1901707439,1733.34,Akcess Ltd ,101402,SN2 ,Neighbourhood & Planning,Mainstream Secondary,Transport Contracts,Third Party Payments,REVENUE
Wiltshire,http://opendatacommunities.org/id/unitary-authority/wiltshire,20/04/2016,1901707440,2166.67,Akcess Ltd ,101402,SN2 ,Neighbourhood & Planning,Mainstream Primary,Transport Contracts,Third Party Payments,REVENUE
Wiltshire,http://opendatacommunities.org/id/unitary-authority/wiltshire,20/04/2016,1901707441,360.00,Akcess Ltd ,101402,SN2 ,Community Services,OVA East Locality,Transport Contracts,Third Party Payments,REVENUE
Wiltshire,http://opendatacommunities.org/id/unitary-authority/wiltshire,20/04/2016,1901707441,720.00,Akcess Ltd ,101402,SN2 ,Community Services,OVA North Locality,Transport Contracts,Third Party Payments,REVENUE
Wiltshire,http://opendatacommunities.org/id/unitary-authority/wiltshire,20/04/2016,1901707442,1786.63,Akcess Ltd ,101402,SN2 ,Neighbourhood & Planning,Mainstream Primary,Transport Contracts,Third Party Payments,REVENUE
Wiltshire,http://opendatacommunities.org/id/unitary-authority/wiltshire,20/04/2016,1901707443,1472.50,Akcess Ltd ,101402,SN2 ,Neighbourhood & Planning,Mainstream Secondary,Transport Contracts,Third Party Payments,REVENUE
Wiltshire,http://opendatacommunities.org/id/unitary-authority/wiltshire,20/04/2016,1901707444,448.96,Akcess Ltd ,101402,SN2 ,Neighbourhood & Planning,Mainstream Secondary,Transport Contracts,Third Party Payments,REVENUE
Wiltshire,http://opendatacommunities.org/id/unitary-authority/wiltshire,20/04/2016,1901707444,1459.04,Akcess Ltd ,101402,SN2 ,Neighbourhood & Planning,Mainstream Primary,Transport Contracts,Third Party Payments,REVENUE
Wiltshire,http://opendatacommunities.org/id/unitary-authority/wiltshire,22/04/2016,1901708468,616.00,Akcess Ltd ,101402,SN2 ,Neighbourhood & Planning,Mainstream Secondary,Transport Contracts,Third Party Payments,REVENUE
Wiltshire,http://opendatacommunities.org/id/unitary-authority/wiltshire,19/04/2016,1901705673,737.97,Alabare Christian Care Centre ,100837,SP2 ,Neighbourhood & Planning,Strategy & Enabling,Payments to Contractors - Other,Third Party Payments,REVENUE
Wiltshire,http://opendatacommunities.org/id/unitary-authority/wiltshire,19/04/2016,1901705675,1321.23,Alabare Christian Care Centre ,100837,SP2 ,Neighbourhood & Planning,Strategy & Enabling,Payments to Contractors - Other,Third Party Payments,REVENUE
Wiltshire,http://opendatacommunities.org/id/unitary-authority/wiltshire,19/04/2016,1901705680,1403.84,Alabare Christian Care Centre ,100837,SP2 ,Neighbourhood & Planning,Strategy & Enabling,Payments to Contractors - Other,Third Party Payments,REVENUE
Wiltshire,http://opendatacommunities.org/id/unitary-authority/wiltshire,19/04/2016,1901705683,1794.61,Alabare Christian Care Centre ,100837,SP2 ,Neighbourhood & Planning,Strategy & Enabling,Payments to Contractors - Other,Third Party Payments,REVENUE
Wiltshire,http://opendatacommunities.org/id/unitary-authority/wiltshire,19/04/2016,1901705684,1952.33,Alabare Christian Care Centre ,100837,SP2 ,Neighbourhood & Planning,Strategy & Enabling,Payments to Contractors - Other,Third Party Payments,REVENUE
Wiltshire,http://opendatacommunities.org/id/unitary-authority/wiltshire,19/04/2016,1901705691,1750.53,Alabare Christian Care Centre ,100837,SP2 ,Neighbourhood & Planning,Strategy & Enabling,Payments to Contractors - Other,Third Party Payments,REVENUE
Wiltshire,http://opendatacommunities.org/id/unitary-authority/wiltshire,19/04/2016,1901705696,12561.26,Alabare Christian Care Centre ,100837,SP2 ,Neighbourhood & Planning,Strategy & Enabling,Payments to Contractors - Other,Third Party Payments,REVENUE
Wiltshire,http://opendatacommunities.org/id/unitary-authority/wiltshire,21/04/2016,1901707511,1475.95,Alabare Christian Care Centre ,100837,SP2 ,Neighbourhood & Planning,Strategy & Enabling,Payments to Contractors - Other,Third Party Payments,REVENUE
Wiltshire,http://opendatacommunities.org/id/unitary-authority/wiltshire,21/04/2016,1901707513,2462.47,Alabare Christian Care Centre ,100837,SP2 ,Neighbourhood & Planning,Strategy & Enabling,Payments to Contractors - Other,Third Party Payments,REVENUE
Wiltshire,http://opendatacommunities.org/id/unitary-authority/wiltshire,21/04/2016,1901707518,2807.67,Alabare Christian Care Centre ,100837,SP2 ,Neighbourhood & Planning,Strategy & Enabling,Payments to Contractors - Other,Third Party Payments,REVENUE
Wiltshire,http://opendatacommunities.org/id/unitary-authority/wiltshire,21/04/2016,1901707521,3589.22,Alabare Christian Care Centre ,100837,SP2 ,Neighbourhood & Planning,Strategy & Enabling,Payments to Contractors - Other,Third Party Payments,REVENUE
Wiltshire,http://opendatacommunities.org/id/unitary-authority/wiltshire,21/04/2016,1901707522,3904.66,Alabare Christian Care Centre ,100837,SP2 ,Neighbourhood & Planning,Strategy & Enabling,Payments to Contractors - Other,Third Party Payments,REVENUE
Wiltshire,http://opendatacommunities.org/id/unitary-authority/wiltshire,21/04/2016,1901707529,12501.05,Alabare Christian Care Centre ,100837,SP2 ,Neighbourhood & Planning,Strategy & Enabling,Payments to Contractors - Other,Third Party Payments,REVENUE
Wiltshire,http://opendatacommunities.org/id/unitary-authority/wiltshire,21/04/2016,1901707534,25122.52,Alabare Christian Care Centre ,100837,SP2 ,Neighbourhood & Planning,Strategy & Enabling,Payments to Contractors - Other,Third Party Payments,REVENUE
Wiltshire,http://opendatacommunities.org/id/unitary-authority/wiltshire,06/04/2016,5106854760,1213.90,Alabare Christian Care Centre ,100837,SP2 ,Community Services,CTPLD Place CIC U65,Supported Living - Without SP payments,Third Party Payments,REVENUE
Wiltshire,http://opendatacommunities.org/id/unitary-authority/wiltshire,06/04/2016,5106854861,1143.20,Alabare Christian Care Centre ,100837,SP2 ,Community Services,CTPLD Place CIC U65,Supported Living - Without SP payments,Third Party Payments,REVENUE
Wiltshire,http://opendatacommunities.org/id/unitary-authority/wiltshire,06/04/2016,5106854868,330.00,Alabare Christian Care Centre ,100837,SP2 ,Community Services,CTPLD Place CIC U65,Supported Living - Without SP payments,Third Party Payments,REVENUE
Wiltshire,http://opendatacommunities.org/id/unitary-authority/wiltshire,06/04/2016,5106854869,278.90,Alabare Christian Care Centre ,100837,SP2 ,Community Services,CTPLD Place CIC U65,Supported Living - Without SP payments,Third Party Payments,REVENUE
Wiltshire,http://opendatacommunities.org/id/unitary-authority/wiltshire,06/04/2016,5106854871,683.60,Alabare Christian Care Centre ,100837,SP2 ,Community Services,CTPLD Place CIC U65,Supported Living - Without SP payments,Third Party Payments,REVENUE
Wiltshire,http://opendatacommunities.org/id/unitary-authority/wiltshire,06/04/2016,5106854874,955.00,Alabare Christian Care Centre ,100837,SP2 ,Community Services,CTPLD Place CIC U65,Supported Living - Without SP payments,Third Party Payments,REVENUE
Wiltshire,http://opendatacommunities.org/id/unitary-authority/wiltshire,06/04/2016,5106854876,974.10,Alabare Christian Care Centre ,100837,SP2 ,Community Services,CTPLD Place CIC U65,Supported Living - Without SP payments,Third Party Payments,REVENUE
Wiltshire,http://opendatacommunities.org/id/unitary-authority/wiltshire,06/04/2016,5106854877,592.20,Alabare Christian Care Centre ,100837,SP2 ,Community Services,CTPLD Place CIC U65,Supported Living - Without SP payments,Third Party Payments,REVENUE
Wiltshire,http://opendatacommunities.org/id/unitary-authority/wiltshire,06/04/2016,5106854878,625.50,Alabare Christian Care Centre ,100837,SP2 ,Community Services,CTPLD Place CIC U65,Supported Living - Without SP payments,Third Party Payments,REVENUE
Wiltshire,http://opendatacommunities.org/id/unitary-authority/wiltshire,06/04/2016,5106854880,566.70,Alabare Christian Care Centre ,100837,SP2 ,Community Services,OVA South Locality,Supported Living - Without SP payments,Third Party Payments,REVENUE
Wiltshire,http://opendatacommunities.org/id/unitary-authority/wiltshire,06/04/2016,5106854883,255.40,Alabare Christian Care Centre ,100837,SP2 ,Community Services,CTPLD Place CIC U65,Supported Living - Without SP payments,Third Party Payments,REVENUE
Wiltshire,http://opendatacommunities.org/id/unitary-authority/wiltshire,06/04/2016,5106854886,556.10,Alabare Christian Care Centre ,100837,SP2 ,Community Services,CTPLD Place CIC U65,Supported Living - Without SP payments,Third Party Payments,REVENUE
Wiltshire,http://opendatacommunities.org/id/unitary-authority/wiltshire,06/04/2016,5106854889,471.40,Alabare Christian Care Centre ,100837,SP2 ,Community Services,CTPLD Place CIC U65,Supported Living - Without SP payments,Third Party Payments,REVENUE
Wiltshire,http://opendatacommunities.org/id/unitary-authority/wiltshire,06/04/2016,5106854918,1015.00,Alabare Christian Care Centre ,100837,SP2 ,Community Services,CTPLD Place CIC U65,Supported Living - Without SP payments,Third Party Payments,REVENUE
Wiltshire,http://opendatacommunities.org/id/unitary-authority/wiltshire,06/04/2016,5106854957,1125.50,Alabare Christian Care Centre ,100837,SP2 ,Community Services,CTPLD Place CIC U65,Supported Living - Without SP payments,Third Party Payments,REVENUE
Wiltshire,http://opendatacommunities.org/id/unitary-authority/wiltshire,06/04/2016,5106854966,1056.80,Alabare Christian Care Centre ,100837,SP2 ,Community Services,CTPLD Place CIC U65,Supported Living - Without SP payments,Third Party Payments,REVENUE
Wiltshire,http://opendatacommunities.org/id/unitary-authority/wiltshire,06/04/2016,5106854988,891.40,Alabare Christian Care Centre ,100837,SP2 ,Community Services,OVA South Locality,Supported Living - Without SP payments,Third Party Payments,REVENUE
Wiltshire,http://opendatacommunities.org/id/unitary-authority/wiltshire,06/04/2016,5106854993,673.80,Alabare Christian Care Centre ,100837,SP2 ,Community Services,CTPLD Place CIC U65,Supported Living - Without SP payments,Third Party Payments,REVENUE
Wiltshire,http://opendatacommunities.org/id/unitary-authority/wiltshire,06/04/2016,5106854994,728.20,Alabare Christian Care Centre ,100837,SP2 ,Community Services,CTPLD Place CIC U65,Supported Living - Without SP payments,Third Party Payments,REVENUE
Wiltshire,http://opendatacommunities.org/id/unitary-authority/wiltshire,06/04/2016,5106854999,1129.90,Alabare Christian Care Centre ,100837,SP2 ,Community Services,CTPLD Place CIC U65,Supported Living - Without SP payments,Third Party Payments,REVENUE
Wiltshire,http://opendatacommunities.org/id/unitary-authority/wiltshire,06/04/2016,5106855001,595.40,Alabare Christian Care Centre ,100837,SP2 ,Community Services,CTPLD Place CIC U65,Supported Living - Without SP payments,Third Party Payments,REVENUE
Wiltshire,http://opendatacommunities.org/id/unitary-authority/wiltshire,06/04/2016,5106855003,960.90,Alabare Christian Care Centre ,100837,SP2 ,Community Services,CTPLD Place CIC U65,Supported Living - Without SP payments,Third Party Payments,REVENUE
Wiltshire,http://opendatacommunities.org/id/unitary-authority/wiltshire,06/04/2016,5106855005,990.00,Alabare Christian Care Centre ,100837,SP2 ,Community Services,CTPLD Place CIC U65,Supported Living - Without SP payments,Third Party Payments,REVENUE
Wiltshire,http://opendatacommunities.org/id/unitary-authority/wiltshire,06/04/2016,5106855009,2776.00,Alabare Christian Care Centre ,100837,SP2 ,Community Services,CTPLD Place CIC U65,Supported Living - Without SP payments,Third Party Payments,REVENUE
Wiltshire,http://opendatacommunities.org/id/unitary-authority/wiltshire,01/04/2016,5106855330,480.00,Alabare Christian Care Centre ,100837,SP2 ,Community Services,CTPLD Place CIC U65,Adult Domiciliary Care - Spot,Third Party Payments,REVENUE
Wiltshire,http://opendatacommunities.org/id/unitary-authority/wiltshire,01/04/2016,5106855331,410.44,Alabare Christian Care Centre ,100837,SP2 ,Community Services,CTPLD Place CIC U65,Adult Domiciliary Care - Spot Contribution,Income,REVENUE
Wiltshire,http://opendatacommunities.org/id/unitary-authority/wiltshire,01/04/2016,5106855384,916.36,Alabare Christian Care Centre ,100837,SP2 ,Community Services,South Locality OP,Adult Domiciliary Care - Spot Contribution,Income,REVENUE
Wiltshire,http://opendatacommunities.org/id/unitary-authority/wiltshire,01/04/2016,5106855575,780.37,Alabare Christian Care Centre ,100837,SP2 ,Children & Education,LAC & 16+ South,Adult / Child Care Agency Placement,Third Party Payments,REVENUE
Wiltshire,http://opendatacommunities.org/id/unitary-authority/wiltshire,01/04/2016,5106855576,1256.39,Alabare Christian Care Centre ,100837,SP2 ,Children & Education,Albare Contract,Adult / Child Care Agency Placement,Third Party Payments,REVENUE
Wiltshire,http://opendatacommunities.org/id/unitary-authority/wiltshire,01/04/2016,5106855577,1380.26,Alabare Christian Care Centre ,100837,SP2 ,Children & Education,Albare Contract,Adult / Child Care Agency Placement,Third Party Payments,REVENUE
Wiltshire,http://opendatacommunities.org/id/unitary-authority/wiltshire,01/04/2016,5106855578,1592.47,Alabare Christian Care Centre ,100837,SP2 ,Children & Education,Albare Contract,Adult / Child Care Agency Placement,Third Party Payments,REVENUE
Wiltshire,http://opendatacommunities.org/id/unitary-authority/wiltshire,01/04/2016,5106855579,2816.99,Alabare Christian Care Centre ,100837,SP2 ,Children & Education,Albare Contract,Adult / Child Care Agency Placement,Third Party Payments,REVENUE
Wiltshire,http://opendatacommunities.org/id/unitary-authority/wiltshire,01/04/2016,5106855581,1329.66,Alabare Christian Care Centre ,100837,SP2 ,Children & Education,Albare Contract,Adult / Child Care Agency Placement,Third Party Payments,REVENUE
Wiltshire,http://opendatacommunities.org/id/unitary-authority/wiltshire,01/04/2016,5106855585,1238.81,Alabare Christian Care Centre ,100837,SP2 ,Children & Education,Albare Contract,Adult / Child Care Agency Placement,Third Party Payments,REVENUE
Wiltshire,http://opendatacommunities.org/id/unitary-authority/wiltshire,01/04/2016,5106855587,3022.41,Alabare Christian Care Centre ,100837,SP2 ,Children & Education,Albare Contract,Adult / Child Care Agency Placement,Third Party Payments,REVENUE
Wiltshire,http://opendatacommunities.org/id/unitary-authority/wiltshire,01/04/2016,5106855588,509.12,Alabare Christian Care Centre ,100837,SP2 ,Children & Education,LAC & 16+ South,Adult / Child Care Agency Placement,Third Party Payments,REVENUE
Wiltshire,http://opendatacommunities.org/id/unitary-authority/wiltshire,01/04/2016,5106855589,1329.66,Alabare Christian Care Centre ,100837,SP2 ,Children & Education,Albare Contract,Adult / Child Care Agency Placement,Third Party Payments,REVENUE
Wiltshire,http://opendatacommunities.org/id/unitary-authority/wiltshire,01/04/2016,5106855590,412.29,Alabare Christian Care Centre ,100837,SP2 ,Children & Education,LAC & 16+ North,Adult / Child Care Agency Placement,Third Party Payments,REVENUE
Wiltshire,http://opendatacommunities.org/id/unitary-authority/wiltshire,01/04/2016,5106855594,1704.63,Alabare Christian Care Centre ,100837,SP2 ,Children & Education,Ext Placement & IFA,Adult / Child Care Agency Placement,Third Party Payments,REVENUE
Wiltshire,http://opendatacommunities.org/id/unitary-authority/wiltshire,01/04/2016,5106855600,2308.94,Alabare Christian Care Centre ,100837,SP2 ,Children & Education,Albare Contract,Adult / Child Care Agency Placement,Third Party Payments,REVENUE
Wiltshire,http://opendatacommunities.org/id/unitary-authority/wiltshire,01/04/2016,5106855613,6136.94,Alabare Christian Care Centre ,100837,SP2 ,Children & Education,Albare Contract,Adult / Child Care Agency Placement,Third Party Payments,REVENUE
Wiltshire,http://opendatacommunities.org/id/unitary-authority/wiltshire,01/04/2016,5106855643,2860.86,Alabare Christian Care Centre ,100837,SP2 ,Children & Education,Albare Contract,Adult / Child Care Agency Placement,Third Party Payments,REVENUE
Wiltshire,http://opendatacommunities.org/id/unitary-authority/wiltshire,01/04/2016,5106855651,478.50,Alabare Christian Care Centre ,100837,SP2 ,Children & Education,Safeguarding Ass Sth,Adult / Child Care Agency Placement,Third Party Payments,REVENUE
Wiltshire,http://opendatacommunities.org/id/unitary-authority/wiltshire,01/04/2016,5106855652,4101.43,Alabare Christian Care Centre ,100837,SP2 ,Children & Education,Albare Contract,Adult / Child Care Agency Placement,Third Party Payments,REVENUE
Wiltshire,http://opendatacommunities.org/id/unitary-authority/wiltshire,01/04/2016,5106855658,6592.18,Alabare Christian Care Centre ,100837,SP2 ,Children & Education,Albare Contract,Adult / Child Care Agency Placement,Third Party Payments,REVENUE
Wiltshire,http://opendatacommunities.org/id/unitary-authority/wiltshire,01/04/2016,5106855744,2252.31,Alabare Christian Care Centre ,100837,SP2 ,Children & Education,Albare Contract,Adult / Child Care Agency Placement,Third Party Payments,REVENUE
Wiltshire,http://opendatacommunities.org/id/unitary-authority/wiltshire,01/04/2016,5106855746,1950.48,Alabare Christian Care Centre ,100837,SP2 ,Children & Education,Albare Contract,Adult / Child Care Agency Placement,Third Party Payments,REVENUE
Wiltshire,http://opendatacommunities.org/id/unitary-authority/wiltshire,06/04/2016,5106856327,410.44,Alabare Christian Care Centre ,100837,SP2 ,Community Services,CTPLD Place CIC U65,Adult Domiciliary Care - Spot Contribution,Income,REVENUE
Wiltshire,http://opendatacommunities.org/id/unitary-authority/wiltshire,29/04/2016,5106870315,342.00,Alabare Christian Care Centre ,100837,SP2 ,Community Services,CTPLD Place CIC U65,Adult Day Care - Spot,Third Party Payments,REVENUE
Wiltshire,http://opendatacommunities.org/id/unitary-authority/wiltshire,29/04/2016,5106870317,342.00,Alabare Christian Care Centre ,100837,SP2 ,Community Services,CTPLD Place CIC U65,Adult Day Care - Spot,Third Party Payments,REVENUE
Wiltshire,http://opendatacommunities.org/id/unitary-authority/wiltshire,26/04/2016,1901709101,3216.00,Albino Builders Ltd ,141742,BA4 ,Wiltshire Council,Wiltshire Council,Payments to Contractors - Other,Third Party Payments,CAPITAL
Wiltshire,http://opendatacommunities.org/id/unitary-authority/wiltshire,20/04/2016,5106856371,7995.00,Alcium Software Ltd ,113391,S35 ,Neighbourhood & Planning,A4W Inv Serv BL1b&c,Telephones - Landlines (incl fax),Supplies and Services,REVENUE
Wiltshire,http://opendatacommunities.org/id/unitary-authority/wiltshire,06/04/2016,5106858692,817.60,Aldbourne Nursing Home ,110090,SN8 ,Community Services,MH OP North Locality,Adult Care Nursing Placements- Spot Purchase,Third Party Payments,REVENUE
Wiltshire,http://opendatacommunities.org/id/unitary-authority/wiltshire,06/04/2016,5106858915,3400.00,Aldbourne Nursing Home ,110090,SN8 ,Community Services,Home Loans,Adult Care Loans,Capital charges and Expenditure,REVENUE
Wiltshire,http://opendatacommunities.org/id/unitary-authority/wiltshire,06/04/2016,5106859066,2952.00,Aldbourne Nursing Home ,110090,SN8 ,Community Services,Home Loans,Adult Care Loans,Capital charges and Expenditure,REVENUE
Wiltshire,http://opendatacommunities.org/id/unitary-authority/wiltshire,06/04/2016,5106859086,3052.00,Aldbourne Nursing Home ,110090,SN8 ,Community Services,Home Loans,Adult Care Loans,Capital charges and Expenditure,REVENUE
Wiltshire,http://opendatacommunities.org/id/unitary-authority/wiltshire,06/04/2016,5106859404,1090.00,Aldbourne Nursing Home ,110090,SN8 ,Community Services,Marlborough,Adult Care Nursing Placements- Spot Purchase,Third Party Payments,REVENUE
Wiltshire,http://opendatacommunities.org/id/unitary-authority/wiltshire,06/04/2016,5106859579,741.60,Aldbourne Nursing Home ,110090,SN8 ,Community Services,Marlborough,Adult Care Nursing Placements- Spot Purchase,Third Party Payments,REVENUE
Wiltshire,http://opendatacommunities.org/id/unitary-authority/wiltshire,06/04/2016,5106859582,911.40,Aldbourne Nursing Home ,110090,SN8 ,Community Services,Marlborough,Adult Care Nursing Placements- Spot Purchase,Third Party Payments,REVENUE
Wiltshire,http://opendatacommunities.org/id/unitary-authority/wiltshire,06/04/2016,5106859976,728.90,Aldbourne Nursing Home ,110090,SN8 ,Community Services,Marlborough,Adult Care Nursing Placements- Spot Purchase,Third Party Payments,REVENUE
Wiltshire,http://opendatacommunities.org/id/unitary-authority/wiltshire,29/04/2016,5106870584,265.00,Alere Toxicology Plc ,131373,OX14,Children & Education,HQ Social Care,Witness / Jurors' / Justice's Expenses,Supplies and Services,REVENUE
Wiltshire,http://opendatacommunities.org/id/unitary-authority/wiltshire,15/04/2016,1901705278,360.00,Alexander's ,129540,BA12,Neighbourhood & Planning,Mainstream Primary,Transport Contracts,Third Party Payments,REVENUE
Wiltshire,http://opendatacommunities.org/id/unitary-authority/wiltshire,06/04/2016,5106858964,5764.60,Alexandra Homes (Bristol) Ltd ,131787,BS15,Community Services,MH AOWA North Locali,Adult Residential Placements - Spot Purchase,Third Party Payments,REVENUE
Wiltshire,http://opendatacommunities.org/id/unitary-authority/wiltshire,22/04/2016,5106866543,2869.23,Alexandra Homes (Bristol) Ltd ,131787,BS15,Community Services,Avon,Adult Residential Placements - Spot Purchase,Third Party Payments,REVENUE
Wiltshire,http://opendatacommunities.org/id/unitary-authority/wiltshire,22/04/2016,5106866547,3752.07,Alexandra Homes (Bristol) Ltd ,131787,BS15,Community Services,Avon,Adult Residential Placements - Spot Purchase,Third Party Payments,REVENUE
Wiltshire,http://opendatacommunities.org/id/unitary-authority/wiltshire,22/04/2016,5106866549,2207.10,Alexandra Homes (Bristol) Ltd ,131787,BS15,Community Services,Avon,Adult Residential Placements - Spot Purchase,Third Party Payments,REVENUE
Wiltshire,http://opendatacommunities.org/id/unitary-authority/wiltshire,22/04/2016,5106866551,3310.65,Alexandra Homes (Bristol) Ltd ,131787,BS15,Community Services,Avon,Adult Residential Placements - Spot Purchase,Third Party Payments,REVENUE
Wiltshire,http://opendatacommunities.org/id/unitary-authority/wiltshire,06/04/2016,5106856142,1142.90,Alliance Home Care ,110986,SN15,Community Services,MH AOWA North Locali,Adult Residential Placements - Spot Purchase,Third Party Payments,REVENUE
Wiltshire,http://opendatacommunities.org/id/unitary-authority/wiltshire,06/04/2016,5106859040,753.20,Alliance Home Care ,110986,SN15,Community Services,MH OP North Locality,Adult Residential Placements - Spot Purchase,Third Party Payments,REVENUE
Wiltshire,http://opendatacommunities.org/id/unitary-authority/wiltshire,06/04/2016,5106859434,1304.00,Alliance Home Care ,110986,SN15,Community Services,MH AOWA North Locali,Adult Residential Placements - Spot Purchase,Third Party Payments,REVENUE
Wiltshire,http://opendatacommunities.org/id/unitary-authority/wiltshire,06/04/2016,5106859888,1339.10,Alliance Home Care ,110986,SN15,Community Services,MH OP North Locality,Adult Residential Placements - Spot Purchase,Third Party Payments,REVENUE
Wiltshire,http://opendatacommunities.org/id/unitary-authority/wiltshire,06/04/2016,5106860052,1425.60,Alliance Home Care ,110986,SN15,Community Services,MH AOWA North Locali,Adult Residential Placements - Spot Purchase,Third Party Payments,REVENUE
Wiltshire,http://opendatacommunities.org/id/unitary-authority/wiltshire,22/04/2016,5106864877,300.00,Allied Healthcare Group Allied Healthcare Group,113066,SP2 ,Community Services,OVA South Locality,Supported Living - Without SP payments,Third Party Payments,REVENUE
Wiltshire,http://opendatacommunities.org/id/unitary-authority/wiltshire,22/04/2016,5106866296,2988.56,Allied Healthcare Group Allied Healthcare Group,113066,SP2 ,Community Services,CTPLD Place CIC U65,Adult Domiciliary Care - Spot,Third Party Payments,REVENUE
Wiltshire,http://opendatacommunities.org/id/unitary-authority/wiltshire,22/04/2016,5106866299,3886.37,Allied Healthcare Group Allied Healthcare Group,113066,SP2 ,Community Services,CTPLD Place CIC U65,Supported Living - Without SP payments,Third Party Payments,REVENUE
Wiltshire,http://opendatacommunities.org/id/unitary-authority/wiltshire,06/04/2016,5106856325,480.00,ALLSPARES  AUTO  LTD ,110116,CF33,Neighbourhood & Planning,Fleet Operations,Vehicle Parts,Transport Related,REVENUE
Wiltshire,http://opendatacommunities.org/id/unitary-authority/wiltshire,06/04/2016,5106856350,310.00,ALLSPARES  AUTO  LTD ,110116,CF33,Neighbourhood & Planning,Fleet Operations,Vehicle Parts,Transport Related,REVENUE
Wiltshire,http://opendatacommunities.org/id/unitary-authority/wiltshire,13/04/2016,5106863703,480.00,ALLSPARES  AUTO  LTD ,110116,CF33,Neighbourhood & Planning,Fleet Operations,Vehicle Oil & Consumables,Transport Related,REVENUE
Wiltshire,http://opendatacommunities.org/id/unitary-authority/wiltshire,08/04/2016,5106850314,433.43,Alpha Chemicals ,138904,SO31,Neighbourhood & Planning,Five Rivers,Building Fixtures and Fittings,Premises Related,REVENUE
Wiltshire,http://opendatacommunities.org/id/unitary-authority/wiltshire,29/04/2016,5106863476,449.20,Alpha Chemicals ,138904,SO31,Neighbourhood & Planning,Devizes,Cleaning Materials - Buildings,Premises Related,REVENUE
Wiltshire,http://opendatacommunities.org/id/unitary-authority/wiltshire,19/04/2016,5106863502,398.90,Alpha Chemicals ,138904,SO31,Neighbourhood & Planning,Five Rivers,Building Fixtures and Fittings,Premises Related,REVENUE
Wiltshire,http://opendatacommunities.org/id/unitary-authority/wiltshire,05/04/2016,1901694408,309.32,Alpha Plus Training  and  Translati Ltd,110120,TA4 ,Children & Education,HQ Social Care,Other Professional Fees,Supplies and Services,REVENUE
Wiltshire,http://opendatacommunities.org/id/unitary-authority/wiltshire,29/04/2016,1901710581,591.72,Alpha Plus Training  and  Translati Ltd,110120,TA4 ,Children & Education,Safeguarding Ass Sth,Other Professional Fees,Supplies and Services,REVENUE
Wiltshire,http://opendatacommunities.org/id/unitary-authority/wiltshire,29/04/2016,1901710583,546.00,Alpha Plus Training  and  Translati Ltd,110120,TA4 ,Children & Education,Safeguarding Ass Sth,Other Professional Fees,Supplies and Services,REVENUE
Wiltshire,http://opendatacommunities.org/id/unitary-authority/wiltshire,29/04/2016,1901710699,574.05,Alpha Plus Training  and  Translati Ltd,110120,TA4 ,Children & Education,Safeguarding Ass Sth,Other Professional Fees,Supplies and Services,REVENUE
Wiltshire,http://opendatacommunities.org/id/unitary-authority/wiltshire,14/04/2016,5106863937,312.05,Alpha Plus Training  and  Translati Ltd,110120,TA4 ,Children & Education,HQ Social Care,Other Professional Fees,Supplies and Services,REVENUE
Wiltshire,http://opendatacommunities.org/id/unitary-authority/wiltshire,14/04/2016,5106863953,312.90,Alpha Plus Training  and  Translati Ltd,110120,TA4 ,Children & Education,HQ Social Care,Other Professional Fees,Supplies and Services,REVENUE
Wiltshire,http://opendatacommunities.org/id/unitary-authority/wiltshire,25/04/2016,5106863954,506.55,Alpha Plus Training  and  Translati Ltd,110120,TA4 ,Children & Education,HQ Social Care,Other Professional Fees,Supplies and Services,REVENUE
Wiltshire,http://opendatacommunities.org/id/unitary-authority/wiltshire,28/04/2016,5106863959,468.75,Alpha Plus Training  and  Translati Ltd,110120,TA4 ,Children & Education,HQ Social Care,Other Professional Fees,Supplies and Services,REVENUE
Wiltshire,http://opendatacommunities.org/id/unitary-authority/wiltshire,25/04/2016,5106863965,569.36,Alpha Plus Training  and  Translati Ltd,110120,TA4 ,Children & Education,HQ Social Care,Other Professional Fees,Supplies and Services,REVENUE
Wiltshire,http://opendatacommunities.org/id/unitary-authority/wiltshire,25/04/2016,5106863966,389.29,Alpha Plus Training  and  Translati Ltd,110120,TA4 ,Children & Education,HQ Social Care,Other Professional Fees,Supplies and Services,REVENUE
Wiltshire,http://opendatacommunities.org/id/unitary-authority/wiltshire,25/04/2016,5106863969,685.08,Alpha Plus Training  and  Translati Ltd,110120,TA4 ,Children & Education,HQ Social Care,Other Professional Fees,Supplies and Services,REVENUE
Wiltshire,http://opendatacommunities.org/id/unitary-authority/wiltshire,14/04/2016,5106863987,318.70,Alpha Plus Training  and  Translati Ltd,110120,TA4 ,Children & Education,HQ Social Care,Other Professional Fees,Supplies and Services,REVENUE
Wiltshire,http://opendatacommunities.org/id/unitary-authority/wiltshire,25/04/2016,5106864005,543.40,Alpha Plus Training  and  Translati Ltd,110120,TA4 ,Children & Education,HQ Social Care,Other Professional Fees,Supplies and Services,REVENUE
Wiltshire,http://opendatacommunities.org/id/unitary-authority/wiltshire,14/04/2016,5106864011,668.91,Alpha Plus Training  and  Translati Ltd,110120,TA4 ,Children & Education,HQ Social Care,Other Professional Fees,Supplies and Services,REVENUE
Wiltshire,http://opendatacommunities.org/id/unitary-authority/wiltshire,15/04/2016,5106864083,334.05,Alpha Plus Training  and  Translati Ltd,110120,TA4 ,Children & Education,CFAsylumSeekers,Other Professional Fees,Supplies and Services,REVENUE
Wiltshire,http://opendatacommunities.org/id/unitary-authority/wiltshire,13/04/2016,5106864084,313.60,Alpha Plus Training  and  Translati Ltd,110120,TA4 ,Children & Education,CFAsylumSeekers,Other Professional Fees,Supplies and Services,REVENUE
Wiltshire,http://opendatacommunities.org/id/unitary-authority/wiltshire,13/04/2016,5106864091,321.25,Alpha Plus Training  and  Translati Ltd,110120,TA4 ,Children & Education,CFAsylumSeekers,Other Professional Fees,Supplies and Services,REVENUE
Wiltshire,http://opendatacommunities.org/id/unitary-authority/wiltshire,28/04/2016,5106864094,468.80,Alpha Plus Training  and  Translati Ltd,110120,TA4 ,Children & Education,CFAsylumSeekers,Other Professional Fees,Supplies and Services,REVENUE
Wiltshire,http://opendatacommunities.org/id/unitary-authority/wiltshire,15/04/2016,5106864246,255.65,Alpha Plus Training  and  Translati Ltd,110120,TA4 ,Children & Education,UASC 18,Other Professional Fees,Supplies and Services,REVENUE
Wiltshire,http://opendatacommunities.org/id/unitary-authority/wiltshire,15/04/2016,5106864248,317.18,Alpha Plus Training  and  Translati Ltd,110120,TA4 ,Children & Education,UASC 18,Other Professional Fees,Supplies and Services,REVENUE
Wiltshire,http://opendatacommunities.org/id/unitary-authority/wiltshire,15/04/2016,5106864249,266.55,Alpha Plus Training  and  Translati Ltd,110120,TA4 ,Children & Education,UASC 18,Other Professional Fees,Supplies and Services,REVENUE
Wiltshire,http://opendatacommunities.org/id/unitary-authority/wiltshire,15/04/2016,5106864271,379.95,Alpha Plus Training  and  Translati Ltd,110120,TA4 ,Children & Education,UASC 18,Other Professional Fees,Supplies and Services,REVENUE
Wiltshire,http://opendatacommunities.org/id/unitary-authority/wiltshire,15/04/2016,5106864272,297.95,Alpha Plus Training  and  Translati Ltd,110120,TA4 ,Children & Education,UASC 18,Other Professional Fees,Supplies and Services,REVENUE
Wiltshire,http://opendatacommunities.org/id/unitary-authority/wiltshire,15/04/2016,5106864273,357.20,Alpha Plus Training  and  Translati Ltd,110120,TA4 ,Children & Education,UASC 18,Other Professional Fees,Supplies and Services,REVENUE
Wiltshire,http://opendatacommunities.org/id/unitary-authority/wiltshire,15/04/2016,5106864274,295.03,Alpha Plus Training  and  Translati Ltd,110120,TA4 ,Children & Education,UASC 18,Other Professional Fees,Supplies and Services,REVENUE
Wiltshire,http://opendatacommunities.org/id/unitary-authority/wiltshire,28/04/2016,5106865124,431.25,Alpha Plus Training  and  Translati Ltd,110120,TA4 ,Children & Education,CFAsylumSeekers,Other Professional Fees,Supplies and Services,REVENUE
Wiltshire,http://opendatacommunities.org/id/unitary-authority/wiltshire,19/04/2016,5106865137,320.70,Alpha Plus Training  and  Translati Ltd,110120,TA4 ,Children & Education,CFAsylumSeekers,Other Professional Fees,Supplies and Services,REVENUE
Wiltshire,http://opendatacommunities.org/id/unitary-authority/wiltshire,19/04/2016,5106865138,251.45,Alpha Plus Training  and  Translati Ltd,110120,TA4 ,Children & Education,CFAsylumSeekers,Other Professional Fees,Supplies and Services,REVENUE
Wiltshire,http://opendatacommunities.org/id/unitary-authority/wiltshire,19/04/2016,5106865150,261.45,Alpha Plus Training  and  Translati Ltd,110120,TA4 ,Children & Education,CFAsylumSeekers,Other Professional Fees,Supplies and Services,REVENUE
Wiltshire,http://opendatacommunities.org/id/unitary-authority/wiltshire,19/04/2016,5106865152,359.65,Alpha Plus Training  and  Translati Ltd,110120,TA4 ,Children & Education,CFAsylumSeekers,Other Professional Fees,Supplies and Services,REVENUE
Wiltshire,http://opendatacommunities.org/id/unitary-authority/wiltshire,19/04/2016,5106865153,270.25,Alpha Plus Training  and  Translati Ltd,110120,TA4 ,Children & Education,CFAsylumSeekers,Other Professional Fees,Supplies and Services,REVENUE
Wiltshire,http://opendatacommunities.org/id/unitary-authority/wiltshire,12/04/2016,1901696917,346.80,Alpha Taxis ,100124,BA14,Neighbourhood & Planning,Mainstream Secondary,Transport Contracts,Third Party Payments,REVENUE
Wiltshire,http://opendatacommunities.org/id/unitary-authority/wiltshire,12/04/2016,1901696918,276.00,Alpha Taxis ,100124,BA14,Neighbourhood & Planning,SEN Secondary,Transport Contracts,Third Party Payments,REVENUE
Wiltshire,http://opendatacommunities.org/id/unitary-authority/wiltshire,12/04/2016,1901696919,960.00,Alpha Taxis ,100124,BA14,Neighbourhood & Planning,SEN Secondary,Transport Contracts,Third Party Payments,REVENUE
Wiltshire,http://opendatacommunities.org/id/unitary-authority/wiltshire,12/04/2016,1901696920,1139.40,Alpha Taxis ,100124,BA14,Neighbourhood & Planning,SEN Primary,Transport Contracts,Third Party Payments,REVENUE
Wiltshire,http://opendatacommunities.org/id/unitary-authority/wiltshire,12/04/2016,1901696921,748.00,Alpha Taxis ,100124,BA14,Neighbourhood & Planning,SEN Primary,Transport Contracts,Third Party Payments,REVENUE
Wiltshire,http://opendatacommunities.org/id/unitary-authority/wiltshire,12/04/2016,1901696923,532.80,Alpha Taxis ,100124,BA14,Neighbourhood & Planning,SEN 16+ Secondary,Transport Contracts,Third Party Payments,REVENUE
Wiltshire,http://opendatacommunities.org/id/unitary-authority/wiltshire,12/04/2016,1901696925,703.80,Alpha Taxis ,100124,BA14,Neighbourhood & Planning,Mainstream Secondary,Transport Contracts,Third Party Payments,REVENUE
Wiltshire,http://opendatacommunities.org/id/unitary-authority/wiltshire,12/04/2016,1901696928,403.55,Alpha Taxis ,100124,BA14,Neighbourhood & Planning,Mainstream Primary,Transport Contracts,Third Party Payments,REVENUE
Wiltshire,http://opendatacommunities.org/id/unitary-authority/wiltshire,12/04/2016,1901696929,409.20,Alpha Taxis ,100124,BA14,Neighbourhood & Planning,Mainstream Primary,Transport Contracts,Third Party Payments,REVENUE
Wiltshire,http://opendatacommunities.org/id/unitary-authority/wiltshire,12/04/2016,1901696931,395.08,Alpha Taxis ,100124,BA14,Neighbourhood & Planning,Mainstream Primary,Transport Contracts,Third Party Payments,REVENUE
Wiltshire,http://opendatacommunities.org/id/unitary-authority/wiltshire,12/04/2016,1901696932,945.25,Alpha Taxis ,100124,BA14,Neighbourhood & Planning,SEN Primary,Transport Contracts,Third Party Payments,REVENUE
Wiltshire,http://opendatacommunities.org/id/unitary-authority/wiltshire,12/04/2016,1901696934,399.80,Alpha Taxis ,100124,BA14,Community Services,CTPLD Place CIC U65,Transport Contracts,Third Party Payments,REVENUE
Wiltshire,http://opendatacommunities.org/id/unitary-authority/wiltshire,12/04/2016,1901696936,913.10,Alpha Taxis ,100124,BA14,Neighbourhood & Planning,Mainstream Secondary,Transport Contracts,Third Party Payments,REVENUE
Wiltshire,http://opendatacommunities.org/id/unitary-authority/wiltshire,12/04/2016,1901696937,261.00,Alpha Taxis ,100124,BA14,Neighbourhood & Planning,Mainstream Secondary,Transport Contracts,Third Party Payments,REVENUE
Wiltshire,http://opendatacommunities.org/id/unitary-authority/wiltshire,12/04/2016,1901696938,431.75,Alpha Taxis ,100124,BA14,Neighbourhood & Planning,Mainstream 16+ FE,Transport Contracts,Third Party Payments,REVENUE
Wiltshire,http://opendatacommunities.org/id/unitary-authority/wiltshire,14/04/2016,1901704945,317.60,Alpha Taxis ,100124,BA14,Community Services,CTPLD Place CIC U65,Transport Contracts,Third Party Payments,REVENUE
Wiltshire,http://opendatacommunities.org/id/unitary-authority/wiltshire,14/04/2016,1901704945,2156.20,Alpha Taxis ,100124,BA14,Children & Education,Safeguarding Ass Sth,Transport Contracts,Third Party Payments,REVENUE
Wiltshire,http://opendatacommunities.org/id/unitary-authority/wiltshire,14/04/2016,1901704945,2730.00,Alpha Taxis ,100124,BA14,Neighbourhood & Planning,SEN Secondary,Transport Contracts,Third Party Payments,REVENUE
Wiltshire,http://opendatacommunities.org/id/unitary-authority/wiltshire,13/04/2016,1901704390,2430.00,Alpha Taxis (Tidworth) ,137541,SP9 ,Neighbourhood & Planning,SEN Secondary,Transport Contracts,Third Party Payments,REVENUE
Wiltshire,http://opendatacommunities.org/id/unitary-authority/wiltshire,27/04/2016,1901709902,1530.00,Alpha Taxis (Tidworth) ,137541,SP9 ,Neighbourhood & Planning,SEN Primary,Transport Contracts,Third Party Payments,REVENUE
Wiltshire,http://opendatacommunities.org/id/unitary-authority/wiltshire,07/04/2016,1901695725,996.00,Alzheimers Support ,113451,BA14,Wiltshire Council,Wiltshire Council,Area Board Grants,Supplies and Services,CAPITAL
Wiltshire,http://opendatacommunities.org/id/unitary-authority/wiltshire,06/04/2016,5106854984,1285.70,Amber Residential Care Homes Ltd ,141558,OX4 ,Community Services,MH AOWA North Locali,Supported Living - Without SP payments,Third Party Payments,REVENUE
Wiltshire,http://opendatacommunities.org/id/unitary-authority/wiltshire,06/04/2016,5106859325,6091.80,Amberwood Cambian Group ,138521,BH14,Community Services,CTPLD Place CIC U65,Adult Residential Placements - Spot Purchase,Third Party Payments,REVENUE
Wiltshire,http://opendatacommunities.org/id/unitary-authority/wiltshire,06/04/2016,5106860556,3983.50,Amberwood Cambian Group ,138521,BH14,Community Services,CTPLD Place CIC U65,Adult Residential Placements - Spot Purchase,Third Party Payments,REVENUE
Wiltshire,http://opendatacommunities.org/id/unitary-authority/wiltshire,19/04/2016,5106864988,4560.00,Ameo Professional Services LLP ,137429,B80 ,Resources,InternalCommunicats,Consultants� Fees,Supplies and Services,REVENUE
Wiltshire,http://opendatacommunities.org/id/unitary-authority/wiltshire,27/04/2016,1901709296,2750.00,Amesbury Junior Football Club ,135882,SP4 ,Community Services,Area Board Amesbury,Area Board Youth Grants,Supplies and Services,REVENUE
Wiltshire,http://opendatacommunities.org/id/unitary-authority/wiltshire,25/04/2016,5106866705,3543.00,Amicus Foster Care Limited ,126050,BS2 ,Children & Education,Ext Placement & IFA,Adult / Child Care Agency Placement,Third Party Payments,REVENUE
Wiltshire,http://opendatacommunities.org/id/unitary-authority/wiltshire,25/04/2016,5106866706,3267.00,Amicus Foster Care Limited ,126050,BS2 ,Children & Education,Ext Placement & IFA,Adult / Child Care Agency Placement,Third Party Payments,REVENUE
Wiltshire,http://opendatacommunities.org/id/unitary-authority/wiltshire,25/04/2016,5106866707,4478.70,Amicus Foster Care Limited ,126050,BS2 ,Children & Education,Ext Placement & IFA,Adult / Child Care Agency Placement,Third Party Payments,REVENUE
Wiltshire,http://opendatacommunities.org/id/unitary-authority/wiltshire,25/04/2016,5106866708,3542.70,Amicus Foster Care Limited ,126050,BS2 ,Children & Education,Ext Placement & IFA,Adult / Child Care Agency Placement,Third Party Payments,REVENUE
Wiltshire,http://opendatacommunities.org/id/unitary-authority/wiltshire,25/04/2016,5106866709,3045.00,Amicus Foster Care Limited ,126050,BS2 ,Children & Education,Ext Placement & IFA,Adult / Child Care Agency Placement,Third Party Payments,REVENUE
Wiltshire,http://opendatacommunities.org/id/unitary-authority/wiltshire,25/04/2016,5106866711,3045.00,Amicus Foster Care Limited ,126050,BS2 ,Children & Education,Ext Placement & IFA,Adult / Child Care Agency Placement,Third Party Payments,REVENUE
Wiltshire,http://opendatacommunities.org/id/unitary-authority/wiltshire,25/04/2016,5106866716,3297.00,Amicus Foster Care Limited ,126050,BS2 ,Children & Education,Ext Placement & IFA,Adult / Child Care Agency Placement,Third Party Payments,REVENUE
Wiltshire,http://opendatacommunities.org/id/unitary-authority/wiltshire,25/04/2016,5106866718,1045.74,Amicus Foster Care Limited ,126050,BS2 ,Children & Education,PCT in/out,Adult / Child Care Agency Placement,Third Party Payments,REVENUE
Wiltshire,http://opendatacommunities.org/id/unitary-authority/wiltshire,05/04/2016,5106856127,2500.00,AMS Care Wiltshire ,130764,SN4 ,Community Services,North Locality OP,Adult Care Nursing Placements- Block Contract,Third Party Payments,REVENUE
Wiltshire,http://opendatacommunities.org/id/unitary-authority/wiltshire,06/04/2016,5106857473,2584.79,AMS Care Wiltshire ,130764,SN4 ,Community Services,West Locality OP,Adult Care Nursing Placements- Block Contract,Third Party Payments,REVENUE
Wiltshire,http://opendatacommunities.org/id/unitary-authority/wiltshire,06/04/2016,5106857637,506.52,AMS Care Wiltshire ,130764,SN4 ,Community Services,MH OP North Locality,Adult Care Nursing Placements- Block Contract,Third Party Payments,REVENUE
Wiltshire,http://opendatacommunities.org/id/unitary-authority/wiltshire,06/04/2016,5106858562,914.20,AMS Care Wiltshire ,130764,SN4 ,Community Services,Cricklade,Adult Care Nursing Placements- Block Contract,Third Party Payments,REVENUE
Wiltshire,http://opendatacommunities.org/id/unitary-authority/wiltshire,06/04/2016,5106858608,914.20,AMS Care Wiltshire ,130764,SN4 ,Community Services,Cricklade,Adult Care Nursing Placements- Block Contract,Third Party Payments,REVENUE
Wiltshire,http://opendatacommunities.org/id/unitary-authority/wiltshire,06/04/2016,5106858698,914.20,AMS Care Wiltshire ,130764,SN4 ,Community Services,Cricklade,Adult Care Nursing Placements- Block Contract,Third Party Payments,REVENUE
Wiltshire,http://opendatacommunities.org/id/unitary-authority/wiltshire,06/04/2016,5106858723,914.20,AMS Care Wiltshire ,130764,SN4 ,Community Services,Cricklade,Adult Care Nursing Placements- Block Contract,Third Party Payments,REVENUE
Wiltshire,http://opendatacommunities.org/id/unitary-authority/wiltshire,06/04/2016,5106858760,840.50,AMS Care Wiltshire ,130764,SN4 ,Community Services,Cricklade,Adult Care Nursing Placements- Block Contract,Third Party Payments,REVENUE
Wiltshire,http://opendatacommunities.org/id/unitary-authority/wiltshire,06/04/2016,5106858829,914.20,AMS Care Wiltshire ,130764,SN4 ,Community Services,Cricklade,Adult Care Nursing Placements- Block Contract,Third Party Payments,REVENUE
Wiltshire,http://opendatacommunities.org/id/unitary-authority/wiltshire,06/04/2016,5106858832,840.50,AMS Care Wiltshire ,130764,SN4 ,Community Services,Cricklade,Adult Care Nursing Placements- Block Contract,Third Party Payments,REVENUE
Wiltshire,http://opendatacommunities.org/id/unitary-authority/wiltshire,06/04/2016,5106859077,840.50,AMS Care Wiltshire ,130764,SN4 ,Community Services,Cricklade,Adult Care Nursing Placements- Block Contract,Third Party Payments,REVENUE
Wiltshire,http://opendatacommunities.org/id/unitary-authority/wiltshire,06/04/2016,5106859303,2344.12,AMS Care Wiltshire ,130764,SN4 ,Community Services,Adult Care Gross Loa,Adult Care Loans,Capital charges and Expenditure,REVENUE
Wiltshire,http://opendatacommunities.org/id/unitary-authority/wiltshire,06/04/2016,5106859529,914.20,AMS Care Wiltshire ,130764,SN4 ,Community Services,Cricklade,Adult Care Nursing Placements- Block Contract,Third Party Payments,REVENUE
Wiltshire,http://opendatacommunities.org/id/unitary-authority/wiltshire,06/04/2016,5106859535,840.50,AMS Care Wiltshire ,130764,SN4 ,Community Services,Cricklade,Adult Care Nursing Placements- Block Contract,Third Party Payments,REVENUE
Wiltshire,http://opendatacommunities.org/id/unitary-authority/wiltshire,06/04/2016,5106859540,914.20,AMS Care Wiltshire ,130764,SN4 ,Community Services,Cricklade,Adult Care Nursing Placements- Block Contract,Third Party Payments,REVENUE
Wiltshire,http://opendatacommunities.org/id/unitary-authority/wiltshire,06/04/2016,5106859552,914.20,AMS Care Wiltshire ,130764,SN4 ,Community Services,Cricklade,Adult Care Nursing Placements- Block Contract,Third Party Payments,REVENUE
Wiltshire,http://opendatacommunities.org/id/unitary-authority/wiltshire,06/04/2016,5106859559,1070.60,AMS Care Wiltshire ,130764,SN4 ,Community Services,MH OP North Locality,Adult Care Nursing Placements- Spot Purchase,Third Party Payments,REVENUE
Wiltshire,http://opendatacommunities.org/id/unitary-authority/wiltshire,06/04/2016,5106859588,2549.60,AMS Care Wiltshire ,130764,SN4 ,Community Services,Adult Care Gross Loa,Adult Care Loans,Capital charges and Expenditure,REVENUE
Wiltshire,http://opendatacommunities.org/id/unitary-authority/wiltshire,06/04/2016,5106859625,914.20,AMS Care Wiltshire ,130764,SN4 ,Community Services,Cricklade,Adult Care Nursing Placements- Spot Purchase,Third Party Payments,REVENUE
Wiltshire,http://opendatacommunities.org/id/unitary-authority/wiltshire,06/04/2016,5106859660,914.20,AMS Care Wiltshire ,130764,SN4 ,Community Services,Cricklade,Adult Care Nursing Placements- Block Contract,Third Party Payments,REVENUE
Wiltshire,http://opendatacommunities.org/id/unitary-authority/wiltshire,06/04/2016,5106860115,840.50,AMS Care Wiltshire ,130764,SN4 ,Community Services,Cricklade,Adult Care Nursing Placements- Block Contract,Third Party Payments,REVENUE
Wiltshire,http://opendatacommunities.org/id/unitary-authority/wiltshire,06/04/2016,5106860443,840.50,AMS Care Wiltshire ,130764,SN4 ,Community Services,Cricklade,Adult Care Nursing Placements- Block Contract,Third Party Payments,REVENUE
Wiltshire,http://opendatacommunities.org/id/unitary-authority/wiltshire,06/04/2016,5106860522,840.50,AMS Care Wiltshire ,130764,SN4 ,Community Services,Cricklade,Adult Care Nursing Placements- Block Contract,Third Party Payments,REVENUE
Wiltshire,http://opendatacommunities.org/id/unitary-authority/wiltshire,06/04/2016,5106860567,840.50,AMS Care Wiltshire ,130764,SN4 ,Community Services,Cricklade,Adult Care Nursing Placements- Block Contract,Third Party Payments,REVENUE
Wiltshire,http://opendatacommunities.org/id/unitary-authority/wiltshire,06/04/2016,5106860584,914.20,AMS Care Wiltshire ,130764,SN4 ,Community Services,Cricklade,Adult Care Nursing Placements- Block Contract,Third Party Payments,REVENUE
Wiltshire,http://opendatacommunities.org/id/unitary-authority/wiltshire,06/04/2016,5106860665,840.50,AMS Care Wiltshire ,130764,SN4 ,Community Services,Cricklade,Adult Care Nursing Placements- Block Contract,Third Party Payments,REVENUE
Wiltshire,http://opendatacommunities.org/id/unitary-authority/wiltshire,06/04/2016,5106860673,840.50,AMS Care Wiltshire ,130764,SN4 ,Community Services,Cricklade,Adult Care Nursing Placements- Block Contract,Third Party Payments,REVENUE
Wiltshire,http://opendatacommunities.org/id/unitary-authority/wiltshire,06/04/2016,5106860676,840.50,AMS Care Wiltshire ,130764,SN4 ,Community Services,MH OP North Locality,Adult Care Nursing Placements- Block Contract,Third Party Payments,REVENUE
Wiltshire,http://opendatacommunities.org/id/unitary-authority/wiltshire,06/04/2016,5106860694,840.50,AMS Care Wiltshire ,130764,SN4 ,Community Services,Cricklade,Adult Care Nursing Placements- Block Contract,Third Party Payments,REVENUE
Wiltshire,http://opendatacommunities.org/id/unitary-authority/wiltshire,06/04/2016,5106860721,840.50,AMS Care Wiltshire ,130764,SN4 ,Community Services,Cricklade,Adult Care Nursing Placements- Block Contract,Third Party Payments,REVENUE
Wiltshire,http://opendatacommunities.org/id/unitary-authority/wiltshire,06/04/2016,5106860740,840.50,AMS Care Wiltshire ,130764,SN4 ,Community Services,Cricklade,Adult Care Nursing Placements- Block Contract,Third Party Payments,REVENUE
Wiltshire,http://opendatacommunities.org/id/unitary-authority/wiltshire,06/04/2016,5106860781,840.50,AMS Care Wiltshire ,130764,SN4 ,Community Services,Cricklade,Adult Care Nursing Placements- Block Contract,Third Party Payments,REVENUE
Wiltshire,http://opendatacommunities.org/id/unitary-authority/wiltshire,06/04/2016,5106860864,914.20,AMS Care Wiltshire ,130764,SN4 ,Community Services,Cricklade,Adult Care Nursing Placements- Block Contract,Third Party Payments,REVENUE
Wiltshire,http://opendatacommunities.org/id/unitary-authority/wiltshire,15/04/2016,5106864554,607.15,AMS Care Wiltshire ,130764,SN4 ,Community Services,BCF-Intermediate Cr,Adult Nursing Respite - Spot,Third Party Payments,REVENUE
Wiltshire,http://opendatacommunities.org/id/unitary-authority/wiltshire,15/04/2016,5106864555,3400.00,AMS Care Wiltshire ,130764,SN4 ,Community Services,BCF-Intermediate Cr,Adult Nursing Respite - Spot,Third Party Payments,REVENUE
Wiltshire,http://opendatacommunities.org/id/unitary-authority/wiltshire,15/04/2016,5106864556,1092.87,AMS Care Wiltshire ,130764,SN4 ,Community Services,BCF-Intermediate Cr,Adult Nursing Respite - Spot,Third Party Payments,REVENUE
Wiltshire,http://opendatacommunities.org/id/unitary-authority/wiltshire,15/04/2016,5106864557,850.00,AMS Care Wiltshire ,130764,SN4 ,Community Services,BCF-Intermediate Cr,Adult Nursing Respite - Spot,Third Party Payments,REVENUE
Wiltshire,http://opendatacommunities.org/id/unitary-authority/wiltshire,01/04/2016,5106855702,2857.20,Anchor Greenacres ,142571,SM7 ,Community Services,Marlborough,Adult Care Loans,Capital charges and Expenditure,REVENUE
Wiltshire,http://opendatacommunities.org/id/unitary-authority/wiltshire,01/04/2016,5106855704,4000.00,Anchor Greenacres ,142571,SM7 ,Community Services,Marlborough,Adult Care Loans,Capital charges and Expenditure,REVENUE
Wiltshire,http://opendatacommunities.org/id/unitary-authority/wiltshire,01/04/2016,5106855706,4000.00,Anchor Greenacres ,142571,SM7 ,Community Services,Marlborough,Adult Care Loans,Capital charges and Expenditure,REVENUE
Wiltshire,http://opendatacommunities.org/id/unitary-authority/wiltshire,01/04/2016,5106855708,4000.00,Anchor Greenacres ,142571,SM7 ,Community Services,Marlborough,Adult Care Loans,Capital charges and Expenditure,REVENUE
Wiltshire,http://opendatacommunities.org/id/unitary-authority/wiltshire,01/04/2016,5106855710,2571.48,Anchor Greenacres ,142571,SM7 ,Community Services,Marlborough,Adult Care Loans,Capital charges and Expenditure,REVENUE
Wiltshire,http://opendatacommunities.org/id/unitary-authority/wiltshire,06/04/2016,5106858269,1428.60,Anchor Greenacres ,142571,SM7 ,Community Services,Marlborough,Adult Care Loans,Capital charges and Expenditure,REVENUE
Wiltshire,http://opendatacommunities.org/id/unitary-authority/wiltshire,06/04/2016,5106859676,4000.00,Anchor Greenacres ,142571,SM7 ,Community Services,Home Loans,Adult Care Loans,Capital charges and Expenditure,REVENUE
Wiltshire,http://opendatacommunities.org/id/unitary-authority/wiltshire,06/04/2016,5106860363,3269.32,Andover Nursing Home ,110142,SP10,Community Services,Avon,Adult Care Nursing Placements- Spot Purchase,Third Party Payments,REVENUE
Wiltshire,http://opendatacommunities.org/id/unitary-authority/wiltshire,04/04/2016,5106855923,265.64,Andrew Page Limited ,110432,LS15,Neighbourhood & Planning,Fleet Operations,Vehicle Parts,Transport Related,REVENUE
Wiltshire,http://opendatacommunities.org/id/unitary-authority/wiltshire,05/04/2016,5106855989,505.97,Andrew Page Limited ,110432,LS15,Neighbourhood & Planning,Fleet Operations,Vehicle Parts,Transport Related,REVENUE
Wiltshire,http://opendatacommunities.org/id/unitary-authority/wiltshire,08/04/2016,1901696234,676.97,Andy Taxis Limited ,100874,SP4 ,Neighbourhood & Planning,Mainstream Primary,Transport Contracts,Third Party Payments,REVENUE
Wiltshire,http://opendatacommunities.org/id/unitary-authority/wiltshire,08/04/2016,1901696234,1128.25,Andy Taxis Limited ,100874,SP4 ,Neighbourhood & Planning,Mainstream Secondary,Transport Contracts,Third Party Payments,REVENUE
Wiltshire,http://opendatacommunities.org/id/unitary-authority/wiltshire,05/04/2016,1901694602,1111.11,Andybus  and  Coach Ltd ,100132,SN16,Neighbourhood & Planning,Mainstream Primary,Transport Contracts,Third Party Payments,REVENUE
Wiltshire,http://opendatacommunities.org/id/unitary-authority/wiltshire,05/04/2016,1901694602,17253.34,Andybus  and  Coach Ltd ,100132,SN16,Neighbourhood & Planning,Mainstream Secondary,Transport Contracts,Third Party Payments,REVENUE
Wiltshire,http://opendatacommunities.org/id/unitary-authority/wiltshire,05/04/2016,1901694603,3087.34,Andybus  and  Coach Ltd ,100132,SN16,Neighbourhood & Planning,Mainstream Secondary,Transport Contracts,Third Party Payments,REVENUE
Wiltshire,http://opendatacommunities.org/id/unitary-authority/wiltshire,05/04/2016,1901694604,2983.26,Andybus  and  Coach Ltd ,100132,SN16,Neighbourhood & Planning,Mainstream Secondary,Transport Contracts,Third Party Payments,REVENUE
Wiltshire,http://opendatacommunities.org/id/unitary-authority/wiltshire,05/04/2016,1901694605,451.50,Andybus  and  Coach Ltd ,100132,SN16,Neighbourhood & Planning,Mainstream 16+ Sec,Transport Contracts,Third Party Payments,REVENUE
Wiltshire,http://opendatacommunities.org/id/unitary-authority/wiltshire,05/04/2016,1901694605,2794.75,Andybus  and  Coach Ltd ,100132,SN16,Neighbourhood & Planning,Mainstream Secondary,Transport Contracts,Third Party Payments,REVENUE
Wiltshire,http://opendatacommunities.org/id/unitary-authority/wiltshire,05/04/2016,1901694608,258.64,Andybus  and  Coach Ltd ,100132,SN16,Neighbourhood & Planning,Mainstream 16+ Sec,Transport Contracts,Third Party Payments,REVENUE
Wiltshire,http://opendatacommunities.org/id/unitary-authority/wiltshire,05/04/2016,1901694608,3028.04,Andybus  and  Coach Ltd ,100132,SN16,Neighbourhood & Planning,Mainstream Secondary,Transport Contracts,Third Party Payments,REVENUE
Wiltshire,http://opendatacommunities.org/id/unitary-authority/wiltshire,06/04/2016,1901695610,432.00,Andy's Big White Taxi ,142824,SP4 ,Neighbourhood & Planning,SEN Primary,Transport Contracts,Third Party Payments,REVENUE
Wiltshire,http://opendatacommunities.org/id/unitary-authority/wiltshire,06/04/2016,5106859944,706.60,Angus Council ,135802,DD8 ,Community Services,CTPLD Place CIC U65,Adult Residential Placements - Spot Purchase,Third Party Payments,REVENUE
Wiltshire,http://opendatacommunities.org/id/unitary-authority/wiltshire,08/04/2016,5106862987,500.00,Animation for Education Ltd ,129070,SN13,Children & Education,School Effectvnss Tm,Consultants� Fees,Supplies and Services,REVENUE
Wiltshire,http://opendatacommunities.org/id/unitary-authority/wiltshire,27/04/2016,1901694447,3280.00,Any Body can Cook ,125066,BA12,Community Services,Area Board SWW,Area Board Youth Grants,Supplies and Services,REVENUE
Wiltshire,http://opendatacommunities.org/id/unitary-authority/wiltshire,07/04/2016,1901695698,390.00,APA Consultants Ltd ,113361,SN10,Resources,Rural Estates,Other Professional Fees,Supplies and Services,REVENUE
Wiltshire,http://opendatacommunities.org/id/unitary-authority/wiltshire,13/04/2016,5106864023,1560.00,APA Consultants Ltd ,113361,SN10,Neighbourhood & Planning,DevControlNorth,Consultants� Fees,Supplies and Services,REVENUE
Wiltshire,http://opendatacommunities.org/id/unitary-authority/wiltshire,15/04/2016,1901705269,384.57,APL Travel Limited ,100596,SN4 ,Neighbourhood & Planning,Public Transport,Transport Contracts,Third Party Payments,REVENUE
Wiltshire,http://opendatacommunities.org/id/unitary-authority/wiltshire,15/04/2016,1901705270,478.56,APL Travel Limited ,100596,SN4 ,Neighbourhood & Planning,Public Transport,Transport Contracts,Third Party Payments,REVENUE
Wiltshire,http://opendatacommunities.org/id/unitary-authority/wiltshire,15/04/2016,1901705271,3736.67,APL Travel Limited ,100596,SN4 ,Neighbourhood & Planning,Mainstream Secondary,Transport Contracts,Third Party Payments,REVENUE
Wiltshire,http://opendatacommunities.org/id/unitary-authority/wiltshire,15/04/2016,1901705272,3900.00,APL Travel Limited ,100596,SN4 ,Neighbourhood & Planning,Public Transport,Transport Contracts,Third Party Payments,REVENUE
Wiltshire,http://opendatacommunities.org/id/unitary-authority/wiltshire,15/04/2016,1901705273,1837.16,APL Travel Limited ,100596,SN4 ,Neighbourhood & Planning,Mainstream Secondary,Transport Contracts,Third Party Payments,REVENUE
Wiltshire,http://opendatacommunities.org/id/unitary-authority/wiltshire,15/04/2016,1901705273,20412.84,APL Travel Limited ,100596,SN4 ,Neighbourhood & Planning,Public Transport,Transport Contracts,Third Party Payments,REVENUE
Wiltshire,http://opendatacommunities.org/id/unitary-authority/wiltshire,15/04/2016,1901705275,935.00,APL Travel Limited ,100596,SN4 ,Neighbourhood & Planning,Mainstream Primary,Transport Contracts,Third Party Payments,REVENUE
Wiltshire,http://opendatacommunities.org/id/unitary-authority/wiltshire,21/04/2016,1901707883,5115.00,APL Travel Limited ,100596,SN4 ,Neighbourhood & Planning,Concessionary Fares,Compensation for Concessionary fares,Third Party Payments,REVENUE
Wiltshire,http://opendatacommunities.org/id/unitary-authority/wiltshire,25/04/2016,1901708920,830.03,APL Travel Limited ,100596,SN4 ,Neighbourhood & Planning,Mainstream Primary,Transport Contracts,Third Party Payments,REVENUE
Wiltshire,http://opendatacommunities.org/id/unitary-authority/wiltshire,25/04/2016,1901708920,943.61,APL Travel Limited ,100596,SN4 ,Neighbourhood & Planning,Mainstream 16+ FE,Transport Contracts,Third Party Payments,REVENUE
Wiltshire,http://opendatacommunities.org/id/unitary-authority/wiltshire,25/04/2016,1901708920,5312.17,APL Travel Limited ,100596,SN4 ,Neighbourhood & Planning,Mainstream Secondary,Transport Contracts,Third Party Payments,REVENUE
Wiltshire,http://opendatacommunities.org/id/unitary-authority/wiltshire,25/04/2016,1901708920,10429.19,APL Travel Limited ,100596,SN4 ,Neighbourhood & Planning,Connect 2 Wiltshire,Transport Contracts,Third Party Payments,REVENUE
Wiltshire,http://opendatacommunities.org/id/unitary-authority/wiltshire,13/04/2016,1901704374,563.36,APPLEFORD SCHOOL ,137180,SP3 ,Neighbourhood & Planning,SEN Primary,Transport Contracts,Third Party Payments,REVENUE
Wiltshire,http://opendatacommunities.org/id/unitary-authority/wiltshire,13/04/2016,1901704374,1605.66,APPLEFORD SCHOOL ,137180,SP3 ,Neighbourhood & Planning,SEN Secondary,Transport Contracts,Third Party Payments,REVENUE
Wiltshire,http://opendatacommunities.org/id/unitary-authority/wiltshire,06/04/2016,5106859070,3600.00,Arbory Residential Home ,113587,SP11,Community Services,MH OP South Locality,Adult Residential Placements - Spot Purchase,Third Party Payments,REVENUE
Wiltshire,http://opendatacommunities.org/id/unitary-authority/wiltshire,06/04/2016,5106859773,2626.00,Arbory Residential Home ,113587,SP11,Community Services,MH OP North Locality,Adult Residential Placements - Spot Purchase,Third Party Payments,REVENUE
Wiltshire,http://opendatacommunities.org/id/unitary-authority/wiltshire,06/04/2016,5106860999,3400.00,Arbory Residential Home ,113587,SP11,Community Services,MH AOWA South Locali,Adult Residential Placements - Spot Purchase,Third Party Payments,REVENUE
Wiltshire,http://opendatacommunities.org/id/unitary-authority/wiltshire,28/04/2016,5106870172,4496.52,ARC HD Services Ltd ,135806,SO50,Children & Education,Ext Placement & IFA,Adult / Child Care Agency Placement,Third Party Payments,REVENUE
Wiltshire,http://opendatacommunities.org/id/unitary-authority/wiltshire,28/04/2016,5106870173,4496.52,ARC HD Services Ltd ,135806,SO50,Children & Education,Ext Placement & IFA,Adult / Child Care Agency Placement,Third Party Payments,REVENUE
Wiltshire,http://opendatacommunities.org/id/unitary-authority/wiltshire,28/04/2016,5106870174,2569.44,ARC HD Services Ltd ,135806,SO50,Children & Education,Ext Placement & IFA,Adult / Child Care Agency Placement,Third Party Payments,REVENUE
Wiltshire,http://opendatacommunities.org/id/unitary-authority/wiltshire,06/04/2016,5106858869,2094.92,Arch Care Services Ltd ,110169,BS21,Community Services,MH AOWA North Locali,Adult Residential Placements - Spot Purchase,Third Party Payments,REVENUE
Wiltshire,http://opendatacommunities.org/id/unitary-authority/wiltshire,18/04/2016,5106856378,375.28,Arco Limited ,130295,HU1 ,Neighbourhood & Planning,DLO,Equipment Purchase,Supplies and Services,REVENUE
Wiltshire,http://opendatacommunities.org/id/unitary-authority/wiltshire,13/04/2016,5106864145,305.00,Arjo Limited ,100120,GL1 ,Neighbourhood & Planning,Marlborough,Equipment Maintenance,Supplies and Services,REVENUE
Wiltshire,http://opendatacommunities.org/id/unitary-authority/wiltshire,15/04/2016,1901705265,300.00,Arrow Private Hire ,100574,SN8 ,Children & Education,BehaviourSuppCore,Transport Contracts,Third Party Payments,REVENUE
Wiltshire,http://opendatacommunities.org/id/unitary-authority/wiltshire,27/04/2016,1901709900,630.00,Arrow Private Hire ,100574,SN8 ,Neighbourhood & Planning,Mainstream Secondary,Transport Contracts,Third Party Payments,REVENUE
Wiltshire,http://opendatacommunities.org/id/unitary-authority/wiltshire,27/04/2016,5106866077,2480.00,ASF Signs Ltd ,113632,SN4 ,Neighbourhood & Planning,Transport Plan & DC,Signage - Incl Street Names,Supplies and Services,REVENUE
Wiltshire,http://opendatacommunities.org/id/unitary-authority/wiltshire,06/04/2016,5106859935,2745.12,Ashbourne Court Care Home ,133906,SP10,Community Services,Orchard,Adult Care Nursing Placements- Spot Purchase,Third Party Payments,REVENUE
Wiltshire,http://opendatacommunities.org/id/unitary-authority/wiltshire,15/04/2016,5106864817,2297.12,Ashbourne Court Care Home ,133906,SP10,Community Services,Orchard,Adult Care Nursing Placements- Spot Purchase,Third Party Payments,REVENUE
Wiltshire,http://opendatacommunities.org/id/unitary-authority/wiltshire,06/04/2016,5106858797,2170.64,Ashbury Lodge ,113635,SN3 ,Community Services,MH OP North Locality,Adult Residential Placements - Spot Purchase,Third Party Payments,REVENUE
Wiltshire,http://opendatacommunities.org/id/unitary-authority/wiltshire,06/04/2016,5106859075,1520.00,Ashton Lodge Care Home ,142543,ME16,Community Services,Cricklade,Adult Residential Placements - Spot Purchase,Third Party Payments,REVENUE
Wiltshire,http://opendatacommunities.org/id/unitary-authority/wiltshire,12/04/2016,5106863712,595.48,Ashton Lodge Care Home ,142543,ME16,Community Services,Cricklade,Adult Residential Placements - Spot Purchase,Third Party Payments,REVENUE
Wiltshire,http://opendatacommunities.org/id/unitary-authority/wiltshire,06/04/2016,5106860663,1841.76,Ashton Manor Nursing Home ,139060,GU10,Community Services,Salisbury,Adult Care Nursing Placements- Spot Purchase,Third Party Payments,REVENUE
Wiltshire,http://opendatacommunities.org/id/unitary-authority/wiltshire,06/04/2016,5106856297,12407.86,Aspirations Care Ltd ,137205,L20 ,Children & Education,Ext Placement & IFA,Adult / Child Care Agency Placement,Third Party Payments,REVENUE
Wiltshire,http://opendatacommunities.org/id/unitary-authority/wiltshire,08/04/2016,5106862969,1734.00,Aspirations Care Ltd ,137205,L20 ,Children & Education,Ext Placement & IFA,Adult / Child Care Agency Placement,Third Party Payments,REVENUE
Wiltshire,http://opendatacommunities.org/id/unitary-authority/wiltshire,08/04/2016,5106862970,13263.57,Aspirations Care Ltd ,137205,L20 ,Children & Education,Ext Placement & IFA,Adult / Child Care Agency Placement,Third Party Payments,REVENUE
Wiltshire,http://opendatacommunities.org/id/unitary-authority/wiltshire,08/04/2016,5106862971,2637.79,Aspirations Care Ltd ,137205,L20 ,Children & Education,Ext Placement & IFA,Adult / Child Care Agency Placement,Third Party Payments,REVENUE
Wiltshire,http://opendatacommunities.org/id/unitary-authority/wiltshire,08/04/2016,1901696249,1110.00,Aspire Taxis ,101274,SP2 ,Neighbourhood & Planning,SEN Secondary,Transport Contracts,Third Party Payments,REVENUE
Wiltshire,http://opendatacommunities.org/id/unitary-authority/wiltshire,08/04/2016,1901696250,295.00,Aspire Taxis ,101274,SP2 ,Neighbourhood & Planning,SEN 16+ FE Colleges,Transport Contracts,Third Party Payments,REVENUE
Wiltshire,http://opendatacommunities.org/id/unitary-authority/wiltshire,08/04/2016,1901696251,1120.00,Aspire Taxis ,101274,SP2 ,Neighbourhood & Planning,SEN 16+ FE Colleges,Transport Contracts,Third Party Payments,REVENUE
Wiltshire,http://opendatacommunities.org/id/unitary-authority/wiltshire,08/04/2016,1901696252,728.00,Aspire Taxis ,101274,SP2 ,Neighbourhood & Planning,SEN Primary,Transport Contracts,Third Party Payments,REVENUE
Wiltshire,http://opendatacommunities.org/id/unitary-authority/wiltshire,08/04/2016,1901696252,2912.00,Aspire Taxis ,101274,SP2 ,Neighbourhood & Planning,SEN Secondary,Transport Contracts,Third Party Payments,REVENUE
Wiltshire,http://opendatacommunities.org/id/unitary-authority/wiltshire,08/04/2016,1901696253,630.00,Aspire Taxis ,101274,SP2 ,Neighbourhood & Planning,Mainstream Primary,Transport Contracts,Third Party Payments,REVENUE
Wiltshire,http://opendatacommunities.org/id/unitary-authority/wiltshire,08/04/2016,1901696254,2502.00,Aspire Taxis ,101274,SP2 ,Neighbourhood & Planning,Mainstream Secondary,Transport Contracts,Third Party Payments,REVENUE
Wiltshire,http://opendatacommunities.org/id/unitary-authority/wiltshire,08/04/2016,1901696255,382.50,Aspire Taxis ,101274,SP2 ,Neighbourhood & Planning,Mainstream Primary,Transport Contracts,Third Party Payments,REVENUE
Wiltshire,http://opendatacommunities.org/id/unitary-authority/wiltshire,08/04/2016,1901696255,382.50,Aspire Taxis ,101274,SP2 ,Neighbourhood & Planning,SEN Primary,Transport Contracts,Third Party Payments,REVENUE
Wiltshire,http://opendatacommunities.org/id/unitary-authority/wiltshire,08/04/2016,1901696256,522.00,Aspire Taxis ,101274,SP2 ,Neighbourhood & Planning,Mainstream Primary,Transport Contracts,Third Party Payments,REVENUE
Wiltshire,http://opendatacommunities.org/id/unitary-authority/wiltshire,08/04/2016,1901696257,745.00,Aspire Taxis ,101274,SP2 ,Neighbourhood & Planning,SEN 16+ Secondary,Transport Contracts,Third Party Payments,REVENUE
Wiltshire,http://opendatacommunities.org/id/unitary-authority/wiltshire,08/04/2016,1901696258,448.50,Aspire Taxis ,101274,SP2 ,Children & Education,EOTAS Service,Transport Contracts,Third Party Payments,REVENUE
Wiltshire,http://opendatacommunities.org/id/unitary-authority/wiltshire,08/04/2016,1901696258,448.50,Aspire Taxis ,101274,SP2 ,Neighbourhood & Planning,SEN 16+ Secondary,Transport Contracts,Third Party Payments,REVENUE
Wiltshire,http://opendatacommunities.org/id/unitary-authority/wiltshire,08/04/2016,1901696260,810.00,Aspire Taxis ,101274,SP2 ,Neighbourhood & Planning,SEN Primary,Transport Contracts,Third Party Payments,REVENUE
Wiltshire,http://opendatacommunities.org/id/unitary-authority/wiltshire,08/04/2016,1901696261,1800.00,Aspire Taxis ,101274,SP2 ,Neighbourhood & Planning,SEN Primary,Transport Contracts,Third Party Payments,REVENUE
Wiltshire,http://opendatacommunities.org/id/unitary-authority/wiltshire,08/04/2016,1901696262,792.00,Aspire Taxis ,101274,SP2 ,Neighbourhood & Planning,Mainstream Primary,Transport Contracts,Third Party Payments,REVENUE
Wiltshire,http://opendatacommunities.org/id/unitary-authority/wiltshire,19/04/2016,1901706508,312.00,Aspire Taxis ,101274,SP2 ,Community Services,CTPLD Place CIC U65,Transport Contracts,Third Party Payments,REVENUE
Wiltshire,http://opendatacommunities.org/id/unitary-authority/wiltshire,19/04/2016,1901706518,372.00,Aspire Taxis ,101274,SP2 ,Neighbourhood & Planning,SEN Primary,Transport Contracts,Third Party Payments,REVENUE
Wiltshire,http://opendatacommunities.org/id/unitary-authority/wiltshire,19/04/2016,1901706518,744.00,Aspire Taxis ,101274,SP2 ,Neighbourhood & Planning,Mainstream Primary,Transport Contracts,Third Party Payments,REVENUE
Wiltshire,http://opendatacommunities.org/id/unitary-authority/wiltshire,19/04/2016,1901706520,972.00,Aspire Taxis ,101274,SP2 ,Neighbourhood & Planning,Mainstream Primary,Transport Contracts,Third Party Payments,REVENUE
Wiltshire,http://opendatacommunities.org/id/unitary-authority/wiltshire,19/04/2016,1901706522,782.00,Aspire Taxis ,101274,SP2 ,Neighbourhood & Planning,SEN 16+ Secondary,Transport Contracts,Third Party Payments,REVENUE
Wiltshire,http://opendatacommunities.org/id/unitary-authority/wiltshire,19/04/2016,1901706523,540.00,Aspire Taxis ,101274,SP2 ,Neighbourhood & Planning,Mainstream Primary,Transport Contracts,Third Party Payments,REVENUE
Wiltshire,http://opendatacommunities.org/id/unitary-authority/wiltshire,19/04/2016,1901706523,1120.00,Aspire Taxis ,101274,SP2 ,Community Services,CTPLD Place CIC U65,Transport Contracts,Third Party Payments,REVENUE
Wiltshire,http://opendatacommunities.org/id/unitary-authority/wiltshire,19/04/2016,1901706527,1629.90,Aspire Taxis ,101274,SP2 ,Neighbourhood & Planning,SEN Secondary,Transport Contracts,Third Party Payments,REVENUE
Wiltshire,http://opendatacommunities.org/id/unitary-authority/wiltshire,19/04/2016,1901706532,722.16,Aspire Taxis ,101274,SP2 ,Neighbourhood & Planning,Mainstream Primary,Transport Contracts,Third Party Payments,REVENUE
Wiltshire,http://opendatacommunities.org/id/unitary-authority/wiltshire,19/04/2016,1901706533,358.20,Aspire Taxis ,101274,SP2 ,Neighbourhood & Planning,Mainstream Primary,Transport Contracts,Third Party Payments,REVENUE
Wiltshire,http://opendatacommunities.org/id/unitary-authority/wiltshire,25/04/2016,1901708927,1155.00,Aspire Taxis ,101274,SP2 ,Community Services,CTPLD Place CIC U65,Transport Contracts,Third Party Payments,REVENUE
Wiltshire,http://opendatacommunities.org/id/unitary-authority/wiltshire,11/04/2016,1901696760,500.00,Aster Living ,112275,SN10,Wiltshire Council,Wiltshire Council,Other Professional Fees,Supplies and Services,CAPITAL
Wiltshire,http://opendatacommunities.org/id/unitary-authority/wiltshire,11/04/2016,1901696764,2500.00,Aster Living ,112275,SN10,Wiltshire Council,Wiltshire Council,Other Professional Fees,Supplies and Services,CAPITAL
Wiltshire,http://opendatacommunities.org/id/unitary-authority/wiltshire,11/04/2016,1901696765,969.74,Aster Living ,112275,SN10,Wiltshire Council,Wiltshire Council,Other Professional Fees,Supplies and Services,CAPITAL
Wiltshire,http://opendatacommunities.org/id/unitary-authority/wiltshire,11/04/2016,1901696766,947.30,Aster Living ,112275,SN10,Wiltshire Council,Wiltshire Council,Other Professional Fees,Supplies and Services,CAPITAL
Wiltshire,http://opendatacommunities.org/id/unitary-authority/wiltshire,11/04/2016,1901696768,500.00,Aster Living ,112275,SN10,Wiltshire Council,Wiltshire Council,Other Professional Fees,Supplies and Services,CAPITAL
Wiltshire,http://opendatacommunities.org/id/unitary-authority/wiltshire,11/04/2016,1901696769,500.00,Aster Living ,112275,SN10,Wiltshire Council,Wiltshire Council,Other Professional Fees,Supplies and Services,CAPITAL
Wiltshire,http://opendatacommunities.org/id/unitary-authority/wiltshire,11/04/2016,1901696770,591.40,Aster Living ,112275,SN10,Wiltshire Council,Wiltshire Council,Other Professional Fees,Supplies and Services,CAPITAL
Wiltshire,http://opendatacommunities.org/id/unitary-authority/wiltshire,11/04/2016,1901696772,650.00,Aster Living ,112275,SN10,Wiltshire Council,Wiltshire Council,Other Professional Fees,Supplies and Services,CAPITAL
Wiltshire,http://opendatacommunities.org/id/unitary-authority/wiltshire,11/04/2016,1901696775,500.00,Aster Living ,112275,SN10,Wiltshire Council,Wiltshire Council,Other Professional Fees,Supplies and Services,CAPITAL
Wiltshire,http://opendatacommunities.org/id/unitary-authority/wiltshire,11/04/2016,1901696790,500.00,Aster Living ,112275,SN10,Wiltshire Council,Wiltshire Council,Other Professional Fees,Supplies and Services,CAPITAL
Wiltshire,http://opendatacommunities.org/id/unitary-authority/wiltshire,13/04/2016,1901697101,529.31,Aster Living ,112275,SN10,Wiltshire Council,Wiltshire Council,Other Professional Fees,Supplies and Services,CAPITAL
Wiltshire,http://opendatacommunities.org/id/unitary-authority/wiltshire,29/04/2016,1901705660,1105.60,Aster Living ,112275,SN10,Wiltshire Council,Wiltshire Council,Other Professional Fees,Supplies and Services,CAPITAL
Wiltshire,http://opendatacommunities.org/id/unitary-authority/wiltshire,29/04/2016,1901705662,500.00,Aster Living ,112275,SN10,Wiltshire Council,Wiltshire Council,Audit Fees,Supplies and Services,CAPITAL
Wiltshire,http://opendatacommunities.org/id/unitary-authority/wiltshire,19/04/2016,1901706475,2500.00,Aster Living ,112275,SN10,Wiltshire Council,Wiltshire Council,Other Professional Fees,Supplies and Services,CAPITAL
Wiltshire,http://opendatacommunities.org/id/unitary-authority/wiltshire,29/04/2016,1901707246,500.00,Aster Living ,112275,SN10,Wiltshire Council,Wiltshire Council,Other Professional Fees,Supplies and Services,CAPITAL
Wiltshire,http://opendatacommunities.org/id/unitary-authority/wiltshire,20/04/2016,1901707340,1601.00,Aster Living ,112275,SN10,Wiltshire Council,Wiltshire Council,Other Professional Fees,Supplies and Services,CAPITAL
Wiltshire,http://opendatacommunities.org/id/unitary-authority/wiltshire,20/04/2016,1901707341,950.50,Aster Living ,112275,SN10,Wiltshire Council,Wiltshire Council,Other Professional Fees,Supplies and Services,CAPITAL
Wiltshire,http://opendatacommunities.org/id/unitary-authority/wiltshire,29/04/2016,1901707344,500.00,Aster Living ,112275,SN10,Wiltshire Council,Wiltshire Council,Other Professional Fees,Supplies and Services,CAPITAL
Wiltshire,http://opendatacommunities.org/id/unitary-authority/wiltshire,21/04/2016,1901707859,500.00,Aster Living ,112275,SN10,Wiltshire Council,Wiltshire Council,Other Professional Fees,Supplies and Services,CAPITAL
Wiltshire,http://opendatacommunities.org/id/unitary-authority/wiltshire,21/04/2016,1901707863,375.00,Aster Living ,112275,SN10,Wiltshire Council,Wiltshire Council,Other Professional Fees,Supplies and Services,CAPITAL
Wiltshire,http://opendatacommunities.org/id/unitary-authority/wiltshire,26/04/2016,1901709154,529.80,Aster Living ,112275,SN10,Wiltshire Council,Wiltshire Council,Other Professional Fees,Supplies and Services,CAPITAL
Wiltshire,http://opendatacommunities.org/id/unitary-authority/wiltshire,29/04/2016,1901709156,500.00,Aster Living ,112275,SN10,Wiltshire Council,Wiltshire Council,Other Professional Fees,Supplies and Services,CAPITAL
Wiltshire,http://opendatacommunities.org/id/unitary-authority/wiltshire,27/04/2016,1901709435,376.00,Aster Living ,112275,SN10,Wiltshire Council,Wiltshire Council,Other Professional Fees,Supplies and Services,CAPITAL
Wiltshire,http://opendatacommunities.org/id/unitary-authority/wiltshire,27/04/2016,1901709460,500.00,Aster Living ,112275,SN10,Wiltshire Council,Wiltshire Council,Other Professional Fees,Supplies and Services,CAPITAL
Wiltshire,http://opendatacommunities.org/id/unitary-authority/wiltshire,27/04/2016,1901709497,500.00,Aster Living ,112275,SN10,Wiltshire Council,Wiltshire Council,Other Professional Fees,Supplies and Services,CAPITAL
Wiltshire,http://opendatacommunities.org/id/unitary-authority/wiltshire,26/04/2016,5106866807,10175.00,Atamis Limited ,139765,CF10,Resources,CorporateProcurement,Software Purchases,Supplies and Services,REVENUE
Wiltshire,http://opendatacommunities.org/id/unitary-authority/wiltshire,08/04/2016,5106863060,2925.54,Atkins Ltd ,110197,KT18,Wiltshire Council,Wiltshire Council,Consultants� Fees,Supplies and Services,CAPITAL
Wiltshire,http://opendatacommunities.org/id/unitary-authority/wiltshire,07/04/2016,1901689440,18000.00,Atlantic Data Ltd ,132987,MK7 ,Resources,HR-Recruitment & DBS,Criminal Record Bureau Checks,Employee Related,REVENUE
Wiltshire,http://opendatacommunities.org/id/unitary-authority/wiltshire,14/04/2016,5106850376,1350.27,Atlantic Europe Publishing Company ,138769,RG8 ,Children & Education,WiltsLearnResources,Publications / periodicals,Supplies and Services,REVENUE
Wiltshire,http://opendatacommunities.org/id/unitary-authority/wiltshire,28/04/2016,5106864849,13254.05,ATS Euromaster Limited ,110201,DN4 ,Neighbourhood & Planning,Fleet Operations,Vehicle Parts,Transport Related,REVENUE
Wiltshire,http://opendatacommunities.org/id/unitary-authority/wiltshire,14/04/2016,1901704853,4185.95,Atworth Village Hall ,139308,SN12,Wiltshire Council,Wiltshire Council,Area Board Grants,Supplies and Services,CAPITAL
Wiltshire,http://opendatacommunities.org/id/unitary-authority/wiltshire,06/04/2016,1901695358,706.50,Audley Care White Horse ,121958,SN8 ,Community Services,HTLAH - Neighbourhoo,Interim Support Plan - HTLAH,Third Party Payments,REVENUE
Wiltshire,http://opendatacommunities.org/id/unitary-authority/wiltshire,06/04/2016,1901695359,275.55,Audley Care White Horse ,121958,SN8 ,Community Services,HTLAH - Neighbourhoo,Interim Support Plan - HTLAH,Third Party Payments,REVENUE
Wiltshire,http://opendatacommunities.org/id/unitary-authority/wiltshire,08/04/2016,5106863063,5869.60,Audley Care White Horse ,121958,SN8 ,Community Services,OVA East Locality,Adult Domiciliary Care - Spot,Third Party Payments,REVENUE
Wiltshire,http://opendatacommunities.org/id/unitary-authority/wiltshire,13/04/2016,5106863915,326.10,Audley Care White Horse ,121958,SN8 ,Community Services,Cricklade,Adult Domiciliary Care - Spot,Third Party Payments,REVENUE
Wiltshire,http://opendatacommunities.org/id/unitary-authority/wiltshire,13/04/2016,5106863916,474.40,Audley Care White Horse ,121958,SN8 ,Community Services,East Locality OP,Adult Domiciliary Care - Spot,Third Party Payments,REVENUE
Wiltshire,http://opendatacommunities.org/id/unitary-authority/wiltshire,13/04/2016,5106863918,3209.36,Audley Care White Horse ,121958,SN8 ,Community Services,MH AOWA North Locali,Adult Domiciliary Care - Spot Contribution,Income,REVENUE
Wiltshire,http://opendatacommunities.org/id/unitary-authority/wiltshire,13/04/2016,5106863933,2449.10,Audley Care White Horse ,121958,SN8 ,Community Services,Cricklade,Adult Domiciliary Care - Spot,Third Party Payments,REVENUE
Wiltshire,http://opendatacommunities.org/id/unitary-authority/wiltshire,13/04/2016,5106863935,1251.60,Audley Care White Horse ,121958,SN8 ,Community Services,East Locality OP,Adult Domiciliary Care - Spot,Third Party Payments,REVENUE
Wiltshire,http://opendatacommunities.org/id/unitary-authority/wiltshire,13/04/2016,5106863938,915.00,Audley Care White Horse ,121958,SN8 ,Community Services,North Locality OP,Adult Domiciliary Care - Spot,Third Party Payments,REVENUE
Wiltshire,http://opendatacommunities.org/id/unitary-authority/wiltshire,13/04/2016,5106863952,2137.00,Audley Care White Horse ,121958,SN8 ,Community Services,North Locality OP,Adult Domiciliary Care - Spot,Third Party Payments,REVENUE
Wiltshire,http://opendatacommunities.org/id/unitary-authority/wiltshire,13/04/2016,5106863986,590.90,Audley Care White Horse ,121958,SN8 ,Community Services,North Locality OP,Adult Domiciliary Care - Spot,Third Party Payments,REVENUE
Wiltshire,http://opendatacommunities.org/id/unitary-authority/wiltshire,13/04/2016,5106864001,1150.60,Audley Care White Horse ,121958,SN8 ,Community Services,East Locality OP,Adult Domiciliary Care - Spot,Third Party Payments,REVENUE
Wiltshire,http://opendatacommunities.org/id/unitary-authority/wiltshire,13/04/2016,5106864019,2632.70,Audley Care White Horse ,121958,SN8 ,Community Services,MH OP North Locality,Adult Domiciliary Care - Spot,Third Party Payments,REVENUE
Wiltshire,http://opendatacommunities.org/id/unitary-authority/wiltshire,13/04/2016,5106864030,376.80,Audley Care White Horse ,121958,SN8 ,Community Services,East Locality OP,Adult Domiciliary Care - Spot,Third Party Payments,REVENUE
Wiltshire,http://opendatacommunities.org/id/unitary-authority/wiltshire,22/04/2016,5106866278,594.41,Audley Care White Horse ,121958,SN8 ,Community Services,North Locality OP,Adult Domiciliary Care - Spot Contribution,Income,REVENUE
Wiltshire,http://opendatacommunities.org/id/unitary-authority/wiltshire,22/04/2016,5106866282,1125.90,Audley Care White Horse ,121958,SN8 ,Community Services,Malmesbury,Adult Domiciliary Care - Spot,Third Party Payments,REVENUE
Wiltshire,http://opendatacommunities.org/id/unitary-authority/wiltshire,22/04/2016,5106866284,252.90,Audley Care White Horse ,121958,SN8 ,Community Services,North Locality OP,Adult Domiciliary Care - Spot,Third Party Payments,REVENUE
Wiltshire,http://opendatacommunities.org/id/unitary-authority/wiltshire,06/04/2016,5106860091,2378.60,Autism Care Wiltshire ,136507,SN25,Community Services,CTPLD Place CIC U65,Adult Residential Placements - Spot Purchase,Third Party Payments,REVENUE
Wiltshire,http://opendatacommunities.org/id/unitary-authority/wiltshire,06/04/2016,5106859372,2101.00,Autism Specialised care Homes ,110205,BS10,Community Services,CTPLD Place CIC U65,Adult Residential Placements - Spot Purchase,Third Party Payments,REVENUE
Wiltshire,http://opendatacommunities.org/id/unitary-authority/wiltshire,06/04/2016,5106859306,2173.60,Autism Wessex ,112911,BH23,Community Services,CTPLD Place CIC U65,Adult Residential Placements - Spot Purchase,Third Party Payments,REVENUE
Wiltshire,http://opendatacommunities.org/id/unitary-authority/wiltshire,06/04/2016,5106858541,2564.30,Autism West Midlands ,110206,WR9 ,Community Services,CTPLD Place CIC U65,Adult Residential Placements - Spot Purchase,Third Party Payments,REVENUE
Wiltshire,http://opendatacommunities.org/id/unitary-authority/wiltshire,08/04/2016,5106856097,300.08,Automotive Leasing Ltd ,113729,SL1 ,Neighbourhood & Planning,Fleet Operations,Commercial Leased Vehicles,Transport Related,REVENUE
Wiltshire,http://opendatacommunities.org/id/unitary-authority/wiltshire,08/04/2016,5106856098,300.08,Automotive Leasing Ltd ,113729,SL1 ,Neighbourhood & Planning,Fleet Operations,Commercial Leased Vehicles,Transport Related,REVENUE
Wiltshire,http://opendatacommunities.org/id/unitary-authority/wiltshire,08/04/2016,5106856099,307.58,Automotive Leasing Ltd ,113729,SL1 ,Neighbourhood & Planning,Fleet Operations,Commercial Leased Vehicles,Transport Related,REVENUE
Wiltshire,http://opendatacommunities.org/id/unitary-authority/wiltshire,08/04/2016,5106856180,316.75,Automotive Leasing Ltd ,113729,SL1 ,Neighbourhood & Planning,Fleet Operations,Commercial Leased Vehicles,Transport Related,REVENUE
Wiltshire,http://opendatacommunities.org/id/unitary-authority/wiltshire,08/04/2016,5106856181,321.21,Automotive Leasing Ltd ,113729,SL1 ,Neighbourhood & Planning,Fleet Operations,Commercial Leased Vehicles,Transport Related,REVENUE
Wiltshire,http://opendatacommunities.org/id/unitary-authority/wiltshire,22/04/2016,1901708006,1718.00,Avenue Surgery ,110214,BA12,Neighbourhood & Planning,Sexual Health Commun,Public Health Commissioning,Supplies and Services,REVENUE
Wiltshire,http://opendatacommunities.org/id/unitary-authority/wiltshire,22/04/2016,1901708060,3003.21,Avenue Surgery ,110214,BA12,Neighbourhood & Planning,Sexual Health Commun,Public Health Commissioning,Supplies and Services,REVENUE
Wiltshire,http://opendatacommunities.org/id/unitary-authority/wiltshire,22/04/2016,1901708101,745.20,Avenue Surgery ,110214,BA12,Neighbourhood & Planning,Sexual Health Commun,Public Health Commissioning,Supplies and Services,REVENUE
Wiltshire,http://opendatacommunities.org/id/unitary-authority/wiltshire,25/04/2016,1901708775,1248.00,Avenue Surgery ,110214,BA12,Neighbourhood & Planning,NHS Health Checks,Public Health Commissioning,Supplies and Services,REVENUE
Wiltshire,http://opendatacommunities.org/id/unitary-authority/wiltshire,06/04/2016,5106855641,1517.40,Avery Healthcare Cepen Lodge ,126733,DL1 ,Community Services,North Locality OP,Adult Residential Placements - Spot Purchase,Third Party Payments,REVENUE
Wiltshire,http://opendatacommunities.org/id/unitary-authority/wiltshire,06/04/2016,5106856154,1000.00,Avery Healthcare Cepen Lodge ,126733,DL1 ,Community Services,MH OP North Locality,Adult Residential Placements - Spot Purchase,Third Party Payments,REVENUE
Wiltshire,http://opendatacommunities.org/id/unitary-authority/wiltshire,06/04/2016,5106858452,846.30,Avery Healthcare Cepen Lodge ,126733,DL1 ,Community Services,MH AOWA North Locali,Adult Residential Placements - Spot Purchase,Third Party Payments,REVENUE
Wiltshire,http://opendatacommunities.org/id/unitary-authority/wiltshire,06/04/2016,5106858557,846.30,Avery Healthcare Cepen Lodge ,126733,DL1 ,Community Services,Chippenham,Adult Residential Placements - Spot Purchase,Third Party Payments,REVENUE
Wiltshire,http://opendatacommunities.org/id/unitary-authority/wiltshire,06/04/2016,5106858813,846.30,Avery Healthcare Cepen Lodge ,126733,DL1 ,Community Services,Chippenham,Adult Residential Placements - Spot Purchase,Third Party Payments,REVENUE
Wiltshire,http://opendatacommunities.org/id/unitary-authority/wiltshire,06/04/2016,5106858820,846.30,Avery Healthcare Cepen Lodge ,126733,DL1 ,Community Services,MH OP North Locality,Adult Residential Placements - Spot Purchase,Third Party Payments,REVENUE
Wiltshire,http://opendatacommunities.org/id/unitary-authority/wiltshire,06/04/2016,5106858907,846.30,Avery Healthcare Cepen Lodge ,126733,DL1 ,Community Services,Chippenham,Adult Residential Placements - Spot Purchase,Third Party Payments,REVENUE
Wiltshire,http://opendatacommunities.org/id/unitary-authority/wiltshire,06/04/2016,5106858949,2360.36,Avery Healthcare Cepen Lodge ,126733,DL1 ,Community Services,Adult Care Gross Loa,Adult Care Loans,Capital charges and Expenditure,REVENUE
Wiltshire,http://opendatacommunities.org/id/unitary-authority/wiltshire,06/04/2016,5106859177,846.30,Avery Healthcare Cepen Lodge ,126733,DL1 ,Community Services,Chippenham,Adult Residential Placements - Spot Purchase,Third Party Payments,REVENUE
Wiltshire,http://opendatacommunities.org/id/unitary-authority/wiltshire,06/04/2016,5106859346,846.30,Avery Healthcare Cepen Lodge ,126733,DL1 ,Community Services,MH OP North Locality,Adult Residential Placements - Spot Purchase,Third Party Payments,REVENUE
Wiltshire,http://opendatacommunities.org/id/unitary-authority/wiltshire,06/04/2016,5106859390,846.30,Avery Healthcare Cepen Lodge ,126733,DL1 ,Community Services,Corsh & Box,Adult Residential Placements - Spot Purchase,Third Party Payments,REVENUE
Wiltshire,http://opendatacommunities.org/id/unitary-authority/wiltshire,06/04/2016,5106859558,846.30,Avery Healthcare Cepen Lodge ,126733,DL1 ,Community Services,Chippenham,Adult Residential Placements - Spot Purchase,Third Party Payments,REVENUE
Wiltshire,http://opendatacommunities.org/id/unitary-authority/wiltshire,06/04/2016,5106859564,846.30,Avery Healthcare Cepen Lodge ,126733,DL1 ,Community Services,MH AOWA North Locali,Adult Residential Placements - Spot Purchase,Third Party Payments,REVENUE
Wiltshire,http://opendatacommunities.org/id/unitary-authority/wiltshire,06/04/2016,5106859566,846.30,Avery Healthcare Cepen Lodge ,126733,DL1 ,Community Services,Chippenham,Adult Residential Placements - Spot Purchase,Third Party Payments,REVENUE
Wiltshire,http://opendatacommunities.org/id/unitary-authority/wiltshire,06/04/2016,5106859568,846.30,Avery Healthcare Cepen Lodge ,126733,DL1 ,Community Services,Chippenham,Adult Residential Placements - Spot Purchase,Third Party Payments,REVENUE
Wiltshire,http://opendatacommunities.org/id/unitary-authority/wiltshire,06/04/2016,5106859570,846.30,Avery Healthcare Cepen Lodge ,126733,DL1 ,Community Services,Chippenham,Adult Residential Placements - Spot Purchase,Third Party Payments,REVENUE
Wiltshire,http://opendatacommunities.org/id/unitary-authority/wiltshire,06/04/2016,5106859608,846.30,Avery Healthcare Cepen Lodge ,126733,DL1 ,Community Services,MH OP North Locality,Adult Residential Placements - Spot Purchase,Third Party Payments,REVENUE
Wiltshire,http://opendatacommunities.org/id/unitary-authority/wiltshire,06/04/2016,5106860592,846.30,Avery Healthcare Cepen Lodge ,126733,DL1 ,Community Services,Chippenham,Adult Residential Placements - Spot Purchase,Third Party Payments,REVENUE
Wiltshire,http://opendatacommunities.org/id/unitary-authority/wiltshire,06/04/2016,5106858601,1000.00,Avery Healthcare Ltd- Langford Sali ,112676,NN4 ,Community Services,Downton,Adult Residential Placements - Spot Purchase,Third Party Payments,REVENUE
Wiltshire,http://opendatacommunities.org/id/unitary-authority/wiltshire,06/04/2016,5106858844,897.70,Avery Healthcare Ltd- Langford Sali ,112676,NN4 ,Community Services,Downton,Adult Care Nursing Placements- Spot Purchase,Third Party Payments,REVENUE
Wiltshire,http://opendatacommunities.org/id/unitary-authority/wiltshire,06/04/2016,5106859267,3352.00,Avery Healthcare Ltd- Langford Sali ,112676,NN4 ,Community Services,Home Loans,Adult Care Loans,Capital charges and Expenditure,REVENUE
Wiltshire,http://opendatacommunities.org/id/unitary-authority/wiltshire,06/04/2016,5106859895,936.10,Avery Healthcare Ltd- Langford Sali ,112676,NN4 ,Community Services,Downton,Adult Care Nursing Placements- Spot Purchase,Third Party Payments,REVENUE
Wiltshire,http://opendatacommunities.org/id/unitary-authority/wiltshire,06/04/2016,5106860027,1185.50,Avery Healthcare Ltd- Langford Sali ,112676,NN4 ,Community Services,Downton,Adult Residential Placements - Spot Purchase,Third Party Payments,REVENUE
Wiltshire,http://opendatacommunities.org/id/unitary-authority/wiltshire,06/04/2016,5106860137,925.30,Avery Healthcare Ltd- Langford Sali ,112676,NN4 ,Community Services,Downton,Adult Care Nursing Placements- Spot Purchase,Third Party Payments,REVENUE
Wiltshire,http://opendatacommunities.org/id/unitary-authority/wiltshire,06/04/2016,5106860414,826.90,Avery Healthcare Ltd- Langford Sali ,112676,NN4 ,Community Services,Downton,Adult Care Nursing Placements- Spot Purchase,Third Party Payments,REVENUE
Wiltshire,http://opendatacommunities.org/id/unitary-authority/wiltshire,11/04/2016,5106852662,2500.00,Avon & Wilts Mental Health Partnership NHS Trust,131123,SN15,Neighbourhood & Planning,Mental Health and We,Public Health Commissioning,Supplies and Services,REVENUE
Wiltshire,http://opendatacommunities.org/id/unitary-authority/wiltshire,15/04/2016,5106838953,283.53,Avon Care Homes Ltd - Sutton Veny H ,112612,BA5 ,Community Services,Home Loans,Adult Care Loans,Capital charges and Expenditure,REVENUE
Wiltshire,http://opendatacommunities.org/id/unitary-authority/wiltshire,15/04/2016,5106839436,1624.56,Avon Care Homes Ltd - Sutton Veny H ,112612,BA5 ,Community Services,West Locality OP,Adult Care Nursing Placements- Spot Purchase,Third Party Payments,REVENUE
Wiltshire,http://opendatacommunities.org/id/unitary-authority/wiltshire,15/04/2016,5106839437,448.00,Avon Care Homes Ltd - Sutton Veny H ,112612,BA5 ,Community Services,OP West FNC,Adult Care Funded Nursing Care - Loal Auth Clients,Third Party Payments,REVENUE
Wiltshire,http://opendatacommunities.org/id/unitary-authority/wiltshire,15/04/2016,5106840495,2076.36,Avon Care Homes Ltd - Sutton Veny H ,112612,BA5 ,Community Services,West Locality OP,Adult Care Nursing Placements- Spot Purchase,Third Party Payments,REVENUE
Wiltshire,http://opendatacommunities.org/id/unitary-authority/wiltshire,15/04/2016,5106840496,448.00,Avon Care Homes Ltd - Sutton Veny H ,112612,BA5 ,Community Services,OP West FNC,Adult Care Funded Nursing Care - Loal Auth Clients,Third Party Payments,REVENUE
Wiltshire,http://opendatacommunities.org/id/unitary-authority/wiltshire,15/04/2016,5106840500,2076.36,Avon Care Homes Ltd - Sutton Veny H ,112612,BA5 ,Community Services,West Locality OP,Adult Care Nursing Placements- Spot Purchase,Third Party Payments,REVENUE
Wiltshire,http://opendatacommunities.org/id/unitary-authority/wiltshire,15/04/2016,5106840501,448.00,Avon Care Homes Ltd - Sutton Veny H ,112612,BA5 ,Community Services,OP West FNC,Adult Care Funded Nursing Care - Loal Auth Clients,Third Party Payments,REVENUE
Wiltshire,http://opendatacommunities.org/id/unitary-authority/wiltshire,15/04/2016,5106841714,2076.36,Avon Care Homes Ltd - Sutton Veny H ,112612,BA5 ,Community Services,West Locality OP,Adult Care Nursing Placements- Spot Purchase,Third Party Payments,REVENUE
Wiltshire,http://opendatacommunities.org/id/unitary-authority/wiltshire,15/04/2016,5106841715,448.00,Avon Care Homes Ltd - Sutton Veny H ,112612,BA5 ,Community Services,OP West FNC,Adult Care Funded Nursing Care - Loal Auth Clients,Third Party Payments,REVENUE
Wiltshire,http://opendatacommunities.org/id/unitary-authority/wiltshire,15/04/2016,5106842526,2180.52,Avon Care Homes Ltd - Sutton Veny H ,112612,BA5 ,Community Services,Home Loans,Adult Care Loans,Capital charges and Expenditure,REVENUE
Wiltshire,http://opendatacommunities.org/id/unitary-authority/wiltshire,15/04/2016,5106845165,1974.78,Avon Care Homes Ltd - Sutton Veny H ,112612,BA5 ,Community Services,Home Loans,Adult Care Loans,Capital charges and Expenditure,REVENUE
Wiltshire,http://opendatacommunities.org/id/unitary-authority/wiltshire,15/04/2016,5106845167,1097.10,Avon Care Homes Ltd - Sutton Veny H ,112612,BA5 ,Community Services,Home Loans,Adult Care Loans,Capital charges and Expenditure,REVENUE
Wiltshire,http://opendatacommunities.org/id/unitary-authority/wiltshire,15/04/2016,5106845235,1211.40,Avon Care Homes Ltd - Sutton Veny H ,112612,BA5 ,Community Services,Home Loans,Adult Care Loans,Capital charges and Expenditure,REVENUE
Wiltshire,http://opendatacommunities.org/id/unitary-authority/wiltshire,15/04/2016,5106850583,1044.36,Avon Care Homes Ltd - Sutton Veny H ,112612,BA5 ,Community Services,West Locality OP,Adult Care Nursing Placements- Spot Purchase,Third Party Payments,REVENUE
Wiltshire,http://opendatacommunities.org/id/unitary-authority/wiltshire,15/04/2016,5106850584,288.00,Avon Care Homes Ltd - Sutton Veny H ,112612,BA5 ,Community Services,OP West FNC,Adult Care Funded Nursing Care - Loal Auth Clients,Third Party Payments,REVENUE
Wiltshire,http://opendatacommunities.org/id/unitary-authority/wiltshire,15/04/2016,5106850942,1334.88,Avon Care Homes Ltd - Sutton Veny H ,112612,BA5 ,Community Services,West Locality OP,Adult Care Nursing Placements- Spot Purchase,Third Party Payments,REVENUE
Wiltshire,http://opendatacommunities.org/id/unitary-authority/wiltshire,15/04/2016,5106850943,288.00,Avon Care Homes Ltd - Sutton Veny H ,112612,BA5 ,Community Services,OP West FNC,Adult Care Funded Nursing Care - Loal Auth Clients,Third Party Payments,REVENUE
Wiltshire,http://opendatacommunities.org/id/unitary-authority/wiltshire,15/04/2016,5106850947,1334.88,Avon Care Homes Ltd - Sutton Veny H ,112612,BA5 ,Community Services,West Locality OP,Adult Care Nursing Placements- Spot Purchase,Third Party Payments,REVENUE
Wiltshire,http://opendatacommunities.org/id/unitary-authority/wiltshire,15/04/2016,5106850948,288.00,Avon Care Homes Ltd - Sutton Veny H ,112612,BA5 ,Community Services,OP West FNC,Adult Care Funded Nursing Care - Loal Auth Clients,Third Party Payments,REVENUE
Wiltshire,http://opendatacommunities.org/id/unitary-authority/wiltshire,15/04/2016,5106851674,1334.88,Avon Care Homes Ltd - Sutton Veny H ,112612,BA5 ,Community Services,West Locality OP,Adult Care Nursing Placements- Spot Purchase,Third Party Payments,REVENUE
Wiltshire,http://opendatacommunities.org/id/unitary-authority/wiltshire,15/04/2016,5106851675,288.00,Avon Care Homes Ltd - Sutton Veny H ,112612,BA5 ,Community Services,OP West FNC,Adult Care Funded Nursing Care - Loal Auth Clients,Third Party Payments,REVENUE
Wiltshire,http://opendatacommunities.org/id/unitary-authority/wiltshire,15/04/2016,5106858710,744.50,Avon Care Homes Ltd - Sutton Veny H ,112612,BA5 ,Community Services,Orchard,Adult Care Nursing Placements- Spot Purchase,Third Party Payments,REVENUE
Wiltshire,http://opendatacommunities.org/id/unitary-authority/wiltshire,15/04/2016,5106859317,3072.00,Avon Care Homes Ltd - Sutton Veny H ,112612,BA5 ,Community Services,Home Loans,Adult Care Loans,Capital charges and Expenditure,REVENUE
Wiltshire,http://opendatacommunities.org/id/unitary-authority/wiltshire,15/04/2016,5106860852,744.50,Avon Care Homes Ltd - Sutton Veny H ,112612,BA5 ,Community Services,The Avenue,Adult Care Nursing Placements- Spot Purchase,Third Party Payments,REVENUE
Wiltshire,http://opendatacommunities.org/id/unitary-authority/wiltshire,15/04/2016,5106860855,744.50,Avon Care Homes Ltd - Sutton Veny H ,112612,BA5 ,Community Services,Orchard,Adult Care Nursing Placements- Spot Purchase,Third Party Payments,REVENUE
Wiltshire,http://opendatacommunities.org/id/unitary-authority/wiltshire,15/04/2016,5106864513,20412.93,Avon Care Homes Ltd - Sutton Veny H ,112612,BA5 ,Community Services,MH OP North Locality,Adult Care Nursing Placements- Spot Purchase,Third Party Payments,REVENUE
Wiltshire,http://opendatacommunities.org/id/unitary-authority/wiltshire,06/04/2016,5106856452,403.47,Avon Court Care Home ,110218,LS16,Community Services,North Locality OP,Adult Care Nursing Placements- Block Contract,Third Party Payments,REVENUE
Wiltshire,http://opendatacommunities.org/id/unitary-authority/wiltshire,06/04/2016,5106858367,709.30,Avon Court Care Home ,110218,LS16,Community Services,Chippenham,Adult Care Nursing Placements- Block Contract,Third Party Payments,REVENUE
Wiltshire,http://opendatacommunities.org/id/unitary-authority/wiltshire,06/04/2016,5106858572,746.20,Avon Court Care Home ,110218,LS16,Community Services,Chippenham,Adult Care Nursing Placements- Spot Purchase,Third Party Payments,REVENUE
Wiltshire,http://opendatacommunities.org/id/unitary-authority/wiltshire,06/04/2016,5106858791,746.20,Avon Court Care Home ,110218,LS16,Community Services,Chippenham,Adult Care Nursing Placements- Spot Purchase,Third Party Payments,REVENUE
Wiltshire,http://opendatacommunities.org/id/unitary-authority/wiltshire,06/04/2016,5106858994,709.30,Avon Court Care Home ,110218,LS16,Community Services,Chippenham,Adult Care Nursing Placements- Block Contract,Third Party Payments,REVENUE
Wiltshire,http://opendatacommunities.org/id/unitary-authority/wiltshire,06/04/2016,5106859120,827.20,Avon Court Care Home ,110218,LS16,Community Services,Chippenham,Adult Care Nursing Placements- Spot Purchase,Third Party Payments,REVENUE
Wiltshire,http://opendatacommunities.org/id/unitary-authority/wiltshire,06/04/2016,5106859239,827.20,Avon Court Care Home ,110218,LS16,Community Services,Chippenham,Adult Care Nursing Placements- Spot Purchase,Third Party Payments,REVENUE
Wiltshire,http://opendatacommunities.org/id/unitary-authority/wiltshire,06/04/2016,5106859338,3292.00,Avon Court Care Home ,110218,LS16,Community Services,Home Loans,Adult Care Loans,Capital charges and Expenditure,REVENUE
Wiltshire,http://opendatacommunities.org/id/unitary-authority/wiltshire,06/04/2016,5106859472,827.20,Avon Court Care Home ,110218,LS16,Community Services,Chippenham,Adult Care Nursing Placements- Spot Purchase,Third Party Payments,REVENUE
Wiltshire,http://opendatacommunities.org/id/unitary-authority/wiltshire,06/04/2016,5106859784,726.80,Avon Court Care Home ,110218,LS16,Community Services,Chippenham,Adult Care Nursing Placements- Spot Purchase,Third Party Payments,REVENUE
Wiltshire,http://opendatacommunities.org/id/unitary-authority/wiltshire,06/04/2016,5106859790,743.20,Avon Court Care Home ,110218,LS16,Community Services,Chippenham,Adult Care Nursing Placements- Spot Purchase,Third Party Payments,REVENUE
Wiltshire,http://opendatacommunities.org/id/unitary-authority/wiltshire,06/04/2016,5106859871,726.80,Avon Court Care Home ,110218,LS16,Community Services,Chippenham,Adult Care Nursing Placements- Spot Purchase,Third Party Payments,REVENUE
Wiltshire,http://opendatacommunities.org/id/unitary-authority/wiltshire,06/04/2016,5106859878,726.80,Avon Court Care Home ,110218,LS16,Community Services,Chippenham,Adult Care Nursing Placements- Spot Purchase,Third Party Payments,REVENUE
Wiltshire,http://opendatacommunities.org/id/unitary-authority/wiltshire,06/04/2016,5106860207,507.70,Avon Court Care Home ,110218,LS16,Community Services,Chippenham,Adult Care Nursing Placements- Spot Purchase,Third Party Payments,REVENUE
Wiltshire,http://opendatacommunities.org/id/unitary-authority/wiltshire,06/04/2016,5106860473,709.30,Avon Court Care Home ,110218,LS16,Community Services,Chippenham,Adult Care Nursing Placements- Block Contract,Third Party Payments,REVENUE
Wiltshire,http://opendatacommunities.org/id/unitary-authority/wiltshire,06/04/2016,5106860553,709.30,Avon Court Care Home ,110218,LS16,Community Services,Chippenham,Adult Care Nursing Placements- Block Contract,Third Party Payments,REVENUE
Wiltshire,http://opendatacommunities.org/id/unitary-authority/wiltshire,06/04/2016,5106860621,709.30,Avon Court Care Home ,110218,LS16,Community Services,Chippenham,Adult Care Nursing Placements- Block Contract,Third Party Payments,REVENUE
Wiltshire,http://opendatacommunities.org/id/unitary-authority/wiltshire,06/04/2016,5106860771,709.30,Avon Court Care Home ,110218,LS16,Community Services,Chippenham,Adult Care Nursing Placements- Block Contract,Third Party Payments,REVENUE
Wiltshire,http://opendatacommunities.org/id/unitary-authority/wiltshire,06/04/2016,5106860878,1020.20,Avon Court Care Home ,110218,LS16,Community Services,Chippenham,Adult Care Nursing Placements- Spot Purchase,Third Party Payments,REVENUE
Wiltshire,http://opendatacommunities.org/id/unitary-authority/wiltshire,06/04/2016,5106861022,709.30,Avon Court Care Home ,110218,LS16,Community Services,Chippenham,Adult Care Nursing Placements- Block Contract,Third Party Payments,REVENUE
Wiltshire,http://opendatacommunities.org/id/unitary-authority/wiltshire,22/04/2016,5106866535,709.30,Avon Court Care Home ,110218,LS16,Community Services,Chippenham,Adult Care Nursing Placements- Block Contract,Third Party Payments,REVENUE
Wiltshire,http://opendatacommunities.org/id/unitary-authority/wiltshire,22/04/2016,1901708010,1758.00,Avon Valley Practice ,131697,SN9 ,Neighbourhood & Planning,Sexual Health Commun,Public Health Commissioning,Supplies and Services,REVENUE
Wiltshire,http://opendatacommunities.org/id/unitary-authority/wiltshire,22/04/2016,1901708064,858.06,Avon Valley Practice ,131697,SN9 ,Neighbourhood & Planning,Sexual Health Commun,Public Health Commissioning,Supplies and Services,REVENUE
Wiltshire,http://opendatacommunities.org/id/unitary-authority/wiltshire,25/04/2016,1901708779,1000.00,Avon Valley Practice ,131697,SN9 ,Neighbourhood & Planning,NHS Health Checks,Public Health Commissioning,Supplies and Services,REVENUE
Wiltshire,http://opendatacommunities.org/id/unitary-authority/wiltshire,06/04/2016,5106858535,751.80,Avoncare Homes Ltd - Wells Nursing ,114326,BA5 ,Community Services,Corsh & Box,Adult Care Nursing Placements- Spot Purchase,Third Party Payments,REVENUE
Wiltshire,http://opendatacommunities.org/id/unitary-authority/wiltshire,06/04/2016,5106860483,2068.48,Avoncare Homes Ltd - Wells Nursing ,114326,BA5 ,Community Services,Home Loans,Adult Care Loans,Capital charges and Expenditure,REVENUE
Wiltshire,http://opendatacommunities.org/id/unitary-authority/wiltshire,06/04/2016,5106858734,1080.10,Avonpark Village (Care Homes) Limit ,110227,BA2 ,Community Services,BoA Cluster,Adult Care Nursing Placements- Spot Purchase,Third Party Payments,REVENUE
Wiltshire,http://opendatacommunities.org/id/unitary-authority/wiltshire,06/04/2016,5106859696,728.60,Avonpark Village (Care Homes) Limit ,110227,BA2 ,Community Services,MH OP North Locality,Adult Residential Placements - Spot Purchase,Third Party Payments,REVENUE
Wiltshire,http://opendatacommunities.org/id/unitary-authority/wiltshire,06/04/2016,5106859735,684.90,Avonpark Village (Care Homes) Limit ,110227,BA2 ,Community Services,BoA Cluster,Adult Residential Placements - Spot Purchase,Third Party Payments,REVENUE
Wiltshire,http://opendatacommunities.org/id/unitary-authority/wiltshire,06/04/2016,5106859759,711.20,Avonpark Village (Care Homes) Limit ,110227,BA2 ,Community Services,MH OP North Locality,Adult Residential Placements - Spot Purchase,Third Party Payments,REVENUE
Wiltshire,http://opendatacommunities.org/id/unitary-authority/wiltshire,06/04/2016,5106859761,677.60,Avonpark Village (Care Homes) Limit ,110227,BA2 ,Community Services,BoA Cluster,Adult Residential Placements - Spot Purchase,Third Party Payments,REVENUE
Wiltshire,http://opendatacommunities.org/id/unitary-authority/wiltshire,06/04/2016,5106859821,711.20,Avonpark Village (Care Homes) Limit ,110227,BA2 ,Community Services,MH OP North Locality,Adult Residential Placements - Spot Purchase,Third Party Payments,REVENUE
Wiltshire,http://opendatacommunities.org/id/unitary-authority/wiltshire,06/04/2016,5106859869,711.20,Avonpark Village (Care Homes) Limit ,110227,BA2 ,Community Services,MH OP North Locality,Adult Residential Placements - Spot Purchase,Third Party Payments,REVENUE
Wiltshire,http://opendatacommunities.org/id/unitary-authority/wiltshire,06/04/2016,5106859966,545.40,Avonpark Village (Care Homes) Limit ,110227,BA2 ,Community Services,MH OP North Locality,Adult Residential Placements - Spot Purchase,Third Party Payments,REVENUE
Wiltshire,http://opendatacommunities.org/id/unitary-authority/wiltshire,06/04/2016,5106859967,363.60,Avonpark Village (Care Homes) Limit ,110227,BA2 ,Community Services,Section 117-PCT Clnt,Adult Residential Placements - Spot Purchase,Third Party Payments,REVENUE
Wiltshire,http://opendatacommunities.org/id/unitary-authority/wiltshire,06/04/2016,5106860095,541.40,Avonpark Village (Care Homes) Limit ,110227,BA2 ,Community Services,MH OP North Locality,Adult Residential Placements - Spot Purchase,Third Party Payments,REVENUE
Wiltshire,http://opendatacommunities.org/id/unitary-authority/wiltshire,06/04/2016,5106860587,948.50,Avonpark Village (Care Homes) Limit ,110227,BA2 ,Community Services,MH OP North Locality,Adult Residential Placements - Spot Purchase,Third Party Payments,REVENUE
Wiltshire,http://opendatacommunities.org/id/unitary-authority/wiltshire,08/04/2016,5106862975,16130.00,Axial Systems Ltd ,101147,SL6 ,Wiltshire Council,Wiltshire Council,Hardware Purchases IT,Supplies and Services,CAPITAL
Wiltshire,http://opendatacommunities.org/id/unitary-authority/wiltshire,01/04/2016,5106848813,18642.69,Axiell  ALM Ltd ,113771,NG1 ,Resources,Applications SuppLOB,ICT - Support arrangements,Supplies and Services,REVENUE
Wiltshire,http://opendatacommunities.org/id/unitary-authority/wiltshire,20/04/2016,5106864296,3518.98,Axiell ALM Ltd ,135646,NG1 ,Resources,Applications SuppLOB,ICT - Support arrangements,Supplies and Services,REVENUE
Wiltshire,http://opendatacommunities.org/id/unitary-authority/wiltshire,25/04/2016,5106865147,4742.00,Axis Signs Limited ,140699,SN3 ,Wiltshire Council,Wiltshire Council,Publications / periodicals,Supplies and Services,CAPITAL
Wiltshire,http://opendatacommunities.org/id/unitary-authority/wiltshire,28/04/2016,5106865371,440.00,Axis Signs Limited ,140699,SN3 ,Wiltshire Council,Wiltshire Council,Publications / periodicals,Supplies and Services,CAPITAL
Wiltshire,http://opendatacommunities.org/id/unitary-authority/wiltshire,28/04/2016,5106865371,540.00,Axis Signs Limited ,140699,SN3 ,Wiltshire Council,Wiltshire Council,Publications / periodicals,Supplies and Services,CAPITAL
Wiltshire,http://opendatacommunities.org/id/unitary-authority/wiltshire,18/04/2016,5106864957,434.12,B & M Windows  and  Doors Ltd ,101694,SP2 ,Neighbourhood & Planning,DLO,Equipment Purchase,Supplies and Services,REVENUE
Wiltshire,http://opendatacommunities.org/id/unitary-authority/wiltshire,18/04/2016,5106864958,620.00,B & M Windows  and  Doors Ltd ,101694,SP2 ,Neighbourhood & Planning,DLO,Equipment Purchase,Supplies and Services,REVENUE
Wiltshire,http://opendatacommunities.org/id/unitary-authority/wiltshire,19/04/2016,5106865123,321.87,B & M Windows  and  Doors Ltd ,101694,SP2 ,Neighbourhood & Planning,DLO,Equipment Purchase,Supplies and Services,REVENUE
Wiltshire,http://opendatacommunities.org/id/unitary-authority/wiltshire,19/04/2016,5106865131,430.68,B & M Windows  and  Doors Ltd ,101694,SP2 ,Neighbourhood & Planning,DLO,Equipment Purchase,Supplies and Services,REVENUE
Wiltshire,http://opendatacommunities.org/id/unitary-authority/wiltshire,19/04/2016,5106865132,630.00,B & M Windows  and  Doors Ltd ,101694,SP2 ,Neighbourhood & Planning,DLO,Equipment Purchase,Supplies and Services,REVENUE
Wiltshire,http://opendatacommunities.org/id/unitary-authority/wiltshire,19/04/2016,5106865143,708.00,B & M Windows  and  Doors Ltd ,101694,SP2 ,Neighbourhood & Planning,DLO,Equipment Purchase,Supplies and Services,REVENUE
Wiltshire,http://opendatacommunities.org/id/unitary-authority/wiltshire,26/04/2016,5106866783,771.74,B & M Windows  and  Doors Ltd ,101694,SP2 ,Neighbourhood & Planning,DLO,Equipment Purchase,Supplies and Services,REVENUE
Wiltshire,http://opendatacommunities.org/id/unitary-authority/wiltshire,13/04/2016,1901704387,398.01,B Y B Travel Ltd ,101145,SN12,Neighbourhood & Planning,SEN 16+ Secondary,Transport Contracts,Third Party Payments,REVENUE
Wiltshire,http://opendatacommunities.org/id/unitary-authority/wiltshire,13/04/2016,1901704387,9950.28,B Y B Travel Ltd ,101145,SN12,Neighbourhood & Planning,Mainstream 16+ FE,Transport Contracts,Third Party Payments,REVENUE
Wiltshire,http://opendatacommunities.org/id/unitary-authority/wiltshire,13/04/2016,1901704388,576.00,B Y B Travel Ltd ,101145,SN12,Neighbourhood & Planning,Mainstream Secondary,Transport Contract -  Bus Season Tickets,Third Party Payments,REVENUE
Wiltshire,http://opendatacommunities.org/id/unitary-authority/wiltshire,13/04/2016,1901704391,630.00,B Y B Travel Ltd ,101145,SN12,Neighbourhood & Planning,SEN 16+ Secondary,Transport Contracts,Third Party Payments,REVENUE
Wiltshire,http://opendatacommunities.org/id/unitary-authority/wiltshire,13/04/2016,1901704391,8820.00,B Y B Travel Ltd ,101145,SN12,Neighbourhood & Planning,Mainstream 16+ FE,Transport Contracts,Third Party Payments,REVENUE
Wiltshire,http://opendatacommunities.org/id/unitary-authority/wiltshire,06/04/2016,5106860147,1514.92,B&M Care ,110236,HP2 ,Community Services,Ad/Brad Rd,Adult Residential Placements - Spot Purchase,Third Party Payments,REVENUE
Wiltshire,http://opendatacommunities.org/id/unitary-authority/wiltshire,08/04/2016,1901696224,4855.00,BA14 Culture ,138997,BA14,Community Services,Area Board Trow,Area Board Youth Grants,Supplies and Services,REVENUE
Wiltshire,http://opendatacommunities.org/id/unitary-authority/wiltshire,14/04/2016,1901704867,1500.00,BACS Payment Schemes Limited ,128585,E1W ,Resources,SharedServFincPayrol,ICT - Support arrangements,Supplies and Services,REVENUE
Wiltshire,http://opendatacommunities.org/id/unitary-authority/wiltshire,05/04/2016,5106855967,557.83,Bailey Employment Services Ltd t/a Bailey Care Services,111453,BA14,Community Services,West Locality OP,Adult Domiciliary Care - Spot,Third Party Payments,REVENUE
Wiltshire,http://opendatacommunities.org/id/unitary-authority/wiltshire,06/04/2016,5106856256,541.89,Bailey Employment Services Ltd t/a Bailey Care Services,111453,BA14,Community Services,West Locality OP,Adult Domiciliary Care - Spot,Third Party Payments,REVENUE
Wiltshire,http://opendatacommunities.org/id/unitary-authority/wiltshire,15/04/2016,5106864872,582.59,Bailey Employment Services Ltd t/a Bailey Care Services,111453,BA14,Community Services,West Locality OP,Adult Domiciliary Care - Spot,Third Party Payments,REVENUE
Wiltshire,http://opendatacommunities.org/id/unitary-authority/wiltshire,22/04/2016,5106866291,542.53,Bailey Employment Services Ltd t/a Bailey Care Services,111453,BA14,Community Services,West Locality OP,Adult Domiciliary Care - Spot,Third Party Payments,REVENUE
Wiltshire,http://opendatacommunities.org/id/unitary-authority/wiltshire,25/04/2016,5106866604,484.97,Bailey Employment Services Ltd t/a Bailey Care Services,111453,BA14,Community Services,White Horse,Adult Domiciliary Care - Spot,Third Party Payments,REVENUE
Wiltshire,http://opendatacommunities.org/id/unitary-authority/wiltshire,05/04/2016,1901694438,125597.24,Balfour Beatty Living Places Limite ,134557,NE12,Neighbourhood & Planning,Street Lighting-Mtce,Highways - Other Materials,Supplies and Services,REVENUE
Wiltshire,http://opendatacommunities.org/id/unitary-authority/wiltshire,06/04/2016,5106859295,2552.00,Barchester Health Care ,142919,GL51,Community Services,Malmesbury,Adult Care Nursing Placements- Spot Purchase,Third Party Payments,REVENUE
